Date of Payment,Expense type,Expense Area,Supplier,Transaction number,Amount,Department and Entity,Department and Entity
30/09/2013,BUILDING REPAIRS,FUSION,KNOWLES & SONS (OXFORD) LTD,5100294185,1660.68,United Kingdom Energy Authority,United Kingdom Energy Authority
21/10/2013,PLANT SPARES,FUSION,A D INSTALLATION LTD,5100294997,620.00,United Kingdom Energy Authority,United Kingdom Energy Authority
30/09/2013,PLANT SPARES,FUSION,A W CLARKE,5100294012,75.00,United Kingdom Energy Authority,United Kingdom Energy Authority
21/10/2013,PLANT SPARES,FUSION,A W CLARKE,5100294933,150.00,United Kingdom Energy Authority,United Kingdom Energy Authority
30/09/2013,PLANT SPARES,FUSION,A W CLARKE,5100292108,162.50,United Kingdom Energy Authority,United Kingdom Energy Authority
30/09/2013,PLANT SPARES,FUSION,A W CLARKE,5100291841,397.50,United Kingdom Energy Authority,United Kingdom Energy Authority
30/09/2013,PLANT SPARES,FUSION,A W CLARKE,5100293274,710.00,United Kingdom Energy Authority,United Kingdom Energy Authority
30/09/2013,PLANT SPARES,FUSION,A W CLARKE,5100291836,850.00,United Kingdom Energy Authority,United Kingdom Energy Authority
21/10/2013,PLANT SPARES,FUSION,A W CLARKE,5100295040,954.00,United Kingdom Energy Authority,United Kingdom Energy Authority
21/10/2013,PLANT SPARES,FUSION,A W CLARKE,5100295044,1349.70,United Kingdom Energy Authority,United Kingdom Energy Authority
30/09/2013,PLANT SPARES,FUSION,A W CLARKE,5100292028,2130.00,United Kingdom Energy Authority,United Kingdom Energy Authority
30/09/2013,PLANT SPARES,FUSION,A W CLARKE,5100291042,4162.50,United Kingdom Energy Authority,United Kingdom Energy Authority
30/09/2013,PLANT & EQUIPMENT,FUSION,AALCO LIMITED,5100293068,12.00,United Kingdom Energy Authority,United Kingdom Energy Authority
02/10/2013,PLANT & EQUIPMENT,FUSION,AALCO LIMITED,5100294169,15.25,United Kingdom Energy Authority,United Kingdom Energy Authority
30/09/2013,PLANT & EQUIPMENT,FUSION,AALCO LIMITED,5100293067,20.00,United Kingdom Energy Authority,United Kingdom Energy Authority
30/09/2013,PLANT & EQUIPMENT,FUSION,AALCO LIMITED,5100293069,26.00,United Kingdom Energy Authority,United Kingdom Energy Authority
30/09/2013,PLANT & EQUIPMENT,FUSION,AALCO LIMITED,5100293070,34.00,United Kingdom Energy Authority,United Kingdom Energy Authority
02/10/2013,PLANT & EQUIPMENT,FUSION,AALCO LIMITED,5100294171,36.75,United Kingdom Energy Authority,United Kingdom Energy Authority
02/10/2013,PLANT & EQUIPMENT,FUSION,AALCO LIMITED,5100294103,38.75,United Kingdom Energy Authority,United Kingdom Energy Authority
07/10/2013,PLANT & EQUIPMENT,FUSION,AALCO LIMITED,5100294476,38.75,United Kingdom Energy Authority,United Kingdom Energy Authority
02/10/2013,PLANT & EQUIPMENT,FUSION,AALCO LIMITED,5100294100,39.00,United Kingdom Energy Authority,United Kingdom Energy Authority
02/10/2013,PLANT & EQUIPMENT,FUSION,AALCO LIMITED,5100294170,41.20,United Kingdom Energy Authority,United Kingdom Energy Authority
30/09/2013,PLANT & EQUIPMENT,FUSION,AALCO LIMITED,5100293035,45.00,United Kingdom Energy Authority,United Kingdom Energy Authority
02/10/2013,PLANT & EQUIPMENT,FUSION,AALCO LIMITED,5100294174,48.50,United Kingdom Energy Authority,United Kingdom Energy Authority
30/09/2013,PLANT & EQUIPMENT,FUSION,AALCO LIMITED,5100293037,50.00,United Kingdom Energy Authority,United Kingdom Energy Authority
30/09/2013,PLANT & EQUIPMENT,FUSION,AALCO LIMITED,5100293221,50.60,United Kingdom Energy Authority,United Kingdom Energy Authority
30/09/2013,PLANT & EQUIPMENT,FUSION,AALCO LIMITED,5100293220,52.80,United Kingdom Energy Authority,United Kingdom Energy Authority
30/09/2013,PLANT & EQUIPMENT,FUSION,AALCO LIMITED,5100293758,53.30,United Kingdom Energy Authority,United Kingdom Energy Authority
14/10/2013,PLANT & EQUIPMENT,FUSION,AALCO LIMITED,5100294668,56.25,United Kingdom Energy Authority,United Kingdom Energy Authority
30/09/2013,PLANT & EQUIPMENT,FUSION,AALCO LIMITED,5100293036,60.00,United Kingdom Energy Authority,United Kingdom Energy Authority
02/10/2013,PLANT & EQUIPMENT,FUSION,AALCO LIMITED,5100294098,60.00,United Kingdom Energy Authority,United Kingdom Energy Authority
30/09/2013,PLANT & EQUIPMENT,FUSION,AALCO LIMITED,5100293222,95.30,United Kingdom Energy Authority,United Kingdom Energy Authority
14/10/2013,PLANT & EQUIPMENT,FUSION,AALCO LIMITED,5100294663,97.90,United Kingdom Energy Authority,United Kingdom Energy Authority
30/09/2013,PLANT & EQUIPMENT,FUSION,AALCO LIMITED,5100293217,108.40,United Kingdom Energy Authority,United Kingdom Energy Authority
30/09/2013,PLANT & EQUIPMENT,FUSION,AALCO LIMITED,5100293216,111.84,United Kingdom Energy Authority,United Kingdom Energy Authority
02/10/2013,PLANT & EQUIPMENT,FUSION,AALCO LIMITED,5100294097,160.00,United Kingdom Energy Authority,United Kingdom Energy Authority
07/10/2013,PLANT & EQUIPMENT,FUSION,AALCO LIMITED,5100294475,189.60,United Kingdom Energy Authority,United Kingdom Energy Authority
07/10/2013,PLANT & EQUIPMENT,FUSION,AALCO LIMITED,5100294507,189.60,United Kingdom Energy Authority,United Kingdom Energy Authority
02/10/2013,PLANT & EQUIPMENT,FUSION,AALCO LIMITED,5100294172,285.00,United Kingdom Energy Authority,United Kingdom Energy Authority
30/09/2013,PLANT & EQUIPMENT,FUSION,AALCO LIMITED,5100293219,286.60,United Kingdom Energy Authority,United Kingdom Energy Authority
02/10/2013,PLANT & EQUIPMENT,FUSION,AALCO LIMITED,5100294173,356.60,United Kingdom Energy Authority,United Kingdom Energy Authority
16/10/2013,PLANT & EQUIPMENT,FUSION,AALCO LIMITED,5100294776,996.90,United Kingdom Energy Authority,United Kingdom Energy Authority
04/10/2013,TRAINING COURSE FEES,FUSION,ABB,1900058729,4932.00,United Kingdom Energy Authority,United Kingdom Energy Authority
07/10/2013,TRAINING COURSE FEES,SUPPORT SERVICES,ABINGDON & WITNEY COLLEGE,5100294499,2000.00,United Kingdom Energy Authority,United Kingdom Energy Authority
14/10/2013,CONSUMABLES,PROPERTY,ABLOY SECURITY,5100294460,469.95,United Kingdom Energy Authority,United Kingdom Energy Authority
21/10/2013,MATERIALS & SPARES,FUSION,AC PRECISION ENGINEERING LTD,5100292409,5094.80,United Kingdom Energy Authority,United Kingdom Energy Authority
21/10/2013,MATERIALS & SPARES,FUSION,AC PRECISION ENGINEERING LTD,5100294299,7395.00,United Kingdom Energy Authority,United Kingdom Energy Authority
21/10/2013,MATERIALS & SPARES,FUSION,AC PRECISION ENGINEERING LTD,5100292963,8740.00,United Kingdom Energy Authority,United Kingdom Energy Authority
16/10/2013,MATERIALS & SPARES,FUSION,ADHECTIC LIMITED,5100294869,65.21,United Kingdom Energy Authority,United Kingdom Energy Authority
02/10/2013,PLANT & EQUIPMENT,FUSION,ADVENT RESEARCH MATERIALS LTD,5100294190,326.00,United Kingdom Energy Authority,United Kingdom Energy Authority
21/10/2013,GASES,FUSION,AIR PRODUCTS PLC,5100295038,19.50,United Kingdom Energy Authority,United Kingdom Energy Authority
16/10/2013,GASES,FUSION,AIR PRODUCTS PLC,5100293827,20.15,United Kingdom Energy Authority,United Kingdom Energy Authority
21/10/2013,GASES,FUSION,AIR PRODUCTS PLC,5100295036,39.00,United Kingdom Energy Authority,United Kingdom Energy Authority
21/10/2013,MATERIALS & SPARES,FUSION,ALLECTRA LTD,5100295052,122.00,United Kingdom Energy Authority,United Kingdom Energy Authority
16/10/2013,MATERIALS & SPARES,FUSION,ALLECTRA LTD,5100294640,160.50,United Kingdom Energy Authority,United Kingdom Energy Authority
16/10/2013,VEHICLE REPAIRS,FUSION,ALLPARTS AUTOMOTIVE LTD,5100294471,83.20,United Kingdom Energy Authority,United Kingdom Energy Authority
01/10/2013,MATERIALS & SPARES,FUSION,Alltorq Ltd,1900058905,381.60,United Kingdom Energy Authority,United Kingdom Energy Authority
14/10/2013,MATERIALS & SPARES,FUSION,ALPHA ENGINEERING SUPPLIES,5100294632,19.92,United Kingdom Energy Authority,United Kingdom Energy Authority
30/09/2013,MATERIALS & SPARES,FUSION,ALPHA ENGINEERING SUPPLIES,5100294196,23.80,United Kingdom Energy Authority,United Kingdom Energy Authority
02/10/2013,MATERIALS & SPARES,FUSION,ALPHA ENGINEERING SUPPLIES,5100294200,234.85,United Kingdom Energy Authority,United Kingdom Energy Authority
02/10/2013,MATERIALS & SPARES,FUSION,ALPHA ENGINEERING SUPPLIES,5100294202,267.60,United Kingdom Energy Authority,United Kingdom Energy Authority
07/10/2013,MATERIALS & SPARES,FUSION,ALPHA ENGINEERING SUPPLIES,5100294194,297.35,United Kingdom Energy Authority,United Kingdom Energy Authority
21/10/2013,MATERIALS & SPARES,FUSION,ALPHA ENGINEERING SUPPLIES,5100295134,1855.00,United Kingdom Energy Authority,United Kingdom Energy Authority
30/09/2013,PLANT & EQUIPMENT,FUSION,ALPHA LABORATORIES,5100294095,82.20,United Kingdom Energy Authority,United Kingdom Energy Authority
30/09/2013,PLANT & EQUIPMENT,FUSION,ALPHA LABORATORIES,5100294093,338.30,United Kingdom Energy Authority,United Kingdom Energy Authority
14/10/2013,MATERIALS & SPARES,FUSION,ALPHA PACKAGING,5100294708,59.95,United Kingdom Energy Authority,United Kingdom Energy Authority
14/10/2013,REPAIRS & MAINTENANCE,FUSION,ANDREWS SYKES,5100294498,150.20,United Kingdom Energy Authority,United Kingdom Energy Authority
14/10/2013,REPAIRS & MAINTENANCE,FUSION,ANDREWS SYKES,5100294764,795.50,United Kingdom Energy Authority,United Kingdom Energy Authority
07/10/2013,REPAIRS & MAINTENANCE,FUSION,ANDREWS SYKES,5100293368,3576.00,United Kingdom Energy Authority,United Kingdom Energy Authority
07/10/2013,REPAIRS & MAINTENANCE,FUSION,ANDREWS SYKES,5100294497,4693.50,United Kingdom Energy Authority,United Kingdom Energy Authority
21/10/2013,MATERIALS & SPARES,FUSION,ANIXTER (UK) LTD,5100295154,220.60,United Kingdom Energy Authority,United Kingdom Energy Authority
21/10/2013,PROFESSIONAL SERVICES,SUPPORT SERVICES,AON HEWITT LTD,5100295142,20430.88,United Kingdom Energy Authority,United Kingdom Energy Authority
07/10/2013,PROFESSIONAL SERVICES,SUPPORT SERVICES,AON HEWITT LTD,5100294455,22050.25,United Kingdom Energy Authority,United Kingdom Energy Authority
07/10/2013,PROFESSIONAL SERVICES,SUPPORT SERVICES,AON HEWITT LTD,5100294454,147151.50,United Kingdom Energy Authority,United Kingdom Energy Authority
30/09/2013,PLANT & EQUIPMENT,FUSION,APEM COMPONENTS LTD,5100294124,231.05,United Kingdom Energy Authority,United Kingdom Energy Authority
21/10/2013,MATERIALS & SPARES,FUSION,APPLIED QUALITY ASSURANCE,5100295103,393.50,United Kingdom Energy Authority,United Kingdom Energy Authority
14/10/2013,CONSULTANCY,FUSION,AQUILA NUCLEAR ENGINEERING,5100294709,20000.00,United Kingdom Energy Authority,United Kingdom Energy Authority
21/10/2013,PERSONAL PROTECTIVE EQUIPMENT,FUSION,ARCO LTD,5100294986,5.56,United Kingdom Energy Authority,United Kingdom Energy Authority
09/10/2013,PERSONAL PROTECTIVE EQUIPMENT,FUSION,ARCO LTD,5100293880,17.56,United Kingdom Energy Authority,United Kingdom Energy Authority
14/10/2013,PERSONAL PROTECTIVE EQUIPMENT,FUSION,ARCO LTD,5100294648,35.09,United Kingdom Energy Authority,United Kingdom Energy Authority
21/10/2013,PERSONAL PROTECTIVE EQUIPMENT,FUSION,ARCO LTD,5100294984,35.09,United Kingdom Energy Authority,United Kingdom Energy Authority
07/10/2013,PERSONAL PROTECTIVE EQUIPMENT,FUSION,ARCO LTD,5100293997,36.00,United Kingdom Energy Authority,United Kingdom Energy Authority
21/10/2013,PERSONAL PROTECTIVE EQUIPMENT,FUSION,ARCO LTD,5100294982,42.00,United Kingdom Energy Authority,United Kingdom Energy Authority
09/10/2013,PERSONAL PROTECTIVE EQUIPMENT,FUSION,ARCO LTD,5100293998,44.37,United Kingdom Energy Authority,United Kingdom Energy Authority
14/10/2013,PERSONAL PROTECTIVE EQUIPMENT,FUSION,ARCO LTD,5100294792,45.94,United Kingdom Energy Authority,United Kingdom Energy Authority
09/10/2013,PERSONAL PROTECTIVE EQUIPMENT,FUSION,ARCO LTD,5100293990,49.15,United Kingdom Energy Authority,United Kingdom Energy Authority
07/10/2013,PERSONAL PROTECTIVE EQUIPMENT,FUSION,ARCO LTD,5100294219,49.18,United Kingdom Energy Authority,United Kingdom Energy Authority
21/10/2013,PERSONAL PROTECTIVE EQUIPMENT,FUSION,ARCO LTD,5100295015,52.79,United Kingdom Energy Authority,United Kingdom Energy Authority
21/10/2013,PERSONAL PROTECTIVE EQUIPMENT,FUSION,ARCO LTD,5100294130,57.52,United Kingdom Energy Authority,United Kingdom Energy Authority
02/10/2013,PERSONAL PROTECTIVE EQUIPMENT,FUSION,ARCO LTD,5100294212,66.00,United Kingdom Energy Authority,United Kingdom Energy Authority
14/10/2013,PERSONAL PROTECTIVE EQUIPMENT,FUSION,ARCO LTD,5100294483,67.06,United Kingdom Energy Authority,United Kingdom Energy Authority
14/10/2013,PERSONAL PROTECTIVE EQUIPMENT,FUSION,ARCO LTD,5100294614,67.99,United Kingdom Energy Authority,United Kingdom Energy Authority
30/09/2013,PERSONAL PROTECTIVE EQUIPMENT,SUPPORT SERVICES,ARCO LTD,5100293996,68.22,United Kingdom Energy Authority,United Kingdom Energy Authority
30/09/2013,PERSONAL PROTECTIVE EQUIPMENT,FUSION,ARCO LTD,5100294132,70.38,United Kingdom Energy Authority,United Kingdom Energy Authority
09/10/2013,PERSONAL PROTECTIVE EQUIPMENT,FUSION,ARCO LTD,5100293883,71.44,United Kingdom Energy Authority,United Kingdom Energy Authority
30/09/2013,PERSONAL PROTECTIVE EQUIPMENT,FUSION,ARCO LTD,5100294217,72.58,United Kingdom Energy Authority,United Kingdom Energy Authority
21/10/2013,PERSONAL PROTECTIVE EQUIPMENT,FUSION,ARCO LTD,5100295017,75.00,United Kingdom Energy Authority,United Kingdom Energy Authority
14/10/2013,PERSONAL PROTECTIVE EQUIPMENT,FUSION,ARCO LTD,5100294794,75.29,United Kingdom Energy Authority,United Kingdom Energy Authority
21/10/2013,PERSONAL PROTECTIVE EQUIPMENT,FUSION,ARCO LTD,5100295011,78.00,United Kingdom Energy Authority,United Kingdom Energy Authority
21/10/2013,PERSONAL PROTECTIVE EQUIPMENT,FUSION,ARCO LTD,5100295013,78.00,United Kingdom Energy Authority,United Kingdom Energy Authority
21/10/2013,PERSONAL PROTECTIVE EQUIPMENT,FUSION,ARCO LTD,5100295016,86.37,United Kingdom Energy Authority,United Kingdom Energy Authority
02/10/2013,PERSONAL PROTECTIVE EQUIPMENT,FUSION,ARCO LTD,5100294324,99.00,United Kingdom Energy Authority,United Kingdom Energy Authority
07/10/2013,PERSONAL PROTECTIVE EQUIPMENT,FUSION,ARCO LTD,5100294325,110.97,United Kingdom Energy Authority,United Kingdom Energy Authority
14/10/2013,PERSONAL PROTECTIVE EQUIPMENT,FUSION,ARCO LTD,5100294646,115.16,United Kingdom Energy Authority,United Kingdom Energy Authority
14/10/2013,PERSONAL PROTECTIVE EQUIPMENT,FUSION,ARCO LTD,5100294798,125.86,United Kingdom Energy Authority,United Kingdom Energy Authority
07/10/2013,PERSONAL PROTECTIVE EQUIPMENT,FUSION,ARCO LTD,5100294326,132.36,United Kingdom Energy Authority,United Kingdom Energy Authority
30/09/2013,PERSONAL PROTECTIVE EQUIPMENT,FUSION,ARCO LTD,5100293995,136.00,United Kingdom Energy Authority,United Kingdom Energy Authority
07/10/2013,PERSONAL PROTECTIVE EQUIPMENT,FUSION,ARCO LTD,5100294285,147.91,United Kingdom Energy Authority,United Kingdom Energy Authority
30/09/2013,PERSONAL PROTECTIVE EQUIPMENT,FUSION,ARCO LTD,5100294220,171.20,United Kingdom Energy Authority,United Kingdom Energy Authority
14/10/2013,PERSONAL PROTECTIVE EQUIPMENT,FUSION,ARCO LTD,5100294718,189.18,United Kingdom Energy Authority,United Kingdom Energy Authority
14/10/2013,PERSONAL PROTECTIVE EQUIPMENT,FUSION,ARCO LTD,5100294609,199.88,United Kingdom Energy Authority,United Kingdom Energy Authority
07/10/2013,PERSONAL PROTECTIVE EQUIPMENT,FUSION,ARCO LTD,5100294310,204.51,United Kingdom Energy Authority,United Kingdom Energy Authority
07/10/2013,PERSONAL PROTECTIVE EQUIPMENT,FUSION,ARCO LTD,5100294327,223.64,United Kingdom Energy Authority,United Kingdom Energy Authority
21/10/2013,PERSONAL PROTECTIVE EQUIPMENT,FUSION,ARCO LTD,5100295010,250.70,United Kingdom Energy Authority,United Kingdom Energy Authority
14/10/2013,PERSONAL PROTECTIVE EQUIPMENT,FUSION,ARCO LTD,5100294796,319.55,United Kingdom Energy Authority,United Kingdom Energy Authority
14/10/2013,PERSONAL PROTECTIVE EQUIPMENT,FUSION,ARCO LTD,5100294512,322.00,United Kingdom Energy Authority,United Kingdom Energy Authority
09/10/2013,PERSONAL PROTECTIVE EQUIPMENT,FUSION,ARCO LTD,5100293867,339.96,United Kingdom Energy Authority,United Kingdom Energy Authority
30/09/2013,PERSONAL PROTECTIVE EQUIPMENT,SUPPORT SERVICES,ARCO LTD,5100294131,359.23,United Kingdom Energy Authority,United Kingdom Energy Authority
21/10/2013,PERSONAL PROTECTIVE EQUIPMENT,SUPPORT SERVICES,ARCO LTD,5100295014,366.17,United Kingdom Energy Authority,United Kingdom Energy Authority
07/10/2013,PERSONAL PROTECTIVE EQUIPMENT,FUSION,ARCO LTD,5100294216,387.80,United Kingdom Energy Authority,United Kingdom Energy Authority
07/10/2013,PERSONAL PROTECTIVE EQUIPMENT,SUPPORT SERVICES,ARCO LTD,5100294328,470.45,United Kingdom Energy Authority,United Kingdom Energy Authority
14/10/2013,PERSONAL PROTECTIVE EQUIPMENT,FUSION,ARCO LTD,5100294645,570.00,United Kingdom Energy Authority,United Kingdom Energy Authority
07/10/2013,PERSONAL PROTECTIVE EQUIPMENT,FUSION,ARCO LTD,5100294133,1641.00,United Kingdom Energy Authority,United Kingdom Energy Authority
21/10/2013,PERSONAL PROTECTIVE EQUIPMENT,FUSION,ARCO LTD,5100295012,5985.00,United Kingdom Energy Authority,United Kingdom Energy Authority
21/10/2013,PERSONAL PROTECTIVE EQUIPMENT,FUSION,ARCO LTD,5100294983,12450.00,United Kingdom Energy Authority,United Kingdom Energy Authority
21/10/2013,STATIONERY,FUSION,ARTISAN LITHO PRINT  DESIGN,5100294940,120.00,United Kingdom Energy Authority,United Kingdom Energy Authority
21/10/2013,STATIONERY,FUSION,ARTISAN LITHO PRINT  DESIGN,5100294943,300.00,United Kingdom Energy Authority,United Kingdom Energy Authority
21/10/2013,STATIONERY,FUSION,ARTISAN LITHO PRINT  DESIGN,5100294936,530.00,United Kingdom Energy Authority,United Kingdom Energy Authority
14/10/2013,PLANT & EQUIPMENT,FUSION,ARVAL UK LIMITED,5100294710,271.62,United Kingdom Energy Authority,United Kingdom Energy Authority
30/09/2013,PLANT SPARES,FUSION,AS SCIENTIFIC PRODUCTS LTD,5100293338,299.40,United Kingdom Energy Authority,United Kingdom Energy Authority
30/09/2013,REPAIRS & MAINTENANCE,FUSION,ASAP Computer Services,5100294009,375.00,United Kingdom Energy Authority,United Kingdom Energy Authority
21/10/2013,INSPECTION SERVICES,SUPPORT SERVICES,ASHDALE ENGINEERING,5100294456,1650.00,United Kingdom Energy Authority,United Kingdom Energy Authority
14/10/2013,MATERIALS & SPARES,FUSION,ASTLES CONTROL SYSTEMS,5100294509,1097.00,United Kingdom Energy Authority,United Kingdom Energy Authority
14/10/2013,PLANT & EQUIPMENT,FUSION,ATLANTIC MICROWAVE LTD,5100294730,440.00,United Kingdom Energy Authority,United Kingdom Energy Authority
02/10/2013,PLANT SPARES,FUSION,AURIGA EUROPE PLC,5100294123,704.00,United Kingdom Energy Authority,United Kingdom Energy Authority
14/10/2013,CATERING,PROPERTY,AVENANCE PLC,5100294517,308.48,United Kingdom Energy Authority,United Kingdom Energy Authority
14/10/2013,CATERING,PROPERTY,AVENANCE PLC,5100294820,483.00,United Kingdom Energy Authority,United Kingdom Energy Authority
30/09/2013,CATERING,PROPERTY,AVENANCE PLC,5100294027,521.65,United Kingdom Energy Authority,United Kingdom Energy Authority
14/10/2013,CATERING,FUSION,AVENANCE PLC,5100294819,584.57,United Kingdom Energy Authority,United Kingdom Energy Authority
14/10/2013,CATERING,FUSION,AVENANCE PLC,5100294821,633.14,United Kingdom Energy Authority,United Kingdom Energy Authority
30/09/2013,CATERING,PROPERTY,AVENANCE PLC,5100294159,735.18,United Kingdom Energy Authority,United Kingdom Energy Authority
30/09/2013,CATERING,SUPPORT SERVICES,AVENANCE PLC,5100294158,5197.00,United Kingdom Energy Authority,United Kingdom Energy Authority
14/10/2013,CATERING,PROPERTY,AVENANCE PLC,5100294518,11052.26,United Kingdom Energy Authority,United Kingdom Energy Authority
21/10/2013,PRINTING & GRAPHICS,SUPPORT SERVICES,AWARDFRAMERS INTERNATIONAL,5100295062,204.00,United Kingdom Energy Authority,United Kingdom Energy Authority
07/10/2013,TREATED WATER,FUSION,B & V WATER TREATMENT,5100294296,1234.88,United Kingdom Energy Authority,United Kingdom Energy Authority
07/10/2013,TREATED WATER,FUSION,B & V WATER TREATMENT,5100294168,2767.00,United Kingdom Energy Authority,United Kingdom Energy Authority
03/10/2013,PRINTING & GRAPHICS,FUSION,Banbury Labels Ltd,1900058938,76.00,United Kingdom Energy Authority,United Kingdom Energy Authority
04/10/2013,MATERIALS & SPARES,FUSION,Baseline Technology Ltd,1900058942,870.00,United Kingdom Energy Authority,United Kingdom Energy Authority
30/09/2013,PLANT SPARES,FUSION,BATT CABLES PLC,5100294152,215.70,United Kingdom Energy Authority,United Kingdom Energy Authority
30/09/2013,PLANT SPARES,FUSION,BATT CABLES PLC,5100294151,970.00,United Kingdom Energy Authority,United Kingdom Energy Authority
07/10/2013,REPAIRS & MAINTENANCE,FUSION,BATT CABLES PLC,5100294368,187.00,United Kingdom Energy Authority,United Kingdom Energy Authority
07/10/2013,REPAIRS & MAINTENANCE,FUSION,BATT CABLES PLC,5100294178,353.20,United Kingdom Energy Authority,United Kingdom Energy Authority
21/10/2013,REPAIRS & MAINTENANCE,FUSION,BATT CABLES PLC,5100295140,796.80,United Kingdom Energy Authority,United Kingdom Energy Authority
21/10/2013,REPAIRS & MAINTENANCE,FUSION,BATT CABLES PLC,5100292976,1014.50,United Kingdom Energy Authority,United Kingdom Energy Authority
07/10/2013,REPAIRS & MAINTENANCE,FUSION,BATT CABLES PLC,5100294367,1685.80,United Kingdom Energy Authority,United Kingdom Energy Authority
21/10/2013,REPAIRS & MAINTENANCE,FUSION,BATT CABLES PLC,5100295141,1733.20,United Kingdom Energy Authority,United Kingdom Energy Authority
14/10/2013,PROFESSIONAL SERVICES,SUPPORT SERVICES,BDO LLP,5100294623,2307.00,United Kingdom Energy Authority,United Kingdom Energy Authority
14/10/2013,PLANT & EQUIPMENT,FUSION,BELLEVILLE SPRINGS LTD,5100294757,80.92,United Kingdom Energy Authority,United Kingdom Energy Authority
09/10/2013,PLANT SPARES,FUSION,BENTLEY SYSTEMS,5100293859,3568.00,United Kingdom Energy Authority,United Kingdom Energy Authority
14/10/2013,CONSUMABLES,FUSION,BERKSHIRE PALLETS LTD,5100294603,795.00,United Kingdom Energy Authority,United Kingdom Energy Authority
09/10/2013,MATERIALS & SPARES,FUSION,BERYLLIANT INC,5100293850,2022.52,United Kingdom Energy Authority,United Kingdom Energy Authority
03/10/2013,MATERIALS & SPARES,FUSION,Best Engineering Ltd,1900058933,2452.80,United Kingdom Energy Authority,United Kingdom Energy Authority
14/10/2013,CLEANING,FUSION,BIFFA RECYCLING,5100294827,17.50,United Kingdom Energy Authority,United Kingdom Energy Authority
14/10/2013,CLEANING,FUSION,BIFFA RECYCLING,5100294829,17.50,United Kingdom Energy Authority,United Kingdom Energy Authority
14/10/2013,CLEANING,FUSION,BIFFA RECYCLING,5100294831,17.50,United Kingdom Energy Authority,United Kingdom Energy Authority
14/10/2013,CLEANING,FUSION,BIFFA RECYCLING,5100294836,17.50,United Kingdom Energy Authority,United Kingdom Energy Authority
14/10/2013,CLEANING,FUSION,BIFFA RECYCLING,5100294837,17.50,United Kingdom Energy Authority,United Kingdom Energy Authority
14/10/2013,CLEANING,FUSION,BIFFA RECYCLING,5100294838,17.50,United Kingdom Energy Authority,United Kingdom Energy Authority
14/10/2013,CLEANING,FUSION,BIFFA RECYCLING,5100294834,101.00,United Kingdom Energy Authority,United Kingdom Energy Authority
14/10/2013,CLEANING,FUSION,BIFFA RECYCLING,5100294833,271.84,United Kingdom Energy Authority,United Kingdom Energy Authority
14/10/2013,CLEANING,FUSION,BIFFA RECYCLING,5100294835,336.43,United Kingdom Energy Authority,United Kingdom Energy Authority
14/10/2013,CLEANING,FUSION,BIFFA RECYCLING,5100294826,336.50,United Kingdom Energy Authority,United Kingdom Energy Authority
14/10/2013,CLEANING,FUSION,BIFFA RECYCLING,5100294824,518.00,United Kingdom Energy Authority,United Kingdom Energy Authority
14/10/2013,CLEANING,FUSION,BIFFA RECYCLING,5100294830,1145.50,United Kingdom Energy Authority,United Kingdom Energy Authority
17/10/2013,COMPENSATION AND LEGAL FEES,SUPPORT SERVICES,Birchall Blackburn Solicitors,1900059014,4500.00,United Kingdom Energy Authority,United Kingdom Energy Authority
14/10/2013,HIRED STAFF,FUSION,BLACK DIAMOND UMBRELLA LTD,5100294529,261.55,United Kingdom Energy Authority,United Kingdom Energy Authority
14/10/2013,HIRED STAFF,FUSION,BLACK DIAMOND UMBRELLA LTD,5100294528,799.80,United Kingdom Energy Authority,United Kingdom Energy Authority
14/10/2013,HIRED STAFF,FUSION,BLACK DIAMOND UMBRELLA LTD,5100294521,821.25,United Kingdom Energy Authority,United Kingdom Energy Authority
14/10/2013,HIRED STAFF,FUSION,BLACK DIAMOND UMBRELLA LTD,5100294522,821.25,United Kingdom Energy Authority,United Kingdom Energy Authority
14/10/2013,HIRED STAFF,FUSION,BLACK DIAMOND UMBRELLA LTD,5100294523,821.25,United Kingdom Energy Authority,United Kingdom Energy Authority
14/10/2013,HIRED STAFF,FUSION,BLACK DIAMOND UMBRELLA LTD,5100294524,821.25,United Kingdom Energy Authority,United Kingdom Energy Authority
14/10/2013,HIRED STAFF,FUSION,BLACK DIAMOND UMBRELLA LTD,5100294530,923.10,United Kingdom Energy Authority,United Kingdom Energy Authority
14/10/2013,HIRED STAFF,FUSION,BLACK DIAMOND UMBRELLA LTD,5100294526,933.10,United Kingdom Energy Authority,United Kingdom Energy Authority
14/10/2013,HIRED STAFF,FUSION,BLACK DIAMOND UMBRELLA LTD,5100294527,933.10,United Kingdom Energy Authority,United Kingdom Energy Authority
14/10/2013,HIRED STAFF,FUSION,BLACK DIAMOND UMBRELLA LTD,5100294525,999.75,United Kingdom Energy Authority,United Kingdom Energy Authority
14/10/2013,HIRED STAFF,FUSION,BLACK DIAMOND UMBRELLA LTD,5100294531,1153.88,United Kingdom Energy Authority,United Kingdom Energy Authority
14/10/2013,HIRED STAFF,FUSION,BLACK DIAMOND UMBRELLA LTD,5100294532,1153.88,United Kingdom Energy Authority,United Kingdom Energy Authority
14/10/2013,HIRED STAFF,FUSION,BLACK DIAMOND UMBRELLA LTD,5100294519,3915.40,United Kingdom Energy Authority,United Kingdom Energy Authority
14/10/2013,HIRED STAFF,FUSION,BLACK DIAMOND UMBRELLA LTD,5100294520,4503.97,United Kingdom Energy Authority,United Kingdom Energy Authority
14/10/2013,LAUNDRY,FUSION,BLUEBELL LAUNDRY,5100294458,117.60,United Kingdom Energy Authority,United Kingdom Energy Authority
21/10/2013,PRINTING & GRAPHICS,FUSION,BLUEPRINT IMAGING LTD,5100295035,775.00,United Kingdom Energy Authority,United Kingdom Energy Authority
21/10/2013,PRINTING & GRAPHICS,FUSION,BLUEPRINT IMAGING LTD,5100295034,798.00,United Kingdom Energy Authority,United Kingdom Energy Authority
14/10/2013,PROFESSIONAL SERVICES,FUSION,BNS NUCLEAR SERVICES,5100294323,59957.72,United Kingdom Energy Authority,United Kingdom Energy Authority
14/10/2013,GASES,FUSION,BOC LTD,5100294039,3.90,United Kingdom Energy Authority,United Kingdom Energy Authority
14/10/2013,GASES,FUSION,BOC LTD,5100293981,4.72,United Kingdom Energy Authority,United Kingdom Energy Authority
21/10/2013,GASES,FUSION,BOC LTD,5100295156,7.80,United Kingdom Energy Authority,United Kingdom Energy Authority
14/10/2013,GASES,FUSION,BOC LTD,5100293459,18.24,United Kingdom Energy Authority,United Kingdom Energy Authority
14/10/2013,GASES,FUSION,BOC LTD,5100294595,18.24,United Kingdom Energy Authority,United Kingdom Energy Authority
09/10/2013,GASES,FUSION,BOC LTD,5100293983,31.20,United Kingdom Energy Authority,United Kingdom Energy Authority
23/10/2013,GASES,FUSION,BOC LTD,5100294882,31.20,United Kingdom Energy Authority,United Kingdom Energy Authority
23/10/2013,GASES,FUSION,BOC LTD,5100295153,46.80,United Kingdom Energy Authority,United Kingdom Energy Authority
14/10/2013,GASES,FUSION,BOC LTD,5100294597,54.72,United Kingdom Energy Authority,United Kingdom Energy Authority
07/10/2013,GASES,FUSION,BOC LTD,5100293987,72.70,United Kingdom Energy Authority,United Kingdom Energy Authority
14/10/2013,GASES,FUSION,BOC LTD,5100294580,75.03,United Kingdom Energy Authority,United Kingdom Energy Authority
14/10/2013,GASES,PROPERTY,BOC LTD,5100294583,76.84,United Kingdom Energy Authority,United Kingdom Energy Authority
21/10/2013,GASES,PROPERTY,BOC LTD,5100294888,82.20,United Kingdom Energy Authority,United Kingdom Energy Authority
14/10/2013,GASES,PROPERTY,BOC LTD,5100294579,82.20,United Kingdom Energy Authority,United Kingdom Energy Authority
14/10/2013,GASES,FUSION,BOC LTD,5100294598,111.70,United Kingdom Energy Authority,United Kingdom Energy Authority
21/10/2013,GASES,FUSION,BOC LTD,5100294875,119.58,United Kingdom Energy Authority,United Kingdom Energy Authority
16/10/2013,GASES,FUSION,BOC LTD,5100294590,153.71,United Kingdom Energy Authority,United Kingdom Energy Authority
14/10/2013,GASES,FUSION,BOC LTD,5100294602,198.14,United Kingdom Energy Authority,United Kingdom Energy Authority
14/10/2013,GASES,FUSION,BOC LTD,5100294592,215.33,United Kingdom Energy Authority,United Kingdom Energy Authority
14/10/2013,GASES,FUSION,BOC LTD,5100294594,231.19,United Kingdom Energy Authority,United Kingdom Energy Authority
14/10/2013,GASES,FUSION,BOC LTD,5100293460,236.88,United Kingdom Energy Authority,United Kingdom Energy Authority
14/10/2013,GASES,FUSION,BOC LTD,5100294839,243.05,United Kingdom Energy Authority,United Kingdom Energy Authority
14/10/2013,GASES,FUSION,BOC LTD,5100294601,246.58,United Kingdom Energy Authority,United Kingdom Energy Authority
09/10/2013,GASES,FUSION,BOC LTD,5100294582,247.08,United Kingdom Energy Authority,United Kingdom Energy Authority
14/10/2013,GASES,FUSION,BOC LTD,5100294588,416.53,United Kingdom Energy Authority,United Kingdom Energy Authority
14/10/2013,GASES,FUSION,BOC LTD,5100294607,1060.44,United Kingdom Energy Authority,United Kingdom Energy Authority
30/09/2013,GASES,FUSION,BOC LTD,5100293985,1548.75,United Kingdom Energy Authority,United Kingdom Energy Authority
30/09/2013,GASES,FUSION,BOC LTD,5100293988,2494.42,United Kingdom Energy Authority,United Kingdom Energy Authority
30/09/2013,GASES,SUPPORT SERVICES,BOC LTD,5100293980,4120.00,United Kingdom Energy Authority,United Kingdom Energy Authority
14/10/2013,GASES,FUSION,BOC LTD,5100294581,5850.00,United Kingdom Energy Authority,United Kingdom Energy Authority
23/10/2013,GASES,FUSION,BOC LTD,5100294589,20794.80,United Kingdom Energy Authority,United Kingdom Energy Authority
23/10/2013,GASES,FUSION,BOC LTD,5100294637,40997.27,United Kingdom Energy Authority,United Kingdom Energy Authority
07/10/2013,GASES,FUSION,BOC LTD,5100293559,49921.95,United Kingdom Energy Authority,United Kingdom Energy Authority
07/10/2013,MATERIALS & SPARES,FUSION,BODYCOTE HEAT TREATMENTS LTD,5100294356,1101.39,United Kingdom Energy Authority,United Kingdom Energy Authority
18/10/2013,COMPENSATION AND LEGAL FEES,SUPPORT SERVICES,Boyes Turner LLP,1900059029,2252.10,United Kingdom Energy Authority,United Kingdom Energy Authority
04/10/2013,COMPENSATION AND LEGAL FEES,SUPPORT SERVICES,Boyes Turner LLP,1900058944,3500.00,United Kingdom Energy Authority,United Kingdom Energy Authority
04/10/2013,COMPENSATION AND LEGAL FEES,SUPPORT SERVICES,Boyes Turner LLP,1900058943,43521.94,United Kingdom Energy Authority,United Kingdom Energy Authority
30/09/2013,PLANT SPARES,FUSION,BRITE PRECISION,5100294167,8265.96,United Kingdom Energy Authority,United Kingdom Energy Authority
07/10/2013,PLANT SPARES,FUSION,BRITE PRECISION,5100294469,8265.96,United Kingdom Energy Authority,United Kingdom Energy Authority
14/10/2013,UTILITIES/ELECTRICITY,PROPERTY,BRITISH GAS BUSINESS,5100294430,-140.84,United Kingdom Energy Authority,United Kingdom Energy Authority
14/10/2013,UTILITIES/ELECTRICITY,PROPERTY,BRITISH GAS BUSINESS,5100294428,-108.48,United Kingdom Energy Authority,United Kingdom Energy Authority
14/10/2013,UTILITIES/ELECTRICITY,PROPERTY,BRITISH GAS BUSINESS,5100294421,-71.31,United Kingdom Energy Authority,United Kingdom Energy Authority
14/10/2013,UTILITIES/ELECTRICITY,PROPERTY,BRITISH GAS BUSINESS,5100294423,-69.98,United Kingdom Energy Authority,United Kingdom Energy Authority
14/10/2013,UTILITIES/ELECTRICITY,PROPERTY,BRITISH GAS BUSINESS,5100294417,-68.37,United Kingdom Energy Authority,United Kingdom Energy Authority
14/10/2013,UTILITIES/ELECTRICITY,PROPERTY,BRITISH GAS BUSINESS,5100294419,-68.10,United Kingdom Energy Authority,United Kingdom Energy Authority
21/10/2013,UTILITIES/ELECTRICITY,PROPERTY,BRITISH GAS BUSINESS,5100294902,21.42,United Kingdom Energy Authority,United Kingdom Energy Authority
21/10/2013,UTILITIES/ELECTRICITY,PROPERTY,BRITISH GAS BUSINESS,5100294896,95.64,United Kingdom Energy Authority,United Kingdom Energy Authority
21/10/2013,UTILITIES/ELECTRICITY,PROPERTY,BRITISH GAS BUSINESS,5100294906,219.04,United Kingdom Energy Authority,United Kingdom Energy Authority
21/10/2013,UTILITIES/ELECTRICITY,PROPERTY,BRITISH GAS BUSINESS,5100294908,277.81,United Kingdom Energy Authority,United Kingdom Energy Authority
21/10/2013,UTILITIES/ELECTRICITY,PROPERTY,BRITISH GAS BUSINESS,5100294899,421.80,United Kingdom Energy Authority,United Kingdom Energy Authority
21/10/2013,UTILITIES/ELECTRICITY,PROPERTY,BRITISH GAS BUSINESS,5100294903,483.37,United Kingdom Energy Authority,United Kingdom Energy Authority
21/10/2013,UTILITIES/ELECTRICITY,PROPERTY,BRITISH GAS BUSINESS,5100294900,507.86,United Kingdom Energy Authority,United Kingdom Energy Authority
21/10/2013,UTILITIES/ELECTRICITY,PROPERTY,BRITISH GAS BUSINESS,5100294901,667.11,United Kingdom Energy Authority,United Kingdom Energy Authority
14/10/2013,UTILITIES/ELECTRICITY,PROPERTY,BRITISH GAS BUSINESS,5100294433,1229.34,United Kingdom Energy Authority,United Kingdom Energy Authority
14/10/2013,REPAIRS & MAINTENANCE,FUSION,BSA MACHINE TOOLS LTD,5100294154,389.50,United Kingdom Energy Authority,United Kingdom Energy Authority
21/10/2013,PROFESSIONAL SERVICES,PROPERTY,BSP CONSULTING,5100294394,2265.00,United Kingdom Energy Authority,United Kingdom Energy Authority
21/10/2013,MATERIALS & SPARES,FUSION,BSS OXFORD,5100294962,6.53,United Kingdom Energy Authority,United Kingdom Energy Authority
14/10/2013,MATERIALS & SPARES,FUSION,BSS OXFORD,5100294482,11.97,United Kingdom Energy Authority,United Kingdom Energy Authority
16/10/2013,MATERIALS & SPARES,FUSION,BSS OXFORD,5100294786,21.70,United Kingdom Energy Authority,United Kingdom Energy Authority
21/10/2013,MATERIALS & SPARES,FUSION,BSS OXFORD,5100295138,66.46,United Kingdom Energy Authority,United Kingdom Energy Authority
21/10/2013,MATERIALS & SPARES,FUSION,BSS OXFORD,5100295137,254.86,United Kingdom Energy Authority,United Kingdom Energy Authority
30/09/2013,MATERIALS & SPARES,FUSION,BSS OXFORD,5100294118,396.81,United Kingdom Energy Authority,United Kingdom Energy Authority
14/10/2013,MATERIALS & SPARES,FUSION,BSS OXFORD,5100294783,960.30,United Kingdom Energy Authority,United Kingdom Energy Authority
07/10/2013,PERSONAL PROTECTIVE EQUIPMENT,FUSION,BUCK & HICKMAN LTD,5100294361,21.49,United Kingdom Energy Authority,United Kingdom Energy Authority
30/09/2013,PERSONAL PROTECTIVE EQUIPMENT,FUSION,BUCK & HICKMAN LTD,5100293147,22.18,United Kingdom Energy Authority,United Kingdom Energy Authority
23/10/2013,PERSONAL PROTECTIVE EQUIPMENT,FUSION,BUCK & HICKMAN LTD,5100294134,427.67,United Kingdom Energy Authority,United Kingdom Energy Authority
21/10/2013,MATERIALS & SPARES,FUSION,BUDGET FORKTRUCKS LTD,5100294878,29.00,United Kingdom Energy Authority,United Kingdom Energy Authority
14/10/2013,MATERIALS & SPARES,PROPERTY,BUDGET FORKTRUCKS LTD,5100294683,232.00,United Kingdom Energy Authority,United Kingdom Energy Authority
14/10/2013,MATERIALS & SPARES,PROPERTY,BUDGET FORKTRUCKS LTD,5100294001,268.67,United Kingdom Energy Authority,United Kingdom Energy Authority
09/10/2013,MATERIALS & SPARES,FUSION,BUDGET FORKTRUCKS LTD,5100294003,312.00,United Kingdom Energy Authority,United Kingdom Energy Authority
23/10/2013,MATERIALS & SPARES,FUSION,BUDGET FORKTRUCKS LTD,5100294004,342.33,United Kingdom Energy Authority,United Kingdom Energy Authority
14/10/2013,MATERIALS & SPARES,FUSION,BUDGET FORKTRUCKS LTD,5100294000,390.00,United Kingdom Energy Authority,United Kingdom Energy Authority
21/10/2013,MATERIALS & SPARES,FUSION,BUDGET FORKTRUCKS LTD,5100294811,402.00,United Kingdom Energy Authority,United Kingdom Energy Authority
14/10/2013,MATERIALS & SPARES,PROPERTY,BUDGET FORKTRUCKS LTD,5100294002,1092.00,United Kingdom Energy Authority,United Kingdom Energy Authority
14/10/2013,MATERIALS & SPARES,FUSION,BUDGET FORKTRUCKS LTD,5100294685,1590.00,United Kingdom Energy Authority,United Kingdom Energy Authority
23/10/2013,PLANT SPARES,FUSION,BURCKHARDT COMPRESSION UK LTD,5100295217,1950.28,United Kingdom Energy Authority,United Kingdom Energy Authority
16/10/2013,CATERING SUPPLIES,SUPPORT SERVICES,BWT UK LTD,5100294626,180.00,United Kingdom Energy Authority,United Kingdom Energy Authority
21/10/2013,CATERING SUPPLIES,SUPPORT SERVICES,BWT UK LTD,5100294629,763.25,United Kingdom Energy Authority,United Kingdom Energy Authority
14/10/2013,PRINTING & GRAPHICS,FUSION,Calver Ltd,1900058995,529.00,United Kingdom Energy Authority,United Kingdom Energy Authority
30/09/2013,TRAINING COURSE FEES,SUPPORT SERVICES,CANON FIRE PROTECTION,5100293993,540.00,United Kingdom Energy Authority,United Kingdom Energy Authority
14/10/2013,TRAVEL,SUPPORT SERVICES,CAPITA BUSINESS TRAVEL,5100294534,33746.99,United Kingdom Energy Authority,United Kingdom Energy Authority
21/10/2013,CONSUMABLES,FUSION,CARILLON INDUSTRIAL SERVICES LTD,5100295161,12.90,United Kingdom Energy Authority,United Kingdom Energy Authority
30/09/2013,CONSUMABLES,FUSION,CARILLON INDUSTRIAL SERVICES LTD,5100294105,17.35,United Kingdom Energy Authority,United Kingdom Energy Authority
07/10/2013,CONSUMABLES,FUSION,CARILLON INDUSTRIAL SERVICES LTD,5100294381,22.57,United Kingdom Energy Authority,United Kingdom Energy Authority
21/10/2013,CONSUMABLES,FUSION,CARILLON INDUSTRIAL SERVICES LTD,5100295171,31.60,United Kingdom Energy Authority,United Kingdom Energy Authority
21/10/2013,CONSUMABLES,FUSION,CARILLON INDUSTRIAL SERVICES LTD,5100295193,31.60,United Kingdom Energy Authority,United Kingdom Energy Authority
21/10/2013,CONSUMABLES,FUSION,CARILLON INDUSTRIAL SERVICES LTD,5100295192,37.64,United Kingdom Energy Authority,United Kingdom Energy Authority
09/10/2013,CONSUMABLES,FUSION,CARILLON INDUSTRIAL SERVICES LTD,5100294486,38.59,United Kingdom Energy Authority,United Kingdom Energy Authority
09/10/2013,CONSUMABLES,FUSION,CARILLON INDUSTRIAL SERVICES LTD,5100294382,107.97,United Kingdom Energy Authority,United Kingdom Energy Authority
09/10/2013,CONSUMABLES,FUSION,CARILLON INDUSTRIAL SERVICES LTD,5100294485,160.28,United Kingdom Energy Authority,United Kingdom Energy Authority
21/10/2013,CONSUMABLES,FUSION,CARILLON INDUSTRIAL SERVICES LTD,5100295164,182.61,United Kingdom Energy Authority,United Kingdom Energy Authority
07/10/2013,LEGAL FEES,SUPPORT SERVICES,CATER LEYDON MILLARD LTD,5100294500,140.00,United Kingdom Energy Authority,United Kingdom Energy Authority
07/10/2013,LEGAL FEES,SUPPORT SERVICES,CATER LEYDON MILLARD LTD,5100294501,507.50,United Kingdom Energy Authority,United Kingdom Energy Authority
07/10/2013,LEGAL FEES,SUPPORT SERVICES,CATER LEYDON MILLARD LTD,5100294502,3815.00,United Kingdom Energy Authority,United Kingdom Energy Authority
14/10/2013,MATERIALS & SPARES,FUSION,CBL ELECTRIC VEHICLES LTD,5100294643,113.96,United Kingdom Energy Authority,United Kingdom Energy Authority
14/10/2013,MATERIALS & SPARES,FUSION,CBL ELECTRIC VEHICLES LTD,5100294644,139.60,United Kingdom Energy Authority,United Kingdom Energy Authority
21/10/2013,MATERIALS & SPARES,FUSION,CBL ELECTRIC VEHICLES LTD,5100295075,192.00,United Kingdom Energy Authority,United Kingdom Energy Authority
23/10/2013,MATERIALS & SPARES,FUSION,CD measurements Ltd,5100295145,220.00,United Kingdom Energy Authority,United Kingdom Energy Authority
21/10/2013,MATERIALS & SPARES,FUSION,CD measurements Ltd,5100295144,606.00,United Kingdom Energy Authority,United Kingdom Energy Authority
21/10/2013,CONSUMABLES,FUSION,CENTRAL METAL & ALLOYS LTD,5100295125,113.50,United Kingdom Energy Authority,United Kingdom Energy Authority
23/10/2013,MATERIALS & SPARES,FUSION,CHANNEL SAFETY SERVICES LTD,5100294035,1500.00,United Kingdom Energy Authority,United Kingdom Energy Authority
14/10/2013,MATERIALS: HAZARDOUS,FUSION,CHEMTECH WASTE MANAGEMENT,5100294731,990.00,United Kingdom Energy Authority,United Kingdom Energy Authority
14/10/2013,MATERIALS: HAZARDOUS,FUSION,CHEMTECH WASTE MANAGEMENT,5100294014,7123.00,United Kingdom Energy Authority,United Kingdom Energy Authority
23/10/2013,MATERIALS & SPARES,FUSION,CITY ENGINEERING LTD,5100292293,1414.89,United Kingdom Energy Authority,United Kingdom Energy Authority
14/10/2013,LAUNDRY,FUSION,CLEAN LINEN SERVICES LTD,5100294484,64.72,United Kingdom Energy Authority,United Kingdom Energy Authority
07/10/2013,CATERING,PROPERTY,CLEANSING SERVICE GROUP LTD,5100294126,54.60,United Kingdom Energy Authority,United Kingdom Energy Authority
23/10/2013,CATERING,PROPERTY,CLEANSING SERVICE GROUP LTD,5100295160,54.60,United Kingdom Energy Authority,United Kingdom Energy Authority
07/10/2013,CATERING,PROPERTY,CLEANSING SERVICE GROUP LTD,5100294125,74.30,United Kingdom Energy Authority,United Kingdom Energy Authority
23/10/2013,CATERING,PROPERTY,CLEANSING SERVICE GROUP LTD,5100295158,74.30,United Kingdom Energy Authority,United Kingdom Energy Authority
21/10/2013,UTILITIES/GAS,PROPERTY,COFELY LTD,5100295057,189.73,United Kingdom Energy Authority,United Kingdom Energy Authority
14/10/2013,UTILITIES/GAS,PROPERTY,COFELY LTD,5100294729,240.72,United Kingdom Energy Authority,United Kingdom Energy Authority
21/10/2013,UTILITIES/GAS,PROPERTY,COFELY LTD,5100295054,3123.89,United Kingdom Energy Authority,United Kingdom Energy Authority
14/10/2013,UTILITIES/GAS,PROPERTY,COFELY LTD,5100294728,3963.38,United Kingdom Energy Authority,United Kingdom Energy Authority
14/10/2013,UTILITIES/GAS,PROPERTY,COFELY LTD,5100294403,20044.73,United Kingdom Energy Authority,United Kingdom Energy Authority
14/10/2013,UTILITIES/GAS,PROPERTY,COFELY LTD,5100294404,26582.50,United Kingdom Energy Authority,United Kingdom Energy Authority
10/10/2013,COMPENSATION AND LEGAL FEES,SUPPORT SERVICES,DWF LLP,1900058979,4926.75,United Kingdom Energy Authority,United Kingdom Energy Authority
10/10/2013,COMPENSATION AND LEGAL FEES,SUPPORT SERVICES,DWF LLP,1900058978,7533.55,United Kingdom Energy Authority,United Kingdom Energy Authority
30/09/2013,MATERIALS & SPARES,FUSION,COMPLETE PCB SERVICES LTD,5100294038,72.66,United Kingdom Energy Authority,United Kingdom Energy Authority
14/10/2013,MATERIALS & SPARES,FUSION,COMPLETE PCB SERVICES LTD,5100294633,137.00,United Kingdom Energy Authority,United Kingdom Energy Authority
30/09/2013,MATERIALS & SPARES,FUSION,COMPLETE PCB SERVICES LTD,5100294037,1912.50,United Kingdom Energy Authority,United Kingdom Energy Authority
30/09/2013,PLANT SPARES,FUSION,CONDEC INDUSTRIAL MAINTENANCE,5100293994,195.00,United Kingdom Energy Authority,United Kingdom Energy Authority
30/09/2013,PLANT SPARES,FUSION,CONDEC INDUSTRIAL MAINTENANCE,5100293992,245.00,United Kingdom Energy Authority,United Kingdom Energy Authority
14/10/2013,PLANT SPARES,FUSION,CONDEC INDUSTRIAL MAINTENANCE,5100294711,695.00,United Kingdom Energy Authority,United Kingdom Energy Authority
14/10/2013,PLANT SPARES,FUSION,CONDEC INDUSTRIAL MAINTENANCE,5100294712,770.00,United Kingdom Energy Authority,United Kingdom Energy Authority
14/10/2013,REPAIRS & MAINTENANCE,FUSION,CRANE CARE LTD,5100294510,600.00,United Kingdom Energy Authority,United Kingdom Energy Authority
14/10/2013,REPAIRS & MAINTENANCE,FUSION,CRANE CARE LTD,5100294511,3900.00,United Kingdom Energy Authority,United Kingdom Energy Authority
14/10/2013,UNIVERSITY PLACEMENT,FUSION,CRANFIELD UNIVERSITY,5100294658,1700.00,United Kingdom Energy Authority,United Kingdom Energy Authority
21/10/2013,MATERIALS & SPARES,FUSION,CROMWELL LTD,5100295080,22.78,United Kingdom Energy Authority,United Kingdom Energy Authority
14/10/2013,MATERIALS & SPARES,FUSION,CROMWELL LTD,5100294720,22.79,United Kingdom Energy Authority,United Kingdom Energy Authority
21/10/2013,MATERIALS & SPARES,FUSION,CROMWELL LTD,5100295079,62.10,United Kingdom Energy Authority,United Kingdom Energy Authority
21/10/2013,MATERIALS & SPARES,FUSION,CROMWELL LTD,5100295076,71.49,United Kingdom Energy Authority,United Kingdom Energy Authority
14/10/2013,MATERIALS & SPARES,FUSION,CROMWELL LTD,5100294719,90.00,United Kingdom Energy Authority,United Kingdom Energy Authority
21/10/2013,MATERIALS & SPARES,FUSION,CROMWELL LTD,5100295078,90.00,United Kingdom Energy Authority,United Kingdom Energy Authority
14/10/2013,MATERIALS & SPARES,FUSION,CROMWELL LTD,5100294721,92.77,United Kingdom Energy Authority,United Kingdom Energy Authority
07/10/2013,MATERIALS & SPARES,FUSION,CROMWELL LTD,5100294481,105.43,United Kingdom Energy Authority,United Kingdom Energy Authority
02/10/2013,MATERIALS & SPARES,FUSION,CROMWELL LTD,5100294113,106.40,United Kingdom Energy Authority,United Kingdom Energy Authority
14/10/2013,MATERIALS & SPARES,FUSION,CROMWELL LTD,5100293550,107.72,United Kingdom Energy Authority,United Kingdom Energy Authority
21/10/2013,MATERIALS & SPARES,FUSION,CROMWELL LTD,5100295077,131.99,United Kingdom Energy Authority,United Kingdom Energy Authority
07/10/2013,MATERIALS & SPARES,FUSION,CROMWELL LTD,5100294115,172.65,United Kingdom Energy Authority,United Kingdom Energy Authority
14/10/2013,MATERIALS & SPARES,FUSION,CROMWELL LTD,5100294723,172.99,United Kingdom Energy Authority,United Kingdom Energy Authority
14/10/2013,MATERIALS & SPARES,FUSION,CROMWELL LTD,5100294722,192.00,United Kingdom Energy Authority,United Kingdom Energy Authority
30/09/2013,MATERIALS & SPARES,FUSION,CROMWELL LTD,5100294116,283.50,United Kingdom Energy Authority,United Kingdom Energy Authority
30/09/2013,MATERIALS & SPARES,FUSION,CROMWELL LTD,5100293843,370.80,United Kingdom Energy Authority,United Kingdom Energy Authority
14/10/2013,MATERIALS & SPARES,FUSION,CROMWELL LTD,5100294480,629.93,United Kingdom Energy Authority,United Kingdom Energy Authority
23/10/2013,PROFESSIONAL SERVICES,SUPPORT SERVICES,CSC COMPUTER SERVICES,5100295196,3484.91,United Kingdom Energy Authority,United Kingdom Energy Authority
23/10/2013,PROFESSIONAL SERVICES,SUPPORT SERVICES,CSC COMPUTER SERVICES,5100294815,13599.40,United Kingdom Energy Authority,United Kingdom Energy Authority
23/10/2013,PROFESSIONAL SERVICES,SUPPORT SERVICES,CSC COMPUTER SERVICES,5100294814,22891.12,United Kingdom Energy Authority,United Kingdom Energy Authority
30/09/2013,PLANT SPARES,FUSION,CSE INDUSTRIAL ELECTRICAL DISTRIBUT,5100294010,128.20,United Kingdom Energy Authority,United Kingdom Energy Authority
16/10/2013,PLANT SPARES,FUSION,CSE INDUSTRIAL ELECTRICAL DISTRIBUT,5100294679,648.00,United Kingdom Energy Authority,United Kingdom Energy Authority
07/10/2013,PLANT SPARES,FUSION,CUTWEL LTD,5100293999,296.00,United Kingdom Energy Authority,United Kingdom Energy Authority
21/10/2013,CONSUMABLES,FUSION,CYFAS SYSTEMS LTD,5100295082,323.00,United Kingdom Energy Authority,United Kingdom Energy Authority
14/10/2013,CONSUMABLES,FUSION,CYFAS SYSTEMS LTD,5100293831,3260.00,United Kingdom Energy Authority,United Kingdom Energy Authority
07/10/2013,PLANT & EQUIPMENT,FUSION,DAVIS INDUSTRIAL PLASTICS,5100294313,60.17,United Kingdom Energy Authority,United Kingdom Energy Authority
14/10/2013,PROFESSIONAL SERVICES,FUSION,DCL FUSION,5100294676,430.00,United Kingdom Energy Authority,United Kingdom Energy Authority
14/10/2013,PROFESSIONAL SERVICES,FUSION,DCL FUSION,5100294758,451.56,United Kingdom Energy Authority,United Kingdom Energy Authority
14/10/2013,TRAINING COURSE FEES,FUSION,Desktop Engineering Ltd,1900058994,600.00,United Kingdom Energy Authority,United Kingdom Energy Authority
30/09/2013,PROFESSIONAL SERVICES,SUPPORT SERVICES,DISCLOSURE SCOTLAND,5100294007,150.00,United Kingdom Energy Authority,United Kingdom Energy Authority
21/10/2013,PROFESSIONAL SERVICES,SUPPORT SERVICES,DISCLOSURE SCOTLAND,5100295151,225.00,United Kingdom Energy Authority,United Kingdom Energy Authority
21/10/2013,PAYROLL BUREAU,SUPPORT SERVICES,DOUNREAY SITE RESTORATION LTD,5100295018,800.00,United Kingdom Energy Authority,United Kingdom Energy Authority
23/10/2013,MATERIALS & SPARES,FUSION,Drainstore Ltd,1900059042,640.78,United Kingdom Energy Authority,United Kingdom Energy Authority
02/10/2013,MATERIALS & SPARES,FUSION,DSM,5100294284,3691.39,United Kingdom Energy Authority,United Kingdom Energy Authority
07/10/2013,MATERIALS & SPARES,FUSION,DURBIN METAL INDUSTRIES LTD,5100294387,13.90,United Kingdom Energy Authority,United Kingdom Energy Authority
14/10/2013,MATERIALS & SPARES,FUSION,DURBIN METAL INDUSTRIES LTD,5100294727,14.50,United Kingdom Energy Authority,United Kingdom Energy Authority
30/09/2013,MATERIALS & SPARES,FUSION,DURBIN METAL INDUSTRIES LTD,5100294076,20.00,United Kingdom Energy Authority,United Kingdom Energy Authority
30/09/2013,MATERIALS & SPARES,FUSION,DURBIN METAL INDUSTRIES LTD,5100294079,24.50,United Kingdom Energy Authority,United Kingdom Energy Authority
14/10/2013,MATERIALS & SPARES,FUSION,DURBIN METAL INDUSTRIES LTD,5100294399,32.10,United Kingdom Energy Authority,United Kingdom Energy Authority
14/10/2013,MATERIALS & SPARES,FUSION,DURBIN METAL INDUSTRIES LTD,5100294388,37.00,United Kingdom Energy Authority,United Kingdom Energy Authority
21/10/2013,MATERIALS & SPARES,FUSION,DURBIN METAL INDUSTRIES LTD,5100293549,38.25,United Kingdom Energy Authority,United Kingdom Energy Authority
21/10/2013,MATERIALS & SPARES,FUSION,DURBIN METAL INDUSTRIES LTD,5100295133,43.15,United Kingdom Energy Authority,United Kingdom Energy Authority
02/10/2013,MATERIALS & SPARES,FUSION,DURBIN METAL INDUSTRIES LTD,5100294175,50.00,United Kingdom Energy Authority,United Kingdom Energy Authority
07/10/2013,MATERIALS & SPARES,FUSION,DURBIN METAL INDUSTRIES LTD,5100294322,55.00,United Kingdom Energy Authority,United Kingdom Energy Authority
30/09/2013,MATERIALS & SPARES,FUSION,DURBIN METAL INDUSTRIES LTD,5100294080,63.00,United Kingdom Energy Authority,United Kingdom Energy Authority
30/09/2013,MATERIALS & SPARES,FUSION,DURBIN METAL INDUSTRIES LTD,5100294077,104.00,United Kingdom Energy Authority,United Kingdom Energy Authority
14/10/2013,MATERIALS & SPARES,FUSION,DURBIN METAL INDUSTRIES LTD,5100294604,110.10,United Kingdom Energy Authority,United Kingdom Energy Authority
30/09/2013,MATERIALS & SPARES,FUSION,DURBIN METAL INDUSTRIES LTD,5100294078,111.80,United Kingdom Energy Authority,United Kingdom Energy Authority
30/09/2013,MATERIALS & SPARES,FUSION,DURBIN METAL INDUSTRIES LTD,5100294081,118.50,United Kingdom Energy Authority,United Kingdom Energy Authority
07/10/2013,MATERIALS & SPARES,FUSION,DURBIN METAL INDUSTRIES LTD,5100294321,163.90,United Kingdom Energy Authority,United Kingdom Energy Authority
14/10/2013,MATERIALS & SPARES,FUSION,DURBIN METAL INDUSTRIES LTD,5100294508,197.40,United Kingdom Energy Authority,United Kingdom Energy Authority
07/10/2013,MATERIALS & SPARES,FUSION,DURBIN METAL INDUSTRIES LTD,5100294397,199.95,United Kingdom Energy Authority,United Kingdom Energy Authority
30/09/2013,MATERIALS & SPARES,FUSION,DURBIN METAL INDUSTRIES LTD,5100294075,365.55,United Kingdom Energy Authority,United Kingdom Energy Authority
07/10/2013,TRAINING COURSE FEES,FUSION,EA TECHNOLOGY LTD,5100294389,495.00,United Kingdom Energy Authority,United Kingdom Energy Authority
09/10/2013,UTILITIES/ELECTRICITY,PROPERTY,EDF ENERGY,5100294494,402.69,United Kingdom Energy Authority,United Kingdom Energy Authority
09/10/2013,UTILITIES/ELECTRICITY,PROPERTY,EDF ENERGY,5100294489,783.52,United Kingdom Energy Authority,United Kingdom Energy Authority
09/10/2013,UTILITIES/ELECTRICITY,PROPERTY,EDF ENERGY,5100294493,1708.79,United Kingdom Energy Authority,United Kingdom Energy Authority
14/10/2013,UTILITIES/ELECTRICITY,PROPERTY,EDF ENERGY,5100294700,2026.47,United Kingdom Energy Authority,United Kingdom Energy Authority
14/10/2013,UTILITIES/ELECTRICITY,PROPERTY,EDF ENERGY,5100294699,2078.95,United Kingdom Energy Authority,United Kingdom Energy Authority
09/10/2013,UTILITIES/ELECTRICITY,PROPERTY,EDF ENERGY,5100294491,2835.19,United Kingdom Energy Authority,United Kingdom Energy Authority
09/10/2013,UTILITIES/ELECTRICITY,PROPERTY,EDF ENERGY,5100294492,9787.35,United Kingdom Energy Authority,United Kingdom Energy Authority
09/10/2013,UTILITIES/ELECTRICITY,PROPERTY,EDF ENERGY,5100294490,26041.70,United Kingdom Energy Authority,United Kingdom Energy Authority
09/10/2013,UTILITIES/ELECTRICITY,PROPERTY,EDF ENERGY,5100294488,31383.35,United Kingdom Energy Authority,United Kingdom Energy Authority
14/10/2013,UTILITIES/ELECTRICITY,FUSION,EDF ENERGY,5100294496,68906.59,United Kingdom Energy Authority,United Kingdom Energy Authority
07/10/2013,UTILITIES/ELECTRICITY,FUSION,EDF ENERGY,5100294495,344085.80,United Kingdom Energy Authority,United Kingdom Energy Authority
30/09/2013,MATERIALS & SPARES,FUSION,EDMUND OPTICS LTD,5100294127,56.00,United Kingdom Energy Authority,United Kingdom Energy Authority
14/10/2013,MATERIALS & SPARES,FUSION,EDMUND OPTICS LTD,5100294854,131.50,United Kingdom Energy Authority,United Kingdom Energy Authority
30/09/2013,MATERIALS & SPARES,FUSION,EDMUND OPTICS LTD,5100294107,500.00,United Kingdom Energy Authority,United Kingdom Energy Authority
30/09/2013,MATERIALS & SPARES,FUSION,EDMUND OPTICS LTD,5100294106,511.50,United Kingdom Energy Authority,United Kingdom Energy Authority
14/10/2013,PLANT & EQUIPMENT,FUSION,EDMUNDSON ELECTRICALS LTD,5100294110,-68.63,United Kingdom Energy Authority,United Kingdom Energy Authority
21/10/2013,PLANT & EQUIPMENT,FUSION,EDMUNDSON ELECTRICALS LTD,5100294976,16.28,United Kingdom Energy Authority,United Kingdom Energy Authority
14/10/2013,PLANT & EQUIPMENT,FUSION,EDMUNDSON ELECTRICALS LTD,5100294478,30.00,United Kingdom Energy Authority,United Kingdom Energy Authority
09/10/2013,PLANT & EQUIPMENT,FUSION,EDMUNDSON ELECTRICALS LTD,5100294024,32.50,United Kingdom Energy Authority,United Kingdom Energy Authority
21/10/2013,PLANT & EQUIPMENT,PROPERTY,EDMUNDSON ELECTRICALS LTD,5100294979,39.63,United Kingdom Energy Authority,United Kingdom Energy Authority
14/10/2013,PLANT & EQUIPMENT,FUSION,EDMUNDSON ELECTRICALS LTD,5100294477,39.81,United Kingdom Energy Authority,United Kingdom Energy Authority
14/10/2013,PLANT & EQUIPMENT,FUSION,EDMUNDSON ELECTRICALS LTD,5100294479,40.26,United Kingdom Energy Authority,United Kingdom Energy Authority
21/10/2013,PLANT & EQUIPMENT,FUSION,EDMUNDSON ELECTRICALS LTD,5100295208,47.05,United Kingdom Energy Authority,United Kingdom Energy Authority
21/10/2013,PLANT & EQUIPMENT,FUSION,EDMUNDSON ELECTRICALS LTD,5100294978,70.00,United Kingdom Energy Authority,United Kingdom Energy Authority
14/10/2013,PLANT & EQUIPMENT,FUSION,EDMUNDSON ELECTRICALS LTD,5100294584,72.84,United Kingdom Energy Authority,United Kingdom Energy Authority
14/10/2013,PLANT & EQUIPMENT,FUSION,EDMUNDSON ELECTRICALS LTD,5100293847,79.93,United Kingdom Energy Authority,United Kingdom Energy Authority
23/10/2013,PLANT & EQUIPMENT,PROPERTY,EDMUNDSON ELECTRICALS LTD,5100295206,86.23,United Kingdom Energy Authority,United Kingdom Energy Authority
14/10/2013,PLANT & EQUIPMENT,FUSION,EDMUNDSON ELECTRICALS LTD,5100294146,99.83,United Kingdom Energy Authority,United Kingdom Energy Authority
14/10/2013,PLANT & EQUIPMENT,FUSION,EDMUNDSON ELECTRICALS LTD,5100294109,132.56,United Kingdom Energy Authority,United Kingdom Energy Authority
14/10/2013,PLANT & EQUIPMENT,FUSION,EDMUNDSON ELECTRICALS LTD,5100294150,151.20,United Kingdom Energy Authority,United Kingdom Energy Authority
21/10/2013,PLANT & EQUIPMENT,PROPERTY,EDMUNDSON ELECTRICALS LTD,5100294636,170.93,United Kingdom Energy Authority,United Kingdom Energy Authority
14/10/2013,PLANT & EQUIPMENT,FUSION,EDMUNDSON ELECTRICALS LTD,5100294585,180.92,United Kingdom Energy Authority,United Kingdom Energy Authority
14/10/2013,PLANT & EQUIPMENT,FUSION,EDMUNDSON ELECTRICALS LTD,5100294297,184.51,United Kingdom Energy Authority,United Kingdom Energy Authority
21/10/2013,PLANT & EQUIPMENT,PROPERTY,EDMUNDSON ELECTRICALS LTD,5100294977,230.00,United Kingdom Energy Authority,United Kingdom Energy Authority
23/10/2013,PLANT & EQUIPMENT,FUSION,EDMUNDSON ELECTRICALS LTD,5100295203,253.68,United Kingdom Energy Authority,United Kingdom Energy Authority
14/10/2013,PLANT & EQUIPMENT,FUSION,EDMUNDSON ELECTRICALS LTD,5100294148,305.06,United Kingdom Energy Authority,United Kingdom Energy Authority
23/10/2013,PLANT & EQUIPMENT,FUSION,EDMUNDSON ELECTRICALS LTD,5100295204,315.00,United Kingdom Energy Authority,United Kingdom Energy Authority
14/10/2013,PLANT & EQUIPMENT,FUSION,EDMUNDSON ELECTRICALS LTD,5100294298,363.43,United Kingdom Energy Authority,United Kingdom Energy Authority
09/10/2013,PLANT & EQUIPMENT,FUSION,EDMUNDSON ELECTRICALS LTD,5100293848,426.32,United Kingdom Energy Authority,United Kingdom Energy Authority
07/10/2013,PLANT & EQUIPMENT,FUSION,EDMUNDSON ELECTRICALS LTD,5100294108,897.60,United Kingdom Energy Authority,United Kingdom Energy Authority
09/10/2013,PLANT & EQUIPMENT,FUSION,EDMUNDSON ELECTRICALS LTD,5100293846,915.17,United Kingdom Energy Authority,United Kingdom Energy Authority
23/10/2013,PLANT & EQUIPMENT,FUSION,EDMUNDSON ELECTRICALS LTD,5100295201,928.50,United Kingdom Energy Authority,United Kingdom Energy Authority
14/10/2013,PLANT & EQUIPMENT,FUSION,EDWARDS LIMITED,5100294715,177.75,United Kingdom Energy Authority,United Kingdom Energy Authority
21/10/2013,F&F,PROPERTY,EFG MATTHEWS OFFICE FURNITURE LTD,5100295071,64.10,United Kingdom Energy Authority,United Kingdom Energy Authority
30/09/2013,F&F,PROPERTY,EFG MATTHEWS OFFICE FURNITURE LTD,5100294042,70.00,United Kingdom Energy Authority,United Kingdom Energy Authority
07/10/2013,F&F,SUPPORT SERVICES,EFG MATTHEWS OFFICE FURNITURE LTD,5100294315,180.00,United Kingdom Energy Authority,United Kingdom Energy Authority
30/09/2013,F&F,SUPPORT SERVICES,EFG MATTHEWS OFFICE FURNITURE LTD,5100294119,197.00,United Kingdom Energy Authority,United Kingdom Energy Authority
21/10/2013,F&F,FUSION,EFG MATTHEWS OFFICE FURNITURE LTD,5100295181,253.60,United Kingdom Energy Authority,United Kingdom Energy Authority
21/10/2013,F&F,FUSION,EFG MATTHEWS OFFICE FURNITURE LTD,5100295189,258.70,United Kingdom Energy Authority,United Kingdom Energy Authority
21/10/2013,F&F,PROPERTY,EFG MATTHEWS OFFICE FURNITURE LTD,5100295185,365.90,United Kingdom Energy Authority,United Kingdom Energy Authority
21/10/2013,F&F,PROPERTY,EFG MATTHEWS OFFICE FURNITURE LTD,5100295186,372.30,United Kingdom Energy Authority,United Kingdom Energy Authority
07/10/2013,F&F,SUPPORT SERVICES,EFG MATTHEWS OFFICE FURNITURE LTD,5100294318,386.40,United Kingdom Energy Authority,United Kingdom Energy Authority
21/10/2013,F&F,PROPERTY,EFG MATTHEWS OFFICE FURNITURE LTD,5100295187,406.74,United Kingdom Energy Authority,United Kingdom Energy Authority
07/10/2013,F&F,SUPPORT SERVICES,EFG MATTHEWS OFFICE FURNITURE LTD,5100294317,420.80,United Kingdom Energy Authority,United Kingdom Energy Authority
21/10/2013,F&F,SUPPORT SERVICES,EFG MATTHEWS OFFICE FURNITURE LTD,5100295180,444.00,United Kingdom Energy Authority,United Kingdom Energy Authority
21/10/2013,F&F,PROPERTY,EFG MATTHEWS OFFICE FURNITURE LTD,5100295072,455.73,United Kingdom Energy Authority,United Kingdom Energy Authority
21/10/2013,F&F,PROPERTY,EFG MATTHEWS OFFICE FURNITURE LTD,5100295188,562.93,United Kingdom Energy Authority,United Kingdom Energy Authority
23/10/2013,F&F,SUPPORT SERVICES,EFG MATTHEWS OFFICE FURNITURE LTD,5100294316,653.10,United Kingdom Energy Authority,United Kingdom Energy Authority
21/10/2013,F&F,PROPERTY,EFG MATTHEWS OFFICE FURNITURE LTD,5100294319,664.36,United Kingdom Energy Authority,United Kingdom Energy Authority
30/09/2013,F&F,SUPPORT SERVICES,EFG MATTHEWS OFFICE FURNITURE LTD,5100294120,733.80,United Kingdom Energy Authority,United Kingdom Energy Authority
30/09/2013,F&F,PROPERTY,EFG MATTHEWS OFFICE FURNITURE LTD,5100294040,1046.58,United Kingdom Energy Authority,United Kingdom Energy Authority
21/10/2013,F&F,SUPPORT SERVICES,EFG MATTHEWS OFFICE FURNITURE LTD,5100295074,1288.00,United Kingdom Energy Authority,United Kingdom Energy Authority
07/10/2013,MATERIALS & SPARES,FUSION,Electro Signs Ltd,1900058954,161.10,United Kingdom Energy Authority,United Kingdom Energy Authority
02/10/2013,MATERIALS & SPARES,FUSION,ELEMENT SIX BV,5100293623,1446.88,United Kingdom Energy Authority,United Kingdom Energy Authority
09/10/2013,CATERING ,PROPERTY,Elior UK Services,1900058960,675.24,United Kingdom Energy Authority,United Kingdom Energy Authority
17/10/2013,CONFERENCES/MEETINGS,FUSION,Elior UK Services,1900059015,1048.79,United Kingdom Energy Authority,United Kingdom Energy Authority
14/10/2013,CONSUMABLES,FUSION,ELMATIC,5100294487,253.50,United Kingdom Energy Authority,United Kingdom Energy Authority
04/10/2013,AIR TRAVEL,FUSION,EMPLOYEE EXPENSES,100699968,88.14,United Kingdom Energy Authority,United Kingdom Energy Authority
04/10/2013,AIR TRAVEL,FUSION,EMPLOYEE EXPENSES,100699968,97.66,United Kingdom Energy Authority,United Kingdom Energy Authority
26/10/2013,AIR TRAVEL,FUSION,EMPLOYEE EXPENSES,100700385,309.57,United Kingdom Energy Authority,United Kingdom Energy Authority
19/10/2013,BUSINESS ENTERTAINMENT,FUSION,EMPLOYEE EXPENSES,100700180,95.73,United Kingdom Energy Authority,United Kingdom Energy Authority
18/10/2013,CONFERENCES/MEETINGS,FUSION,EMPLOYEE EXPENSES,1900059027,756.87,United Kingdom Energy Authority,United Kingdom Energy Authority
11/10/2013,MILEAGE ALLOWANCE,SUPPORT SERVICES,EMPLOYEE EXPENSES,100700072,3.96,United Kingdom Energy Authority,United Kingdom Energy Authority
04/10/2013,MILEAGE ALLOWANCE,SUPPORT SERVICES,EMPLOYEE EXPENSES,100699973,6.29,United Kingdom Energy Authority,United Kingdom Energy Authority
26/10/2013,MILEAGE ALLOWANCE,FUSION,EMPLOYEE EXPENSES,100700361,6.30,United Kingdom Energy Authority,United Kingdom Energy Authority
04/10/2013,MILEAGE ALLOWANCE,SUPPORT SERVICES,EMPLOYEE EXPENSES,100699973,6.31,United Kingdom Energy Authority,United Kingdom Energy Authority
19/10/2013,MILEAGE ALLOWANCE,SUPPORT SERVICES,EMPLOYEE EXPENSES,100700167,7.20,United Kingdom Energy Authority,United Kingdom Energy Authority
19/10/2013,MILEAGE ALLOWANCE,SUPPORT SERVICES,EMPLOYEE EXPENSES,100700168,7.20,United Kingdom Energy Authority,United Kingdom Energy Authority
04/10/2013,MILEAGE ALLOWANCE,FUSION,EMPLOYEE EXPENSES,100699979,7.20,United Kingdom Energy Authority,United Kingdom Energy Authority
04/10/2013,MILEAGE ALLOWANCE,FUSION,EMPLOYEE EXPENSES,100699964,7.20,United Kingdom Energy Authority,United Kingdom Energy Authority
19/10/2013,MILEAGE ALLOWANCE,FUSION,EMPLOYEE EXPENSES,100700162,7.20,United Kingdom Energy Authority,United Kingdom Energy Authority
19/10/2013,MILEAGE ALLOWANCE,FUSION,EMPLOYEE EXPENSES,100700163,7.20,United Kingdom Energy Authority,United Kingdom Energy Authority
26/10/2013,MILEAGE ALLOWANCE,FUSION,EMPLOYEE EXPENSES,100700360,9.90,United Kingdom Energy Authority,United Kingdom Energy Authority
04/10/2013,MILEAGE ALLOWANCE,FUSION,EMPLOYEE EXPENSES,100699963,12.60,United Kingdom Energy Authority,United Kingdom Energy Authority
11/10/2013,MILEAGE ALLOWANCE,SUPPORT SERVICES,EMPLOYEE EXPENSES,100700073,12.60,United Kingdom Energy Authority,United Kingdom Energy Authority
26/10/2013,MILEAGE ALLOWANCE,SUPPORT SERVICES,EMPLOYEE EXPENSES,100700352,12.60,United Kingdom Energy Authority,United Kingdom Energy Authority
13/10/2013,MILEAGE ALLOWANCE,SUPPORT SERVICES,EMPLOYEE EXPENSES,100700123,13.50,United Kingdom Energy Authority,United Kingdom Energy Authority
13/10/2013,MILEAGE ALLOWANCE,SUPPORT SERVICES,EMPLOYEE EXPENSES,100700124,13.50,United Kingdom Energy Authority,United Kingdom Energy Authority
13/10/2013,MILEAGE ALLOWANCE,SUPPORT SERVICES,EMPLOYEE EXPENSES,100700125,13.50,United Kingdom Energy Authority,United Kingdom Energy Authority
04/10/2013,MILEAGE ALLOWANCE,SUPPORT SERVICES,EMPLOYEE EXPENSES,100700006,18.00,United Kingdom Energy Authority,United Kingdom Energy Authority
11/10/2013,MILEAGE ALLOWANCE,FUSION,EMPLOYEE EXPENSES,100700080,18.00,United Kingdom Energy Authority,United Kingdom Energy Authority
04/10/2013,MILEAGE ALLOWANCE,FUSION,EMPLOYEE EXPENSES,100699995,18.00,United Kingdom Energy Authority,United Kingdom Energy Authority
04/10/2013,MILEAGE ALLOWANCE,FUSION,EMPLOYEE EXPENSES,100700025,18.60,United Kingdom Energy Authority,United Kingdom Energy Authority
04/10/2013,MILEAGE ALLOWANCE,SUPPORT SERVICES,EMPLOYEE EXPENSES,100699977,21.60,United Kingdom Energy Authority,United Kingdom Energy Authority
04/10/2013,MILEAGE ALLOWANCE,FUSION,EMPLOYEE EXPENSES,100699969,25.65,United Kingdom Energy Authority,United Kingdom Energy Authority
04/10/2013,MILEAGE ALLOWANCE,SUPPORT SERVICES,EMPLOYEE EXPENSES,100700026,27.00,United Kingdom Energy Authority,United Kingdom Energy Authority
19/10/2013,MILEAGE ALLOWANCE,FUSION,EMPLOYEE EXPENSES,100700171,30.60,United Kingdom Energy Authority,United Kingdom Energy Authority
26/10/2013,MILEAGE ALLOWANCE,FUSION,EMPLOYEE EXPENSES,100700349,34.20,United Kingdom Energy Authority,United Kingdom Energy Authority
04/10/2013,MILEAGE ALLOWANCE,FUSION,EMPLOYEE EXPENSES,100699985,36.00,United Kingdom Energy Authority,United Kingdom Energy Authority
26/10/2013,MILEAGE ALLOWANCE,FUSION,EMPLOYEE EXPENSES,100700368,42.75,United Kingdom Energy Authority,United Kingdom Energy Authority
11/10/2013,MILEAGE ALLOWANCE,SUPPORT SERVICES,EMPLOYEE EXPENSES,100700072,45.54,United Kingdom Energy Authority,United Kingdom Energy Authority
26/10/2013,MILEAGE ALLOWANCE,FUSION,EMPLOYEE EXPENSES,100700362,47.70,United Kingdom Energy Authority,United Kingdom Energy Authority
04/10/2013,MILEAGE ALLOWANCE,FUSION,EMPLOYEE EXPENSES,100699972,54.00,United Kingdom Energy Authority,United Kingdom Energy Authority
11/10/2013,MILEAGE ALLOWANCE,FUSION,EMPLOYEE EXPENSES,100700071,54.00,United Kingdom Energy Authority,United Kingdom Energy Authority
13/10/2013,MILEAGE ALLOWANCE,FUSION,EMPLOYEE EXPENSES,100700111,54.00,United Kingdom Energy Authority,United Kingdom Energy Authority
19/10/2013,MILEAGE ALLOWANCE,FUSION,EMPLOYEE EXPENSES,100700166,54.00,United Kingdom Energy Authority,United Kingdom Energy Authority
11/10/2013,MILEAGE ALLOWANCE,SUPPORT SERVICES,EMPLOYEE EXPENSES,100700093,58.50,United Kingdom Energy Authority,United Kingdom Energy Authority
19/10/2013,MILEAGE ALLOWANCE,FUSION,EMPLOYEE EXPENSES,100700172,58.50,United Kingdom Energy Authority,United Kingdom Energy Authority
26/10/2013,MILEAGE ALLOWANCE,FUSION,EMPLOYEE EXPENSES,100700363,58.50,United Kingdom Energy Authority,United Kingdom Energy Authority
04/10/2013,MILEAGE ALLOWANCE,FUSION,EMPLOYEE EXPENSES,100699993,60.30,United Kingdom Energy Authority,United Kingdom Energy Authority
04/10/2013,MILEAGE ALLOWANCE,FUSION,EMPLOYEE EXPENSES,100699994,60.30,United Kingdom Energy Authority,United Kingdom Energy Authority
19/10/2013,MILEAGE ALLOWANCE,FUSION,EMPLOYEE EXPENSES,100700183,62.55,United Kingdom Energy Authority,United Kingdom Energy Authority
19/10/2013,MILEAGE ALLOWANCE,FUSION,EMPLOYEE EXPENSES,100700186,66.60,United Kingdom Energy Authority,United Kingdom Energy Authority
19/10/2013,MILEAGE ALLOWANCE,FUSION,EMPLOYEE EXPENSES,100700187,66.60,United Kingdom Energy Authority,United Kingdom Energy Authority
19/10/2013,MILEAGE ALLOWANCE,FUSION,EMPLOYEE EXPENSES,100700188,69.30,United Kingdom Energy Authority,United Kingdom Energy Authority
19/10/2013,MILEAGE ALLOWANCE,FUSION,EMPLOYEE EXPENSES,100700189,69.30,United Kingdom Energy Authority,United Kingdom Energy Authority
19/10/2013,MILEAGE ALLOWANCE,FUSION,EMPLOYEE EXPENSES,100700190,69.30,United Kingdom Energy Authority,United Kingdom Energy Authority
04/10/2013,MILEAGE ALLOWANCE,FUSION,EMPLOYEE EXPENSES,100700000,69.75,United Kingdom Energy Authority,United Kingdom Energy Authority
26/10/2013,MILEAGE ALLOWANCE,FUSION,EMPLOYEE EXPENSES,100700378,69.75,United Kingdom Energy Authority,United Kingdom Energy Authority
26/10/2013,MILEAGE ALLOWANCE,FUSION,EMPLOYEE EXPENSES,100700379,69.75,United Kingdom Energy Authority,United Kingdom Energy Authority
26/10/2013,MILEAGE ALLOWANCE,FUSION,EMPLOYEE EXPENSES,100700380,69.75,United Kingdom Energy Authority,United Kingdom Energy Authority
19/10/2013,MILEAGE ALLOWANCE,FUSION,EMPLOYEE EXPENSES,100700170,72.00,United Kingdom Energy Authority,United Kingdom Energy Authority
26/10/2013,MILEAGE ALLOWANCE,FUSION,EMPLOYEE EXPENSES,100700366,72.96,United Kingdom Energy Authority,United Kingdom Energy Authority
04/10/2013,MILEAGE ALLOWANCE,SUPPORT SERVICES,EMPLOYEE EXPENSES,100700010,96.30,United Kingdom Energy Authority,United Kingdom Energy Authority
04/10/2013,MILEAGE ALLOWANCE,SUPPORT SERVICES,EMPLOYEE EXPENSES,100700011,96.30,United Kingdom Energy Authority,United Kingdom Energy Authority
11/10/2013,MILEAGE ALLOWANCE,FUSION,EMPLOYEE EXPENSES,100700077,107.10,United Kingdom Energy Authority,United Kingdom Energy Authority
11/10/2013,MILEAGE ALLOWANCE,FUSION,EMPLOYEE EXPENSES,100700100,159.30,United Kingdom Energy Authority,United Kingdom Energy Authority
11/10/2013,MILEAGE ALLOWANCE,FUSION,EMPLOYEE EXPENSES,100700075,190.80,United Kingdom Energy Authority,United Kingdom Energy Authority
04/10/2013,MILEAGE ALLOWANCE,FUSION,EMPLOYEE EXPENSES,100699976,287.10,United Kingdom Energy Authority,United Kingdom Energy Authority
13/10/2013,OTHER EMPLOYEE EXPENSES,FUSION,EMPLOYEE EXPENSES,100700122,1.25,United Kingdom Energy Authority,United Kingdom Energy Authority
19/10/2013,OTHER EMPLOYEE EXPENSES,FUSION,EMPLOYEE EXPENSES,100700173,1.99,United Kingdom Energy Authority,United Kingdom Energy Authority
19/10/2013,OTHER EMPLOYEE EXPENSES,FUSION,EMPLOYEE EXPENSES,100700173,2.00,United Kingdom Energy Authority,United Kingdom Energy Authority
26/10/2013,OTHER EMPLOYEE EXPENSES,FUSION,EMPLOYEE EXPENSES,100700353,2.37,United Kingdom Energy Authority,United Kingdom Energy Authority
19/10/2013,OTHER EMPLOYEE EXPENSES,FUSION,EMPLOYEE EXPENSES,100700184,3.00,United Kingdom Energy Authority,United Kingdom Energy Authority
11/10/2013,OTHER EMPLOYEE EXPENSES,FUSION,EMPLOYEE EXPENSES,100700084,3.00,United Kingdom Energy Authority,United Kingdom Energy Authority
26/10/2013,OTHER EMPLOYEE EXPENSES,FUSION,EMPLOYEE EXPENSES,100700359,3.01,United Kingdom Energy Authority,United Kingdom Energy Authority
26/10/2013,OTHER EMPLOYEE EXPENSES,FUSION,EMPLOYEE EXPENSES,100700357,3.16,United Kingdom Energy Authority,United Kingdom Energy Authority
26/10/2013,OTHER EMPLOYEE EXPENSES,FUSION,EMPLOYEE EXPENSES,100700370,3.85,United Kingdom Energy Authority,United Kingdom Energy Authority
04/10/2013,OTHER EMPLOYEE EXPENSES,FUSION,EMPLOYEE EXPENSES,100699968,3.90,United Kingdom Energy Authority,United Kingdom Energy Authority
04/10/2013,OTHER EMPLOYEE EXPENSES,FUSION,EMPLOYEE EXPENSES,100699969,3.99,United Kingdom Energy Authority,United Kingdom Energy Authority
19/10/2013,OTHER EMPLOYEE EXPENSES,FUSION,EMPLOYEE EXPENSES,100700165,3.99,United Kingdom Energy Authority,United Kingdom Energy Authority
04/10/2013,OTHER EMPLOYEE EXPENSES,FUSION,EMPLOYEE EXPENSES,100700002,4.03,United Kingdom Energy Authority,United Kingdom Energy Authority
04/10/2013,OTHER EMPLOYEE EXPENSES,FUSION,EMPLOYEE EXPENSES,100699997,4.33,United Kingdom Energy Authority,United Kingdom Energy Authority
13/10/2013,OTHER EMPLOYEE EXPENSES,FUSION,EMPLOYEE EXPENSES,100700115,4.72,United Kingdom Energy Authority,United Kingdom Energy Authority
26/10/2013,OTHER EMPLOYEE EXPENSES,FUSION,EMPLOYEE EXPENSES,100700363,4.83,United Kingdom Energy Authority,United Kingdom Energy Authority
26/10/2013,OTHER EMPLOYEE EXPENSES,SUPPORT SERVICES,EMPLOYEE EXPENSES,100700384,5.05,United Kingdom Energy Authority,United Kingdom Energy Authority
26/10/2013,OTHER EMPLOYEE EXPENSES,FUSION,EMPLOYEE EXPENSES,100700362,5.66,United Kingdom Energy Authority,United Kingdom Energy Authority
26/10/2013,OTHER EMPLOYEE EXPENSES,FUSION,EMPLOYEE EXPENSES,100700356,6.64,United Kingdom Energy Authority,United Kingdom Energy Authority
19/10/2013,OTHER EMPLOYEE EXPENSES,FUSION,EMPLOYEE EXPENSES,100700196,6.90,United Kingdom Energy Authority,United Kingdom Energy Authority
04/10/2013,OTHER EMPLOYEE EXPENSES,FUSION,EMPLOYEE EXPENSES,100699975,8.88,United Kingdom Energy Authority,United Kingdom Energy Authority
19/10/2013,OTHER EMPLOYEE EXPENSES,FUSION,EMPLOYEE EXPENSES,100700198,10.00,United Kingdom Energy Authority,United Kingdom Energy Authority
11/10/2013,OTHER EMPLOYEE EXPENSES,FUSION,EMPLOYEE EXPENSES,100700090,13.54,United Kingdom Energy Authority,United Kingdom Energy Authority
13/10/2013,OTHER EMPLOYEE EXPENSES,FUSION,EMPLOYEE EXPENSES,100700121,17.77,United Kingdom Energy Authority,United Kingdom Energy Authority
13/10/2013,OTHER EMPLOYEE EXPENSES,FUSION,EMPLOYEE EXPENSES,100700120,20.00,United Kingdom Energy Authority,United Kingdom Energy Authority
11/10/2013,OTHER EMPLOYEE EXPENSES,FUSION,EMPLOYEE EXPENSES,100700076,66.00,United Kingdom Energy Authority,United Kingdom Energy Authority
19/10/2013,OTHER EMPLOYEE EXPENSES,FUSION,EMPLOYEE EXPENSES,100700175,84.00,United Kingdom Energy Authority,United Kingdom Energy Authority
11/10/2013,OTHER EMPLOYEE EXPENSES,FUSION,EMPLOYEE EXPENSES,100700081,87.34,United Kingdom Energy Authority,United Kingdom Energy Authority
19/10/2013,OTHER EMPLOYEE EXPENSES,FUSION,EMPLOYEE EXPENSES,100700176,109.18,United Kingdom Energy Authority,United Kingdom Energy Authority
11/10/2013,OTHER EMPLOYEE EXPENSES,FUSION,EMPLOYEE EXPENSES,100700094,114.83,United Kingdom Energy Authority,United Kingdom Energy Authority
19/10/2013,OTHER EMPLOYEE EXPENSES,FUSION,EMPLOYEE EXPENSES,100700191,133.00,United Kingdom Energy Authority,United Kingdom Energy Authority
11/10/2013,OTHER EMPLOYEE EXPENSES,FUSION,EMPLOYEE EXPENSES,100700095,195.00,United Kingdom Energy Authority,United Kingdom Energy Authority
26/10/2013,OTHER EMPLOYEE EXPENSES,FUSION,EMPLOYEE EXPENSES,100700365,198.63,United Kingdom Energy Authority,United Kingdom Energy Authority
04/10/2013,OTHER EMPLOYEE EXPENSES,FUSION,EMPLOYEE EXPENSES,100699997,297.55,United Kingdom Energy Authority,United Kingdom Energy Authority
19/10/2013,OTHER EMPLOYEE EXPENSES,FUSION,EMPLOYEE EXPENSES,100700204,439.03,United Kingdom Energy Authority,United Kingdom Energy Authority
19/10/2013,POSTAGE & DISTRIBUTION,FUSION,EMPLOYEE EXPENSES,100700175,12.44,United Kingdom Energy Authority,United Kingdom Energy Authority
19/10/2013,PROFESSIONAL SUBSCRIPTION,FUSION,EMPLOYEE EXPENSES,100700173,49.02,United Kingdom Energy Authority,United Kingdom Energy Authority
19/10/2013,PROFESSIONAL SUBSCRIPTION,FUSION,EMPLOYEE EXPENSES,100700173,49.02,United Kingdom Energy Authority,United Kingdom Energy Authority
26/10/2013,PROFESSIONAL SUBSCRIPTION,FUSION,EMPLOYEE EXPENSES,100700382,60.00,United Kingdom Energy Authority,United Kingdom Energy Authority
04/10/2013,PROFESSIONAL SUBSCRIPTION,SUPPORT SERVICES,EMPLOYEE EXPENSES,100699996,84.00,United Kingdom Energy Authority,United Kingdom Energy Authority
11/10/2013,PROFESSIONAL SUBSCRIPTION,SUPPORT SERVICES,EMPLOYEE EXPENSES,100700085,131.00,United Kingdom Energy Authority,United Kingdom Energy Authority
04/10/2013,PROFESSIONAL SUBSCRIPTION,FUSION,EMPLOYEE EXPENSES,100699982,139.50,United Kingdom Energy Authority,United Kingdom Energy Authority
26/10/2013,PROFESSIONAL SUBSCRIPTION,FUSION,EMPLOYEE EXPENSES,100700372,144.90,United Kingdom Energy Authority,United Kingdom Energy Authority
26/10/2013,RAIL TRAVEL,FUSION,EMPLOYEE EXPENSES,100700353,1.20,United Kingdom Energy Authority,United Kingdom Energy Authority
26/10/2013,RAIL TRAVEL,FUSION,EMPLOYEE EXPENSES,100700376,2.10,United Kingdom Energy Authority,United Kingdom Energy Authority
26/10/2013,RAIL TRAVEL,FUSION,EMPLOYEE EXPENSES,100700364,2.20,United Kingdom Energy Authority,United Kingdom Energy Authority
04/10/2013,RAIL TRAVEL,FUSION,EMPLOYEE EXPENSES,100699971,2.55,United Kingdom Energy Authority,United Kingdom Energy Authority
26/10/2013,RAIL TRAVEL,FUSION,EMPLOYEE EXPENSES,100700368,3.28,United Kingdom Energy Authority,United Kingdom Energy Authority
04/10/2013,RAIL TRAVEL,FUSION,EMPLOYEE EXPENSES,100699968,3.36,United Kingdom Energy Authority,United Kingdom Energy Authority
04/10/2013,RAIL TRAVEL,FUSION,EMPLOYEE EXPENSES,100699967,3.38,United Kingdom Energy Authority,United Kingdom Energy Authority
04/10/2013,RAIL TRAVEL,FUSION,EMPLOYEE EXPENSES,100699997,4.21,United Kingdom Energy Authority,United Kingdom Energy Authority
19/10/2013,RAIL TRAVEL,FUSION,EMPLOYEE EXPENSES,100700204,4.22,United Kingdom Energy Authority,United Kingdom Energy Authority
04/10/2013,RAIL TRAVEL,FUSION,EMPLOYEE EXPENSES,100700017,5.05,United Kingdom Energy Authority,United Kingdom Energy Authority
19/10/2013,RAIL TRAVEL,FUSION,EMPLOYEE EXPENSES,100700164,6.06,United Kingdom Energy Authority,United Kingdom Energy Authority
11/10/2013,RAIL TRAVEL,FUSION,EMPLOYEE EXPENSES,100700089,6.44,United Kingdom Energy Authority,United Kingdom Energy Authority
19/10/2013,RAIL TRAVEL,FUSION,EMPLOYEE EXPENSES,100700173,8.73,United Kingdom Energy Authority,United Kingdom Energy Authority
19/10/2013,RAIL TRAVEL,FUSION,EMPLOYEE EXPENSES,100700173,8.74,United Kingdom Energy Authority,United Kingdom Energy Authority
11/10/2013,RAIL TRAVEL,FUSION,EMPLOYEE EXPENSES,100700091,9.44,United Kingdom Energy Authority,United Kingdom Energy Authority
13/10/2013,RAIL TRAVEL,FUSION,EMPLOYEE EXPENSES,100700122,11.00,United Kingdom Energy Authority,United Kingdom Energy Authority
04/10/2013,RAIL TRAVEL,FUSION,EMPLOYEE EXPENSES,100700007,11.55,United Kingdom Energy Authority,United Kingdom Energy Authority
13/10/2013,RAIL TRAVEL,FUSION,EMPLOYEE EXPENSES,100700110,11.71,United Kingdom Energy Authority,United Kingdom Energy Authority
04/10/2013,RAIL TRAVEL,FUSION,EMPLOYEE EXPENSES,100699997,13.20,United Kingdom Energy Authority,United Kingdom Energy Authority
04/10/2013,RAIL TRAVEL,FUSION,EMPLOYEE EXPENSES,100699969,13.87,United Kingdom Energy Authority,United Kingdom Energy Authority
19/10/2013,RAIL TRAVEL,FUSION,EMPLOYEE EXPENSES,100700176,18.72,United Kingdom Energy Authority,United Kingdom Energy Authority
11/10/2013,RAIL TRAVEL,FUSION,EMPLOYEE EXPENSES,100700087,20.11,United Kingdom Energy Authority,United Kingdom Energy Authority
26/10/2013,RAIL TRAVEL,FUSION,EMPLOYEE EXPENSES,100700371,21.70,United Kingdom Energy Authority,United Kingdom Energy Authority
19/10/2013,RAIL TRAVEL,FUSION,EMPLOYEE EXPENSES,100700165,21.98,United Kingdom Energy Authority,United Kingdom Energy Authority
26/10/2013,RAIL TRAVEL,SUPPORT SERVICES,EMPLOYEE EXPENSES,100700386,23.40,United Kingdom Energy Authority,United Kingdom Energy Authority
04/10/2013,RAIL TRAVEL,FUSION,EMPLOYEE EXPENSES,100700008,27.70,United Kingdom Energy Authority,United Kingdom Energy Authority
13/10/2013,RAIL TRAVEL,FUSION,EMPLOYEE EXPENSES,100700121,27.70,United Kingdom Energy Authority,United Kingdom Energy Authority
11/10/2013,RAIL TRAVEL,FUSION,EMPLOYEE EXPENSES,100700081,31.86,United Kingdom Energy Authority,United Kingdom Energy Authority
04/10/2013,RAIL TRAVEL,FUSION,EMPLOYEE EXPENSES,100700021,33.50,United Kingdom Energy Authority,United Kingdom Energy Authority
04/10/2013,RAIL TRAVEL,FUSION,EMPLOYEE EXPENSES,100700022,33.50,United Kingdom Energy Authority,United Kingdom Energy Authority
26/10/2013,RAIL TRAVEL,FUSION,EMPLOYEE EXPENSES,100700376,33.70,United Kingdom Energy Authority,United Kingdom Energy Authority
04/10/2013,RAIL TRAVEL,FUSION,EMPLOYEE EXPENSES,100700024,36.00,United Kingdom Energy Authority,United Kingdom Energy Authority
13/10/2013,RAIL TRAVEL,FUSION,EMPLOYEE EXPENSES,100700122,38.20,United Kingdom Energy Authority,United Kingdom Energy Authority
04/10/2013,RAIL TRAVEL,FUSION,EMPLOYEE EXPENSES,100699974,46.00,United Kingdom Energy Authority,United Kingdom Energy Authority
11/10/2013,RAIL TRAVEL,FUSION,EMPLOYEE EXPENSES,100700097,50.25,United Kingdom Energy Authority,United Kingdom Energy Authority
11/10/2013,RAIL TRAVEL,FUSION,EMPLOYEE EXPENSES,100700096,51.75,United Kingdom Energy Authority,United Kingdom Energy Authority
26/10/2013,RAIL TRAVEL,SUPPORT SERVICES,EMPLOYEE EXPENSES,100700387,52.10,United Kingdom Energy Authority,United Kingdom Energy Authority
11/10/2013,RAIL TRAVEL,FUSION,EMPLOYEE EXPENSES,100700076,55.40,United Kingdom Energy Authority,United Kingdom Energy Authority
19/10/2013,RAIL TRAVEL,FUSION,EMPLOYEE EXPENSES,100700174,56.40,United Kingdom Energy Authority,United Kingdom Energy Authority
11/10/2013,RAIL TRAVEL,FUSION,EMPLOYEE EXPENSES,100700094,56.40,United Kingdom Energy Authority,United Kingdom Energy Authority
04/10/2013,RAIL TRAVEL,FUSION,EMPLOYEE EXPENSES,100700015,61.30,United Kingdom Energy Authority,United Kingdom Energy Authority
26/10/2013,RAIL TRAVEL,SUPPORT SERVICES,EMPLOYEE EXPENSES,100700383,62.40,United Kingdom Energy Authority,United Kingdom Energy Authority
19/10/2013,RAIL TRAVEL,FUSION,EMPLOYEE EXPENSES,100700192,62.40,United Kingdom Energy Authority,United Kingdom Energy Authority
11/10/2013,RAIL TRAVEL,SUPPORT SERVICES,EMPLOYEE EXPENSES,100700073,62.40,United Kingdom Energy Authority,United Kingdom Energy Authority
26/10/2013,RAIL TRAVEL,SUPPORT SERVICES,EMPLOYEE EXPENSES,100700352,62.40,United Kingdom Energy Authority,United Kingdom Energy Authority
11/10/2013,RAIL TRAVEL,SUPPORT SERVICES,EMPLOYEE EXPENSES,100700078,63.00,United Kingdom Energy Authority,United Kingdom Energy Authority
11/10/2013,RAIL TRAVEL,FUSION,EMPLOYEE EXPENSES,100700102,63.70,United Kingdom Energy Authority,United Kingdom Energy Authority
11/10/2013,RAIL TRAVEL,FUSION,EMPLOYEE EXPENSES,100700091,68.70,United Kingdom Energy Authority,United Kingdom Energy Authority
11/10/2013,RAIL TRAVEL,FUSION,EMPLOYEE EXPENSES,100700101,69.20,United Kingdom Energy Authority,United Kingdom Energy Authority
26/10/2013,RAIL TRAVEL,FUSION,EMPLOYEE EXPENSES,100700385,69.39,United Kingdom Energy Authority,United Kingdom Energy Authority
04/10/2013,RAIL TRAVEL,FUSION,EMPLOYEE EXPENSES,100700018,75.82,United Kingdom Energy Authority,United Kingdom Energy Authority
11/10/2013,RAIL TRAVEL,FUSION,EMPLOYEE EXPENSES,100700095,77.30,United Kingdom Energy Authority,United Kingdom Energy Authority
11/10/2013,RAIL TRAVEL,FUSION,EMPLOYEE EXPENSES,100700098,78.14,United Kingdom Energy Authority,United Kingdom Energy Authority
19/10/2013,RAIL TRAVEL,FUSION,EMPLOYEE EXPENSES,100700206,87.85,United Kingdom Energy Authority,United Kingdom Energy Authority
13/10/2013,RAIL TRAVEL,FUSION,EMPLOYEE EXPENSES,100700117,92.20,United Kingdom Energy Authority,United Kingdom Energy Authority
11/10/2013,RAIL TRAVEL,FUSION,EMPLOYEE EXPENSES,100700099,100.00,United Kingdom Energy Authority,United Kingdom Energy Authority
19/10/2013,RAIL TRAVEL,FUSION,EMPLOYEE EXPENSES,100700203,119.34,United Kingdom Energy Authority,United Kingdom Energy Authority
26/10/2013,RAIL TRAVEL,FUSION,EMPLOYEE EXPENSES,100700363,123.68,United Kingdom Energy Authority,United Kingdom Energy Authority
26/10/2013,RAIL TRAVEL,SUPPORT SERVICES,EMPLOYEE EXPENSES,100700384,181.79,United Kingdom Energy Authority,United Kingdom Energy Authority
11/10/2013,RELOCATION EXPENSES,FUSION,EMPLOYEE EXPENSES,100700086,1.83,United Kingdom Energy Authority,United Kingdom Energy Authority
13/10/2013,RELOCATION EXPENSES,FUSION,EMPLOYEE EXPENSES,100700119,31.50,United Kingdom Energy Authority,United Kingdom Energy Authority
11/10/2013,RELOCATION EXPENSES,FUSION,EMPLOYEE EXPENSES,100700089,152.53,United Kingdom Energy Authority,United Kingdom Energy Authority
19/10/2013,RELOCATION EXPENSES,SUPPORT SERVICES,EMPLOYEE EXPENSES,100700199,198.00,United Kingdom Energy Authority,United Kingdom Energy Authority
11/10/2013,ROAD TRAVEL,SUPPORT SERVICES,EMPLOYEE EXPENSES,100700072,0.32,United Kingdom Energy Authority,United Kingdom Energy Authority
04/10/2013,ROAD TRAVEL,FUSION,EMPLOYEE EXPENSES,100699995,1.00,United Kingdom Energy Authority,United Kingdom Energy Authority
26/10/2013,ROAD TRAVEL,FUSION,EMPLOYEE EXPENSES,100700368,1.09,United Kingdom Energy Authority,United Kingdom Energy Authority
04/10/2013,ROAD TRAVEL,SUPPORT SERVICES,EMPLOYEE EXPENSES,100699973,1.25,United Kingdom Energy Authority,United Kingdom Energy Authority
04/10/2013,ROAD TRAVEL,SUPPORT SERVICES,EMPLOYEE EXPENSES,100699973,1.25,United Kingdom Energy Authority,United Kingdom Energy Authority
19/10/2013,ROAD TRAVEL,FUSION,EMPLOYEE EXPENSES,100700164,1.26,United Kingdom Energy Authority,United Kingdom Energy Authority
19/10/2013,ROAD TRAVEL,FUSION,EMPLOYEE EXPENSES,100700172,1.50,United Kingdom Energy Authority,United Kingdom Energy Authority
04/10/2013,ROAD TRAVEL,FUSION,EMPLOYEE EXPENSES,100699979,1.50,United Kingdom Energy Authority,United Kingdom Energy Authority
04/10/2013,ROAD TRAVEL,FUSION,EMPLOYEE EXPENSES,100700017,1.68,United Kingdom Energy Authority,United Kingdom Energy Authority
26/10/2013,ROAD TRAVEL,FUSION,EMPLOYEE EXPENSES,100700362,2.00,United Kingdom Energy Authority,United Kingdom Energy Authority
04/10/2013,ROAD TRAVEL,FUSION,EMPLOYEE EXPENSES,100699976,2.00,United Kingdom Energy Authority,United Kingdom Energy Authority
11/10/2013,ROAD TRAVEL,SUPPORT SERVICES,EMPLOYEE EXPENSES,100700073,2.50,United Kingdom Energy Authority,United Kingdom Energy Authority
11/10/2013,ROAD TRAVEL,SUPPORT SERVICES,EMPLOYEE EXPENSES,100700072,3.68,United Kingdom Energy Authority,United Kingdom Energy Authority
04/10/2013,ROAD TRAVEL,FUSION,EMPLOYEE EXPENSES,100699988,4.00,United Kingdom Energy Authority,United Kingdom Energy Authority
13/10/2013,ROAD TRAVEL,FUSION,EMPLOYEE EXPENSES,100700121,4.00,United Kingdom Energy Authority,United Kingdom Energy Authority
19/10/2013,ROAD TRAVEL,FUSION,EMPLOYEE EXPENSES,100700205,4.20,United Kingdom Energy Authority,United Kingdom Energy Authority
19/10/2013,ROAD TRAVEL,SUPPORT SERVICES,EMPLOYEE EXPENSES,100700167,4.30,United Kingdom Energy Authority,United Kingdom Energy Authority
19/10/2013,ROAD TRAVEL,SUPPORT SERVICES,EMPLOYEE EXPENSES,100700168,4.30,United Kingdom Energy Authority,United Kingdom Energy Authority
26/10/2013,ROAD TRAVEL,SUPPORT SERVICES,EMPLOYEE EXPENSES,100700352,4.75,United Kingdom Energy Authority,United Kingdom Energy Authority
04/10/2013,ROAD TRAVEL,FUSION,EMPLOYEE EXPENSES,100700002,4.96,United Kingdom Energy Authority,United Kingdom Energy Authority
04/10/2013,ROAD TRAVEL,FUSION,EMPLOYEE EXPENSES,100699970,5.00,United Kingdom Energy Authority,United Kingdom Energy Authority
19/10/2013,ROAD TRAVEL,FUSION,EMPLOYEE EXPENSES,100700175,5.26,United Kingdom Energy Authority,United Kingdom Energy Authority
04/10/2013,ROAD TRAVEL,FUSION,EMPLOYEE EXPENSES,100700007,5.30,United Kingdom Energy Authority,United Kingdom Energy Authority
19/10/2013,ROAD TRAVEL,FUSION,EMPLOYEE EXPENSES,100700185,5.40,United Kingdom Energy Authority,United Kingdom Energy Authority
04/10/2013,ROAD TRAVEL,FUSION,EMPLOYEE EXPENSES,100699989,5.60,United Kingdom Energy Authority,United Kingdom Energy Authority
04/10/2013,ROAD TRAVEL,SUPPORT SERVICES,EMPLOYEE EXPENSES,100699978,6.00,United Kingdom Energy Authority,United Kingdom Energy Authority
13/10/2013,ROAD TRAVEL,FUSION,EMPLOYEE EXPENSES,100700110,6.00,United Kingdom Energy Authority,United Kingdom Energy Authority
11/10/2013,ROAD TRAVEL,FUSION,EMPLOYEE EXPENSES,100700094,6.00,United Kingdom Energy Authority,United Kingdom Energy Authority
26/10/2013,ROAD TRAVEL,SUPPORT SERVICES,EMPLOYEE EXPENSES,100700386,6.10,United Kingdom Energy Authority,United Kingdom Energy Authority
26/10/2013,ROAD TRAVEL,SUPPORT SERVICES,EMPLOYEE EXPENSES,100700383,6.20,United Kingdom Energy Authority,United Kingdom Energy Authority
13/10/2013,ROAD TRAVEL,FUSION,EMPLOYEE EXPENSES,100700113,6.20,United Kingdom Energy Authority,United Kingdom Energy Authority
11/10/2013,ROAD TRAVEL,FUSION,EMPLOYEE EXPENSES,100700081,6.34,United Kingdom Energy Authority,United Kingdom Energy Authority
11/10/2013,ROAD TRAVEL,SUPPORT SERVICES,EMPLOYEE EXPENSES,100700078,6.40,United Kingdom Energy Authority,United Kingdom Energy Authority
04/10/2013,ROAD TRAVEL,FUSION,EMPLOYEE EXPENSES,100699975,6.74,United Kingdom Energy Authority,United Kingdom Energy Authority
11/10/2013,ROAD TRAVEL,FUSION,EMPLOYEE EXPENSES,100700084,7.24,United Kingdom Energy Authority,United Kingdom Energy Authority
04/10/2013,ROAD TRAVEL,FUSION,EMPLOYEE EXPENSES,100699965,8.00,United Kingdom Energy Authority,United Kingdom Energy Authority
04/10/2013,ROAD TRAVEL,FUSION,EMPLOYEE EXPENSES,100699969,8.38,United Kingdom Energy Authority,United Kingdom Energy Authority
04/10/2013,ROAD TRAVEL,FUSION,EMPLOYEE EXPENSES,100699968,8.39,United Kingdom Energy Authority,United Kingdom Energy Authority
04/10/2013,ROAD TRAVEL,FUSION,EMPLOYEE EXPENSES,100699990,9.00,United Kingdom Energy Authority,United Kingdom Energy Authority
26/10/2013,ROAD TRAVEL,FUSION,EMPLOYEE EXPENSES,100700355,9.17,United Kingdom Energy Authority,United Kingdom Energy Authority
26/10/2013,ROAD TRAVEL,FUSION,EMPLOYEE EXPENSES,100700358,9.17,United Kingdom Energy Authority,United Kingdom Energy Authority
19/10/2013,ROAD TRAVEL,FUSION,EMPLOYEE EXPENSES,100700172,9.30,United Kingdom Energy Authority,United Kingdom Energy Authority
19/10/2013,ROAD TRAVEL,FUSION,EMPLOYEE EXPENSES,100700170,10.00,United Kingdom Energy Authority,United Kingdom Energy Authority
26/10/2013,ROAD TRAVEL,SUPPORT SERVICES,EMPLOYEE EXPENSES,100700387,12.35,United Kingdom Energy Authority,United Kingdom Energy Authority
26/10/2013,ROAD TRAVEL,SUPPORT SERVICES,EMPLOYEE EXPENSES,100700384,12.50,United Kingdom Energy Authority,United Kingdom Energy Authority
19/10/2013,ROAD TRAVEL,FUSION,EMPLOYEE EXPENSES,100700196,13.30,United Kingdom Energy Authority,United Kingdom Energy Authority
26/10/2013,ROAD TRAVEL,FUSION,EMPLOYEE EXPENSES,100700370,19.22,United Kingdom Energy Authority,United Kingdom Energy Authority
19/10/2013,ROAD TRAVEL,FUSION,EMPLOYEE EXPENSES,100700197,20.04,United Kingdom Energy Authority,United Kingdom Energy Authority
26/10/2013,ROAD TRAVEL,FUSION,EMPLOYEE EXPENSES,100700373,21.50,United Kingdom Energy Authority,United Kingdom Energy Authority
11/10/2013,ROAD TRAVEL,FUSION,EMPLOYEE EXPENSES,100700098,23.00,United Kingdom Energy Authority,United Kingdom Energy Authority
26/10/2013,ROAD TRAVEL,FUSION,EMPLOYEE EXPENSES,100700370,23.00,United Kingdom Energy Authority,United Kingdom Energy Authority
26/10/2013,ROAD TRAVEL,FUSION,EMPLOYEE EXPENSES,100700363,23.99,United Kingdom Energy Authority,United Kingdom Energy Authority
13/10/2013,ROAD TRAVEL,FUSION,EMPLOYEE EXPENSES,100700110,24.00,United Kingdom Energy Authority,United Kingdom Energy Authority
26/10/2013,ROAD TRAVEL,FUSION,EMPLOYEE EXPENSES,100700367,24.00,United Kingdom Energy Authority,United Kingdom Energy Authority
11/10/2013,ROAD TRAVEL,FUSION,EMPLOYEE EXPENSES,100700084,26.00,United Kingdom Energy Authority,United Kingdom Energy Authority
26/10/2013,ROAD TRAVEL,FUSION,EMPLOYEE EXPENSES,100700351,28.30,United Kingdom Energy Authority,United Kingdom Energy Authority
19/10/2013,ROAD TRAVEL,FUSION,EMPLOYEE EXPENSES,100700204,28.70,United Kingdom Energy Authority,United Kingdom Energy Authority
19/10/2013,ROAD TRAVEL,FUSION,EMPLOYEE EXPENSES,100700195,28.75,United Kingdom Energy Authority,United Kingdom Energy Authority
04/10/2013,ROAD TRAVEL,FUSION,EMPLOYEE EXPENSES,100700017,28.96,United Kingdom Energy Authority,United Kingdom Energy Authority
19/10/2013,ROAD TRAVEL,FUSION,EMPLOYEE EXPENSES,100700206,29.00,United Kingdom Energy Authority,United Kingdom Energy Authority
11/10/2013,ROAD TRAVEL,FUSION,EMPLOYEE EXPENSES,100700094,29.00,United Kingdom Energy Authority,United Kingdom Energy Authority
19/10/2013,ROAD TRAVEL,FUSION,EMPLOYEE EXPENSES,100700175,29.00,United Kingdom Energy Authority,United Kingdom Energy Authority
26/10/2013,ROAD TRAVEL,FUSION,EMPLOYEE EXPENSES,100700369,29.00,United Kingdom Energy Authority,United Kingdom Energy Authority
04/10/2013,ROAD TRAVEL,FUSION,EMPLOYEE EXPENSES,100699997,29.00,United Kingdom Energy Authority,United Kingdom Energy Authority
04/10/2013,ROAD TRAVEL,FUSION,EMPLOYEE EXPENSES,100699997,29.45,United Kingdom Energy Authority,United Kingdom Energy Authority
13/10/2013,ROAD TRAVEL,FUSION,EMPLOYEE EXPENSES,100700113,32.23,United Kingdom Energy Authority,United Kingdom Energy Authority
04/10/2013,ROAD TRAVEL,FUSION,EMPLOYEE EXPENSES,100699984,33.28,United Kingdom Energy Authority,United Kingdom Energy Authority
26/10/2013,ROAD TRAVEL,FUSION,EMPLOYEE EXPENSES,100700350,33.33,United Kingdom Energy Authority,United Kingdom Energy Authority
19/10/2013,ROAD TRAVEL,FUSION,EMPLOYEE EXPENSES,100700165,33.65,United Kingdom Energy Authority,United Kingdom Energy Authority
11/10/2013,ROAD TRAVEL,FUSION,EMPLOYEE EXPENSES,100700086,35.48,United Kingdom Energy Authority,United Kingdom Energy Authority
19/10/2013,ROAD TRAVEL,FUSION,EMPLOYEE EXPENSES,100700196,36.48,United Kingdom Energy Authority,United Kingdom Energy Authority
11/10/2013,ROAD TRAVEL,FUSION,EMPLOYEE EXPENSES,100700076,37.00,United Kingdom Energy Authority,United Kingdom Energy Authority
13/10/2013,ROAD TRAVEL,FUSION,EMPLOYEE EXPENSES,100700118,37.00,United Kingdom Energy Authority,United Kingdom Energy Authority
26/10/2013,ROAD TRAVEL,FUSION,EMPLOYEE EXPENSES,100700368,37.58,United Kingdom Energy Authority,United Kingdom Energy Authority
26/10/2013,ROAD TRAVEL,FUSION,EMPLOYEE EXPENSES,100700362,38.99,United Kingdom Energy Authority,United Kingdom Energy Authority
26/10/2013,ROAD TRAVEL,FUSION,EMPLOYEE EXPENSES,100700381,40.59,United Kingdom Energy Authority,United Kingdom Energy Authority
13/10/2013,ROAD TRAVEL,FUSION,EMPLOYEE EXPENSES,100700121,43.49,United Kingdom Energy Authority,United Kingdom Energy Authority
04/10/2013,ROAD TRAVEL,FUSION,EMPLOYEE EXPENSES,100700012,47.14,United Kingdom Energy Authority,United Kingdom Energy Authority
19/10/2013,ROAD TRAVEL,FUSION,EMPLOYEE EXPENSES,100700204,47.50,United Kingdom Energy Authority,United Kingdom Energy Authority
04/10/2013,ROAD TRAVEL,FUSION,EMPLOYEE EXPENSES,100699987,59.16,United Kingdom Energy Authority,United Kingdom Energy Authority
13/10/2013,ROAD TRAVEL,FUSION,EMPLOYEE EXPENSES,100700116,63.35,United Kingdom Energy Authority,United Kingdom Energy Authority
11/10/2013,ROAD TRAVEL,FUSION,EMPLOYEE EXPENSES,100700087,77.26,United Kingdom Energy Authority,United Kingdom Energy Authority
04/10/2013,SUBSISTENCE,SUPPORT SERVICES,EMPLOYEE EXPENSES,100699973,0.77,United Kingdom Energy Authority,United Kingdom Energy Authority
04/10/2013,SUBSISTENCE,SUPPORT SERVICES,EMPLOYEE EXPENSES,100699973,0.77,United Kingdom Energy Authority,United Kingdom Energy Authority
04/10/2013,SUBSISTENCE,FUSION,EMPLOYEE EXPENSES,100699988,1.33,United Kingdom Energy Authority,United Kingdom Energy Authority
11/10/2013,SUBSISTENCE,SUPPORT SERVICES,EMPLOYEE EXPENSES,100700073,1.53,United Kingdom Energy Authority,United Kingdom Energy Authority
19/10/2013,SUBSISTENCE,FUSION,EMPLOYEE EXPENSES,100700173,1.58,United Kingdom Energy Authority,United Kingdom Energy Authority
19/10/2013,SUBSISTENCE,FUSION,EMPLOYEE EXPENSES,100700173,1.58,United Kingdom Energy Authority,United Kingdom Energy Authority
04/10/2013,SUBSISTENCE,FUSION,EMPLOYEE EXPENSES,100699975,1.75,United Kingdom Energy Authority,United Kingdom Energy Authority
19/10/2013,SUBSISTENCE,FUSION,EMPLOYEE EXPENSES,100700197,1.90,United Kingdom Energy Authority,United Kingdom Energy Authority
19/10/2013,SUBSISTENCE,FUSION,EMPLOYEE EXPENSES,100700195,1.92,United Kingdom Energy Authority,United Kingdom Energy Authority
11/10/2013,SUBSISTENCE,FUSION,EMPLOYEE EXPENSES,100700083,2.20,United Kingdom Energy Authority,United Kingdom Energy Authority
13/10/2013,SUBSISTENCE,FUSION,EMPLOYEE EXPENSES,100700112,2.25,United Kingdom Energy Authority,United Kingdom Energy Authority
04/10/2013,SUBSISTENCE,SUPPORT SERVICES,EMPLOYEE EXPENSES,100699978,2.87,United Kingdom Energy Authority,United Kingdom Energy Authority
19/10/2013,SUBSISTENCE,FUSION,EMPLOYEE EXPENSES,100700176,3.16,United Kingdom Energy Authority,United Kingdom Energy Authority
04/10/2013,SUBSISTENCE,FUSION,EMPLOYEE EXPENSES,100699969,3.16,United Kingdom Energy Authority,United Kingdom Energy Authority
11/10/2013,SUBSISTENCE,FUSION,EMPLOYEE EXPENSES,100700077,3.73,United Kingdom Energy Authority,United Kingdom Energy Authority
11/10/2013,SUBSISTENCE,FUSION,EMPLOYEE EXPENSES,100700098,3.75,United Kingdom Energy Authority,United Kingdom Energy Authority
11/10/2013,SUBSISTENCE,FUSION,EMPLOYEE EXPENSES,100700101,3.75,United Kingdom Energy Authority,United Kingdom Energy Authority
04/10/2013,SUBSISTENCE,FUSION,EMPLOYEE EXPENSES,100700002,3.83,United Kingdom Energy Authority,United Kingdom Energy Authority
11/10/2013,SUBSISTENCE,FUSION,EMPLOYEE EXPENSES,100700081,3.96,United Kingdom Energy Authority,United Kingdom Energy Authority
04/10/2013,SUBSISTENCE,SUPPORT SERVICES,EMPLOYEE EXPENSES,100700010,4.32,United Kingdom Energy Authority,United Kingdom Energy Authority
04/10/2013,SUBSISTENCE,SUPPORT SERVICES,EMPLOYEE EXPENSES,100699977,4.41,United Kingdom Energy Authority,United Kingdom Energy Authority
04/10/2013,SUBSISTENCE,FUSION,EMPLOYEE EXPENSES,100699968,4.65,United Kingdom Energy Authority,United Kingdom Energy Authority
26/10/2013,SUBSISTENCE,SUPPORT SERVICES,EMPLOYEE EXPENSES,100700383,4.74,United Kingdom Energy Authority,United Kingdom Energy Authority
19/10/2013,SUBSISTENCE,FUSION,EMPLOYEE EXPENSES,100700169,4.79,United Kingdom Energy Authority,United Kingdom Energy Authority
19/10/2013,SUBSISTENCE,FUSION,EMPLOYEE EXPENSES,100700185,4.79,United Kingdom Energy Authority,United Kingdom Energy Authority
26/10/2013,SUBSISTENCE,FUSION,EMPLOYEE EXPENSES,100700353,4.99,United Kingdom Energy Authority,United Kingdom Energy Authority
11/10/2013,SUBSISTENCE,SUPPORT SERVICES,EMPLOYEE EXPENSES,100700074,5.00,United Kingdom Energy Authority,United Kingdom Energy Authority
11/10/2013,SUBSISTENCE,SUPPORT SERVICES,EMPLOYEE EXPENSES,100700082,5.00,United Kingdom Energy Authority,United Kingdom Energy Authority
11/10/2013,SUBSISTENCE,FUSION,EMPLOYEE EXPENSES,100700075,5.00,United Kingdom Energy Authority,United Kingdom Energy Authority
26/10/2013,SUBSISTENCE,FUSION,EMPLOYEE EXPENSES,100700366,5.00,United Kingdom Energy Authority,United Kingdom Energy Authority
04/10/2013,SUBSISTENCE,FUSION,EMPLOYEE EXPENSES,100700012,5.00,United Kingdom Energy Authority,United Kingdom Energy Authority
26/10/2013,SUBSISTENCE,FUSION,EMPLOYEE EXPENSES,100700373,5.00,United Kingdom Energy Authority,United Kingdom Energy Authority
26/10/2013,SUBSISTENCE,FUSION,EMPLOYEE EXPENSES,100700355,5.00,United Kingdom Energy Authority,United Kingdom Energy Authority
13/10/2013,SUBSISTENCE,FUSION,EMPLOYEE EXPENSES,100700116,5.00,United Kingdom Energy Authority,United Kingdom Energy Authority
19/10/2013,SUBSISTENCE,FUSION,EMPLOYEE EXPENSES,100700208,5.00,United Kingdom Energy Authority,United Kingdom Energy Authority
26/10/2013,SUBSISTENCE,FUSION,EMPLOYEE EXPENSES,100700375,5.00,United Kingdom Energy Authority,United Kingdom Energy Authority
04/10/2013,SUBSISTENCE,FUSION,EMPLOYEE EXPENSES,100699987,5.00,United Kingdom Energy Authority,United Kingdom Energy Authority
04/10/2013,SUBSISTENCE,FUSION,EMPLOYEE EXPENSES,100699972,5.00,United Kingdom Energy Authority,United Kingdom Energy Authority
04/10/2013,SUBSISTENCE,FUSION,EMPLOYEE EXPENSES,100699989,5.00,United Kingdom Energy Authority,United Kingdom Energy Authority
13/10/2013,SUBSISTENCE,FUSION,EMPLOYEE EXPENSES,100700117,5.00,United Kingdom Energy Authority,United Kingdom Energy Authority
04/10/2013,SUBSISTENCE,FUSION,EMPLOYEE EXPENSES,100699998,5.00,United Kingdom Energy Authority,United Kingdom Energy Authority
26/10/2013,SUBSISTENCE,FUSION,EMPLOYEE EXPENSES,100700377,5.00,United Kingdom Energy Authority,United Kingdom Energy Authority
19/10/2013,SUBSISTENCE,FUSION,EMPLOYEE EXPENSES,100700201,5.00,United Kingdom Energy Authority,United Kingdom Energy Authority
04/10/2013,SUBSISTENCE,FUSION,EMPLOYEE EXPENSES,100700019,5.00,United Kingdom Energy Authority,United Kingdom Energy Authority
11/10/2013,SUBSISTENCE,FUSION,EMPLOYEE EXPENSES,100700097,5.00,United Kingdom Energy Authority,United Kingdom Energy Authority
11/10/2013,SUBSISTENCE,FUSION,EMPLOYEE EXPENSES,100700092,5.00,United Kingdom Energy Authority,United Kingdom Energy Authority
04/10/2013,SUBSISTENCE,FUSION,EMPLOYEE EXPENSES,100699983,5.12,United Kingdom Energy Authority,United Kingdom Energy Authority
26/10/2013,SUBSISTENCE,SUPPORT SERVICES,EMPLOYEE EXPENSES,100700386,5.23,United Kingdom Energy Authority,United Kingdom Energy Authority
19/10/2013,SUBSISTENCE,FUSION,EMPLOYEE EXPENSES,100700170,5.66,United Kingdom Energy Authority,United Kingdom Energy Authority
04/10/2013,SUBSISTENCE,FUSION,EMPLOYEE EXPENSES,100700018,6.04,United Kingdom Energy Authority,United Kingdom Energy Authority
04/10/2013,SUBSISTENCE,FUSION,EMPLOYEE EXPENSES,100699970,6.04,United Kingdom Energy Authority,United Kingdom Energy Authority
11/10/2013,SUBSISTENCE,FUSION,EMPLOYEE EXPENSES,100700087,6.23,United Kingdom Energy Authority,United Kingdom Energy Authority
26/10/2013,SUBSISTENCE,FUSION,EMPLOYEE EXPENSES,100700370,6.47,United Kingdom Energy Authority,United Kingdom Energy Authority
04/10/2013,SUBSISTENCE,FUSION,EMPLOYEE EXPENSES,100699984,6.87,United Kingdom Energy Authority,United Kingdom Energy Authority
11/10/2013,SUBSISTENCE,FUSION,EMPLOYEE EXPENSES,100700084,6.89,United Kingdom Energy Authority,United Kingdom Energy Authority
26/10/2013,SUBSISTENCE,FUSION,EMPLOYEE EXPENSES,100700356,7.04,United Kingdom Energy Authority,United Kingdom Energy Authority
04/10/2013,SUBSISTENCE,FUSION,EMPLOYEE EXPENSES,100700004,7.33,United Kingdom Energy Authority,United Kingdom Energy Authority
11/10/2013,SUBSISTENCE,FUSION,EMPLOYEE EXPENSES,100700091,7.52,United Kingdom Energy Authority,United Kingdom Energy Authority
13/10/2013,SUBSISTENCE,FUSION,EMPLOYEE EXPENSES,100700122,7.87,United Kingdom Energy Authority,United Kingdom Energy Authority
13/10/2013,SUBSISTENCE,FUSION,EMPLOYEE EXPENSES,100700111,8.37,United Kingdom Energy Authority,United Kingdom Energy Authority
19/10/2013,SUBSISTENCE,FUSION,EMPLOYEE EXPENSES,100700166,8.37,United Kingdom Energy Authority,United Kingdom Energy Authority
04/10/2013,SUBSISTENCE,SUPPORT SERVICES,EMPLOYEE EXPENSES,100700011,8.56,United Kingdom Energy Authority,United Kingdom Energy Authority
26/10/2013,SUBSISTENCE,FUSION,EMPLOYEE EXPENSES,100700368,8.83,United Kingdom Energy Authority,United Kingdom Energy Authority
04/10/2013,SUBSISTENCE,FUSION,EMPLOYEE EXPENSES,100700023,9.45,United Kingdom Energy Authority,United Kingdom Energy Authority
04/10/2013,SUBSISTENCE,FUSION,EMPLOYEE EXPENSES,100700000,10.00,United Kingdom Energy Authority,United Kingdom Energy Authority
26/10/2013,SUBSISTENCE,FUSION,EMPLOYEE EXPENSES,100700378,10.00,United Kingdom Energy Authority,United Kingdom Energy Authority
26/10/2013,SUBSISTENCE,FUSION,EMPLOYEE EXPENSES,100700379,10.00,United Kingdom Energy Authority,United Kingdom Energy Authority
26/10/2013,SUBSISTENCE,FUSION,EMPLOYEE EXPENSES,100700380,10.00,United Kingdom Energy Authority,United Kingdom Energy Authority
19/10/2013,SUBSISTENCE,FUSION,EMPLOYEE EXPENSES,100700188,10.00,United Kingdom Energy Authority,United Kingdom Energy Authority
19/10/2013,SUBSISTENCE,FUSION,EMPLOYEE EXPENSES,100700189,10.00,United Kingdom Energy Authority,United Kingdom Energy Authority
19/10/2013,SUBSISTENCE,FUSION,EMPLOYEE EXPENSES,100700190,10.00,United Kingdom Energy Authority,United Kingdom Energy Authority
11/10/2013,SUBSISTENCE,FUSION,EMPLOYEE EXPENSES,100700071,10.00,United Kingdom Energy Authority,United Kingdom Energy Authority
04/10/2013,SUBSISTENCE,FUSION,EMPLOYEE EXPENSES,100700021,10.90,United Kingdom Energy Authority,United Kingdom Energy Authority
04/10/2013,SUBSISTENCE,FUSION,EMPLOYEE EXPENSES,100700022,10.90,United Kingdom Energy Authority,United Kingdom Energy Authority
26/10/2013,SUBSISTENCE,FUSION,EMPLOYEE EXPENSES,100700358,11.13,United Kingdom Energy Authority,United Kingdom Energy Authority
04/10/2013,SUBSISTENCE,FUSION,EMPLOYEE EXPENSES,100700005,11.29,United Kingdom Energy Authority,United Kingdom Energy Authority
11/10/2013,SUBSISTENCE,FUSION,EMPLOYEE EXPENSES,100700100,11.47,United Kingdom Energy Authority,United Kingdom Energy Authority
19/10/2013,SUBSISTENCE,FUSION,EMPLOYEE EXPENSES,100700180,11.65,United Kingdom Energy Authority,United Kingdom Energy Authority
26/10/2013,SUBSISTENCE,FUSION,EMPLOYEE EXPENSES,100700351,11.79,United Kingdom Energy Authority,United Kingdom Energy Authority
19/10/2013,SUBSISTENCE,FUSION,EMPLOYEE EXPENSES,100700171,12.14,United Kingdom Energy Authority,United Kingdom Energy Authority
26/10/2013,SUBSISTENCE,FUSION,EMPLOYEE EXPENSES,100700381,13.04,United Kingdom Energy Authority,United Kingdom Energy Authority
11/10/2013,SUBSISTENCE,FUSION,EMPLOYEE EXPENSES,100700076,13.87,United Kingdom Energy Authority,United Kingdom Energy Authority
19/10/2013,SUBSISTENCE,FUSION,EMPLOYEE EXPENSES,100700193,14.45,United Kingdom Energy Authority,United Kingdom Energy Authority
19/10/2013,SUBSISTENCE,FUSION,EMPLOYEE EXPENSES,100700204,14.63,United Kingdom Energy Authority,United Kingdom Energy Authority
04/10/2013,SUBSISTENCE,FUSION,EMPLOYEE EXPENSES,100699976,15.00,United Kingdom Energy Authority,United Kingdom Energy Authority
26/10/2013,SUBSISTENCE,FUSION,EMPLOYEE EXPENSES,100700363,16.03,United Kingdom Energy Authority,United Kingdom Energy Authority
04/10/2013,SUBSISTENCE,FUSION,EMPLOYEE EXPENSES,100700016,16.18,United Kingdom Energy Authority,United Kingdom Energy Authority
11/10/2013,SUBSISTENCE,FUSION,EMPLOYEE EXPENSES,100700100,17.10,United Kingdom Energy Authority,United Kingdom Energy Authority
19/10/2013,SUBSISTENCE,FUSION,EMPLOYEE EXPENSES,100700180,19.87,United Kingdom Energy Authority,United Kingdom Energy Authority
19/10/2013,SUBSISTENCE,FUSION,EMPLOYEE EXPENSES,100700194,20.00,United Kingdom Energy Authority,United Kingdom Energy Authority
19/10/2013,SUBSISTENCE,FUSION,EMPLOYEE EXPENSES,100700198,20.00,United Kingdom Energy Authority,United Kingdom Energy Authority
04/10/2013,SUBSISTENCE,FUSION,EMPLOYEE EXPENSES,100699965,20.00,United Kingdom Energy Authority,United Kingdom Energy Authority
13/10/2013,SUBSISTENCE,FUSION,EMPLOYEE EXPENSES,100700118,20.85,United Kingdom Energy Authority,United Kingdom Energy Authority
26/10/2013,SUBSISTENCE,FUSION,EMPLOYEE EXPENSES,100700365,21.87,United Kingdom Energy Authority,United Kingdom Energy Authority
04/10/2013,SUBSISTENCE,FUSION,EMPLOYEE EXPENSES,100700015,24.58,United Kingdom Energy Authority,United Kingdom Energy Authority
19/10/2013,SUBSISTENCE,FUSION,EMPLOYEE EXPENSES,100700172,24.75,United Kingdom Energy Authority,United Kingdom Energy Authority
26/10/2013,SUBSISTENCE,FUSION,EMPLOYEE EXPENSES,100700374,25.00,United Kingdom Energy Authority,United Kingdom Energy Authority
26/10/2013,SUBSISTENCE,FUSION,EMPLOYEE EXPENSES,100700357,28.16,United Kingdom Energy Authority,United Kingdom Energy Authority
04/10/2013,SUBSISTENCE,FUSION,EMPLOYEE EXPENSES,100700020,28.62,United Kingdom Energy Authority,United Kingdom Energy Authority
26/10/2013,SUBSISTENCE,FUSION,EMPLOYEE EXPENSES,100700376,30.00,United Kingdom Energy Authority,United Kingdom Energy Authority
19/10/2013,SUBSISTENCE,FUSION,EMPLOYEE EXPENSES,100700200,30.00,United Kingdom Energy Authority,United Kingdom Energy Authority
04/10/2013,SUBSISTENCE,FUSION,EMPLOYEE EXPENSES,100699966,34.27,United Kingdom Energy Authority,United Kingdom Energy Authority
04/10/2013,SUBSISTENCE,FUSION,EMPLOYEE EXPENSES,100700020,34.87,United Kingdom Energy Authority,United Kingdom Energy Authority
04/10/2013,SUBSISTENCE,FUSION,EMPLOYEE EXPENSES,100699999,40.00,United Kingdom Energy Authority,United Kingdom Energy Authority
11/10/2013,SUBSISTENCE,FUSION,EMPLOYEE EXPENSES,100700071,43.34,United Kingdom Energy Authority,United Kingdom Energy Authority
11/10/2013,SUBSISTENCE,FUSION,EMPLOYEE EXPENSES,100700095,50.65,United Kingdom Energy Authority,United Kingdom Energy Authority
26/10/2013,SUBSISTENCE,FUSION,EMPLOYEE EXPENSES,100700373,50.83,United Kingdom Energy Authority,United Kingdom Energy Authority
04/10/2013,SUBSISTENCE,FUSION,EMPLOYEE EXPENSES,100700003,58.13,United Kingdom Energy Authority,United Kingdom Energy Authority
26/10/2013,SUBSISTENCE,FUSION,EMPLOYEE EXPENSES,100700355,66.32,United Kingdom Energy Authority,United Kingdom Energy Authority
04/10/2013,SUBSISTENCE,FUSION,EMPLOYEE EXPENSES,100700015,70.00,United Kingdom Energy Authority,United Kingdom Energy Authority
04/10/2013,SUBSISTENCE,FUSION,EMPLOYEE EXPENSES,100699972,70.01,United Kingdom Energy Authority,United Kingdom Energy Authority
04/10/2013,SUBSISTENCE,FUSION,EMPLOYEE EXPENSES,100699983,71.63,United Kingdom Energy Authority,United Kingdom Energy Authority
19/10/2013,SUBSISTENCE,FUSION,EMPLOYEE EXPENSES,100700203,72.37,United Kingdom Energy Authority,United Kingdom Energy Authority
19/10/2013,SUBSISTENCE,FUSION,EMPLOYEE EXPENSES,100700202,75.26,United Kingdom Energy Authority,United Kingdom Energy Authority
11/10/2013,SUBSISTENCE,FUSION,EMPLOYEE EXPENSES,100700097,75.79,United Kingdom Energy Authority,United Kingdom Energy Authority
11/10/2013,SUBSISTENCE,FUSION,EMPLOYEE EXPENSES,100700096,79.04,United Kingdom Energy Authority,United Kingdom Energy Authority
04/10/2013,SUBSISTENCE,FUSION,EMPLOYEE EXPENSES,100700019,82.50,United Kingdom Energy Authority,United Kingdom Energy Authority
13/10/2013,SUBSISTENCE,FUSION,EMPLOYEE EXPENSES,100700117,82.78,United Kingdom Energy Authority,United Kingdom Energy Authority
11/10/2013,SUBSISTENCE,FUSION,EMPLOYEE EXPENSES,100700102,83.58,United Kingdom Energy Authority,United Kingdom Energy Authority
13/10/2013,SUBSISTENCE,FUSION,EMPLOYEE EXPENSES,100700116,86.88,United Kingdom Energy Authority,United Kingdom Energy Authority
04/10/2013,SUBSISTENCE,FUSION,EMPLOYEE EXPENSES,100699989,89.12,United Kingdom Energy Authority,United Kingdom Energy Authority
13/10/2013,SUBSISTENCE,FUSION,EMPLOYEE EXPENSES,100700110,91.99,United Kingdom Energy Authority,United Kingdom Energy Authority
11/10/2013,SUBSISTENCE,SUPPORT SERVICES,EMPLOYEE EXPENSES,100700082,94.08,United Kingdom Energy Authority,United Kingdom Energy Authority
11/10/2013,SUBSISTENCE,FUSION,EMPLOYEE EXPENSES,100700075,94.67,United Kingdom Energy Authority,United Kingdom Energy Authority
11/10/2013,SUBSISTENCE,FUSION,EMPLOYEE EXPENSES,100700090,94.88,United Kingdom Energy Authority,United Kingdom Energy Authority
11/10/2013,SUBSISTENCE,FUSION,EMPLOYEE EXPENSES,100700092,95.00,United Kingdom Energy Authority,United Kingdom Energy Authority
26/10/2013,SUBSISTENCE,FUSION,EMPLOYEE EXPENSES,100700375,96.66,United Kingdom Energy Authority,United Kingdom Energy Authority
19/10/2013,SUBSISTENCE,FUSION,EMPLOYEE EXPENSES,100700184,98.58,United Kingdom Energy Authority,United Kingdom Energy Authority
04/10/2013,SUBSISTENCE,FUSION,EMPLOYEE EXPENSES,100700012,102.82,United Kingdom Energy Authority,United Kingdom Energy Authority
19/10/2013,SUBSISTENCE,FUSION,EMPLOYEE EXPENSES,100700208,104.90,United Kingdom Energy Authority,United Kingdom Energy Authority
04/10/2013,SUBSISTENCE,FUSION,EMPLOYEE EXPENSES,100699998,105.00,United Kingdom Energy Authority,United Kingdom Energy Authority
13/10/2013,SUBSISTENCE,FUSION,EMPLOYEE EXPENSES,100700109,106.59,United Kingdom Energy Authority,United Kingdom Energy Authority
13/10/2013,SUBSISTENCE,FUSION,EMPLOYEE EXPENSES,100700122,109.76,United Kingdom Energy Authority,United Kingdom Energy Authority
04/10/2013,SUBSISTENCE,FUSION,EMPLOYEE EXPENSES,100699967,110.48,United Kingdom Energy Authority,United Kingdom Energy Authority
11/10/2013,SUBSISTENCE,SUPPORT SERVICES,EMPLOYEE EXPENSES,100700074,116.42,United Kingdom Energy Authority,United Kingdom Energy Authority
26/10/2013,SUBSISTENCE,FUSION,EMPLOYEE EXPENSES,100700366,119.08,United Kingdom Energy Authority,United Kingdom Energy Authority
26/10/2013,SUBSISTENCE,FUSION,EMPLOYEE EXPENSES,100700353,119.33,United Kingdom Energy Authority,United Kingdom Energy Authority
26/10/2013,SUBSISTENCE,FUSION,EMPLOYEE EXPENSES,100700354,121.17,United Kingdom Energy Authority,United Kingdom Energy Authority
11/10/2013,SUBSISTENCE,FUSION,EMPLOYEE EXPENSES,100700089,135.21,United Kingdom Energy Authority,United Kingdom Energy Authority
04/10/2013,SUBSISTENCE,FUSION,EMPLOYEE EXPENSES,100700001,137.85,United Kingdom Energy Authority,United Kingdom Energy Authority
04/10/2013,SUBSISTENCE,FUSION,EMPLOYEE EXPENSES,100699968,141.01,United Kingdom Energy Authority,United Kingdom Energy Authority
26/10/2013,SUBSISTENCE,FUSION,EMPLOYEE EXPENSES,100700370,146.38,United Kingdom Energy Authority,United Kingdom Energy Authority
26/10/2013,SUBSISTENCE,FUSION,EMPLOYEE EXPENSES,100700364,154.34,United Kingdom Energy Authority,United Kingdom Energy Authority
19/10/2013,SUBSISTENCE,FUSION,EMPLOYEE EXPENSES,100700196,155.55,United Kingdom Energy Authority,United Kingdom Energy Authority
04/10/2013,SUBSISTENCE,FUSION,EMPLOYEE EXPENSES,100699987,160.46,United Kingdom Energy Authority,United Kingdom Energy Authority
26/10/2013,SUBSISTENCE,FUSION,EMPLOYEE EXPENSES,100700357,162.91,United Kingdom Energy Authority,United Kingdom Energy Authority
04/10/2013,SUBSISTENCE,FUSION,EMPLOYEE EXPENSES,100700016,165.83,United Kingdom Energy Authority,United Kingdom Energy Authority
18/10/2013,SUBSISTENCE,FUSION,EMPLOYEE EXPENSES,1900059028,169.00,United Kingdom Energy Authority,United Kingdom Energy Authority
11/10/2013,SUBSISTENCE,FUSION,EMPLOYEE EXPENSES,100700087,169.22,United Kingdom Energy Authority,United Kingdom Energy Authority
19/10/2013,SUBSISTENCE,FUSION,EMPLOYEE EXPENSES,100700164,204.59,United Kingdom Energy Authority,United Kingdom Energy Authority
13/10/2013,SUBSISTENCE,FUSION,EMPLOYEE EXPENSES,100700118,206.84,United Kingdom Energy Authority,United Kingdom Energy Authority
11/10/2013,SUBSISTENCE,FUSION,EMPLOYEE EXPENSES,100700095,225.00,United Kingdom Energy Authority,United Kingdom Energy Authority
04/10/2013,SUBSISTENCE,FUSION,EMPLOYEE EXPENSES,100699971,238.82,United Kingdom Energy Authority,United Kingdom Energy Authority
26/10/2013,SUBSISTENCE,FUSION,EMPLOYEE EXPENSES,100700385,263.27,United Kingdom Energy Authority,United Kingdom Energy Authority
04/10/2013,SUBSISTENCE,FUSION,EMPLOYEE EXPENSES,100699988,264.25,United Kingdom Energy Authority,United Kingdom Energy Authority
11/10/2013,SUBSISTENCE,FUSION,EMPLOYEE EXPENSES,100700084,265.45,United Kingdom Energy Authority,United Kingdom Energy Authority
13/10/2013,SUBSISTENCE,FUSION,EMPLOYEE EXPENSES,100700115,266.42,United Kingdom Energy Authority,United Kingdom Energy Authority
04/10/2013,SUBSISTENCE,FUSION,EMPLOYEE EXPENSES,100699965,271.58,United Kingdom Energy Authority,United Kingdom Energy Authority
19/10/2013,SUBSISTENCE,FUSION,EMPLOYEE EXPENSES,100700196,275.42,United Kingdom Energy Authority,United Kingdom Energy Authority
26/10/2013,SUBSISTENCE,FUSION,EMPLOYEE EXPENSES,100700363,276.91,United Kingdom Energy Authority,United Kingdom Energy Authority
04/10/2013,SUBSISTENCE,FUSION,EMPLOYEE EXPENSES,100699976,292.83,United Kingdom Energy Authority,United Kingdom Energy Authority
26/10/2013,SUBSISTENCE,FUSION,EMPLOYEE EXPENSES,100700359,294.20,United Kingdom Energy Authority,United Kingdom Energy Authority
19/10/2013,SUBSISTENCE,FUSION,EMPLOYEE EXPENSES,100700165,299.91,United Kingdom Energy Authority,United Kingdom Energy Authority
26/10/2013,SUBSISTENCE,FUSION,EMPLOYEE EXPENSES,100700365,302.61,United Kingdom Energy Authority,United Kingdom Energy Authority
11/10/2013,SUBSISTENCE,FUSION,EMPLOYEE EXPENSES,100700086,304.40,United Kingdom Energy Authority,United Kingdom Energy Authority
19/10/2013,SUBSISTENCE,FUSION,EMPLOYEE EXPENSES,100700198,307.46,United Kingdom Energy Authority,United Kingdom Energy Authority
07/10/2013,SUBSISTENCE,FUSION,EMPLOYEE EXPENSES,1900058952,308.00,United Kingdom Energy Authority,United Kingdom Energy Authority
19/10/2013,SUBSISTENCE,FUSION,EMPLOYEE EXPENSES,100700194,310.67,United Kingdom Energy Authority,United Kingdom Energy Authority
07/10/2013,SUBSISTENCE,FUSION,EMPLOYEE EXPENSES,1900058953,317.60,United Kingdom Energy Authority,United Kingdom Energy Authority
19/10/2013,SUBSISTENCE,FUSION,EMPLOYEE EXPENSES,100700206,319.84,United Kingdom Energy Authority,United Kingdom Energy Authority
19/10/2013,SUBSISTENCE,FUSION,EMPLOYEE EXPENSES,100700173,359.61,United Kingdom Energy Authority,United Kingdom Energy Authority
19/10/2013,SUBSISTENCE,FUSION,EMPLOYEE EXPENSES,100700173,359.69,United Kingdom Energy Authority,United Kingdom Energy Authority
05/10/2013,SUBSISTENCE,FUSION,EMPLOYEE EXPENSES,100700031,373.60,United Kingdom Energy Authority,United Kingdom Energy Authority
26/10/2013,SUBSISTENCE,FUSION,EMPLOYEE EXPENSES,100700359,393.51,United Kingdom Energy Authority,United Kingdom Energy Authority
26/10/2013,SUBSISTENCE,FUSION,EMPLOYEE EXPENSES,100700369,424.98,United Kingdom Energy Authority,United Kingdom Energy Authority
04/10/2013,SUBSISTENCE,FUSION,EMPLOYEE EXPENSES,100700004,429.26,United Kingdom Energy Authority,United Kingdom Energy Authority
13/10/2013,SUBSISTENCE,FUSION,EMPLOYEE EXPENSES,100700121,465.86,United Kingdom Energy Authority,United Kingdom Energy Authority
26/10/2013,SUBSISTENCE,FUSION,EMPLOYEE EXPENSES,100700362,466.99,United Kingdom Energy Authority,United Kingdom Energy Authority
19/10/2013,SUBSISTENCE,FUSION,EMPLOYEE EXPENSES,100700175,470.31,United Kingdom Energy Authority,United Kingdom Energy Authority
26/10/2013,SUBSISTENCE,FUSION,EMPLOYEE EXPENSES,100700374,474.71,United Kingdom Energy Authority,United Kingdom Energy Authority
11/10/2013,SUBSISTENCE,FUSION,EMPLOYEE EXPENSES,100700094,494.90,United Kingdom Energy Authority,United Kingdom Energy Authority
11/10/2013,SUBSISTENCE,FUSION,EMPLOYEE EXPENSES,100700098,531.58,United Kingdom Energy Authority,United Kingdom Energy Authority
04/10/2013,SUBSISTENCE,FUSION,EMPLOYEE EXPENSES,100699969,540.29,United Kingdom Energy Authority,United Kingdom Energy Authority
11/10/2013,SUBSISTENCE,FUSION,EMPLOYEE EXPENSES,100700091,587.55,United Kingdom Energy Authority,United Kingdom Energy Authority
26/10/2013,SUBSISTENCE,FUSION,EMPLOYEE EXPENSES,100700356,612.56,United Kingdom Energy Authority,United Kingdom Energy Authority
19/10/2013,SUBSISTENCE,FUSION,EMPLOYEE EXPENSES,100700176,613.90,United Kingdom Energy Authority,United Kingdom Energy Authority
04/10/2013,SUBSISTENCE,FUSION,EMPLOYEE EXPENSES,100700018,619.92,United Kingdom Energy Authority,United Kingdom Energy Authority
04/10/2013,SUBSISTENCE,FUSION,EMPLOYEE EXPENSES,100700002,641.54,United Kingdom Energy Authority,United Kingdom Energy Authority
19/10/2013,SUBSISTENCE,FUSION,EMPLOYEE EXPENSES,100700204,652.89,United Kingdom Energy Authority,United Kingdom Energy Authority
11/10/2013,SUBSISTENCE,FUSION,EMPLOYEE EXPENSES,100700083,659.28,United Kingdom Energy Authority,United Kingdom Energy Authority
04/10/2013,SUBSISTENCE,FUSION,EMPLOYEE EXPENSES,100700017,692.37,United Kingdom Energy Authority,United Kingdom Energy Authority
13/10/2013,SUBSISTENCE,FUSION,EMPLOYEE EXPENSES,100700114,744.85,United Kingdom Energy Authority,United Kingdom Energy Authority
04/10/2013,SUBSISTENCE,FUSION,EMPLOYEE EXPENSES,100699975,814.87,United Kingdom Energy Authority,United Kingdom Energy Authority
04/10/2013,SUBSISTENCE,FUSION,EMPLOYEE EXPENSES,100699997,977.52,United Kingdom Energy Authority,United Kingdom Energy Authority
11/10/2013,SUBSISTENCE,FUSION,EMPLOYEE EXPENSES,100700076,1055.79,United Kingdom Energy Authority,United Kingdom Energy Authority
11/10/2013,SUBSISTENCE,FUSION,EMPLOYEE EXPENSES,100700081,1116.02,United Kingdom Energy Authority,United Kingdom Energy Authority
18/10/2013,SUBSISTENCE,FUSION,EMPLOYEE EXPENSES,1900059026,1257.11,United Kingdom Energy Authority,United Kingdom Energy Authority
26/10/2013,SUBSISTENCE,SUPPORT SERVICES,EMPLOYEE EXPENSES,100700384,1491.93,United Kingdom Energy Authority,United Kingdom Energy Authority
11/10/2013,TAXIS,FUSION,EMPLOYEE EXPENSES,100700084,5.40,United Kingdom Energy Authority,United Kingdom Energy Authority
26/10/2013,TAXIS,FUSION,EMPLOYEE EXPENSES,100700370,6.20,United Kingdom Energy Authority,United Kingdom Energy Authority
04/10/2013,TAXIS,FUSION,EMPLOYEE EXPENSES,100699965,7.10,United Kingdom Energy Authority,United Kingdom Energy Authority
11/10/2013,TAXIS,FUSION,EMPLOYEE EXPENSES,100700092,8.00,United Kingdom Energy Authority,United Kingdom Energy Authority
19/10/2013,TAXIS,FUSION,EMPLOYEE EXPENSES,100700169,8.40,United Kingdom Energy Authority,United Kingdom Energy Authority
04/10/2013,TAXIS,SUPPORT SERVICES,EMPLOYEE EXPENSES,100700009,9.00,United Kingdom Energy Authority,United Kingdom Energy Authority
04/10/2013,TAXIS,FUSION,EMPLOYEE EXPENSES,100699969,9.31,United Kingdom Energy Authority,United Kingdom Energy Authority
26/10/2013,TAXIS,FUSION,EMPLOYEE EXPENSES,100700365,9.36,United Kingdom Energy Authority,United Kingdom Energy Authority
19/10/2013,TAXIS,FUSION,EMPLOYEE EXPENSES,100700172,10.00,United Kingdom Energy Authority,United Kingdom Energy Authority
11/10/2013,TAXIS,FUSION,EMPLOYEE EXPENSES,100700091,11.36,United Kingdom Energy Authority,United Kingdom Energy Authority
04/10/2013,TAXIS,FUSION,EMPLOYEE EXPENSES,100699974,12.00,United Kingdom Energy Authority,United Kingdom Energy Authority
19/10/2013,TAXIS,FUSION,EMPLOYEE EXPENSES,100700203,12.70,United Kingdom Energy Authority,United Kingdom Energy Authority
04/10/2013,TAXIS,SUPPORT SERVICES,EMPLOYEE EXPENSES,100699978,13.00,United Kingdom Energy Authority,United Kingdom Energy Authority
19/10/2013,TAXIS,FUSION,EMPLOYEE EXPENSES,100700206,13.00,United Kingdom Energy Authority,United Kingdom Energy Authority
26/10/2013,TAXIS,FUSION,EMPLOYEE EXPENSES,100700363,13.56,United Kingdom Energy Authority,United Kingdom Energy Authority
19/10/2013,TAXIS,FUSION,EMPLOYEE EXPENSES,100700196,15.00,United Kingdom Energy Authority,United Kingdom Energy Authority
19/10/2013,TAXIS,FUSION,EMPLOYEE EXPENSES,100700206,15.38,United Kingdom Energy Authority,United Kingdom Energy Authority
04/10/2013,TAXIS,FUSION,EMPLOYEE EXPENSES,100699997,15.56,United Kingdom Energy Authority,United Kingdom Energy Authority
13/10/2013,TAXIS,FUSION,EMPLOYEE EXPENSES,100700122,18.90,United Kingdom Energy Authority,United Kingdom Energy Authority
11/10/2013,TAXIS,FUSION,EMPLOYEE EXPENSES,100700102,21.00,United Kingdom Energy Authority,United Kingdom Energy Authority
26/10/2013,TAXIS,FUSION,EMPLOYEE EXPENSES,100700368,21.61,United Kingdom Energy Authority,United Kingdom Energy Authority
13/10/2013,TAXIS,FUSION,EMPLOYEE EXPENSES,100700114,28.21,United Kingdom Energy Authority,United Kingdom Energy Authority
26/10/2013,TAXIS,FUSION,EMPLOYEE EXPENSES,100700367,32.80,United Kingdom Energy Authority,United Kingdom Energy Authority
04/10/2013,TAXIS,FUSION,EMPLOYEE EXPENSES,100700016,33.20,United Kingdom Energy Authority,United Kingdom Energy Authority
11/10/2013,TAXIS,FUSION,EMPLOYEE EXPENSES,100700090,34.06,United Kingdom Energy Authority,United Kingdom Energy Authority
04/10/2013,TAXIS,FUSION,EMPLOYEE EXPENSES,100699981,35.00,United Kingdom Energy Authority,United Kingdom Energy Authority
13/10/2013,TAXIS,FUSION,EMPLOYEE EXPENSES,100700121,37.30,United Kingdom Energy Authority,United Kingdom Energy Authority
26/10/2013,TAXIS,FUSION,EMPLOYEE EXPENSES,100700356,37.98,United Kingdom Energy Authority,United Kingdom Energy Authority
04/10/2013,TAXIS,FUSION,EMPLOYEE EXPENSES,100699968,38.20,United Kingdom Energy Authority,United Kingdom Energy Authority
11/10/2013,TAXIS,FUSION,EMPLOYEE EXPENSES,100700094,39.30,United Kingdom Energy Authority,United Kingdom Energy Authority
26/10/2013,TAXIS,FUSION,EMPLOYEE EXPENSES,100700362,40.53,United Kingdom Energy Authority,United Kingdom Energy Authority
19/10/2013,TAXIS,FUSION,EMPLOYEE EXPENSES,100700175,43.40,United Kingdom Energy Authority,United Kingdom Energy Authority
04/10/2013,TAXIS,FUSION,EMPLOYEE EXPENSES,100700004,43.54,United Kingdom Energy Authority,United Kingdom Energy Authority
26/10/2013,TAXIS,FUSION,EMPLOYEE EXPENSES,100700359,51.40,United Kingdom Energy Authority,United Kingdom Energy Authority
26/10/2013,TAXIS,FUSION,EMPLOYEE EXPENSES,100700369,84.32,United Kingdom Energy Authority,United Kingdom Energy Authority
04/10/2013,TAXIS,FUSION,EMPLOYEE EXPENSES,100699971,85.00,United Kingdom Energy Authority,United Kingdom Energy Authority
11/10/2013,TAXIS,FUSION,EMPLOYEE EXPENSES,100700076,95.62,United Kingdom Energy Authority,United Kingdom Energy Authority
26/10/2013,TAXIS,SUPPORT SERVICES,EMPLOYEE EXPENSES,100700384,116.03,United Kingdom Energy Authority,United Kingdom Energy Authority
04/10/2013,TRAINING COURSE FEES,FUSION,EMPLOYEE EXPENSES,100699980,25.00,United Kingdom Energy Authority,United Kingdom Energy Authority
14/10/2013,PROFESSIONAL SERVICES,FUSION,ENERGY SAFETY AND RISK CONSULTANTS,5100294457,19881.58,United Kingdom Energy Authority,United Kingdom Energy Authority
30/09/2013,PROFESSIONAL SERVICES,FUSION,ESR TECHNOLOGY LTD,5100294084,1900.00,United Kingdom Energy Authority,United Kingdom Energy Authority
07/10/2013,REPAIRS & MAINTENANCE,PROPERTY,EURO DISMANTLING SERVICES,5100294371,665.73,United Kingdom Energy Authority,United Kingdom Energy Authority
14/10/2013,REPAIRS & MAINTENANCE,PROPERTY,EURO DISMANTLING SERVICES,5100294462,808.30,United Kingdom Energy Authority,United Kingdom Energy Authority
07/10/2013,REPAIRS & MAINTENANCE,PROPERTY,EURO DISMANTLING SERVICES,5100294369,910.25,United Kingdom Energy Authority,United Kingdom Energy Authority
14/10/2013,REPAIRS & MAINTENANCE,PROPERTY,EURO DISMANTLING SERVICES,5100294713,1031.95,United Kingdom Energy Authority,United Kingdom Energy Authority
14/10/2013,REPAIRS & MAINTENANCE,PROPERTY,EURO DISMANTLING SERVICES,5100294714,1424.26,United Kingdom Energy Authority,United Kingdom Energy Authority
07/10/2013,REPAIRS & MAINTENANCE,PROPERTY,EURO DISMANTLING SERVICES,5100294370,2710.57,United Kingdom Energy Authority,United Kingdom Energy Authority
14/10/2013,PROFESSIONAL SERVICES,FUSION,EUROPEAN INSTRUMENTS,5100294631,628.00,United Kingdom Energy Authority,United Kingdom Energy Authority
21/10/2013,CONSULTANCY,FUSION,FAITHFUL & GOULD,5100295020,9410.00,United Kingdom Energy Authority,United Kingdom Energy Authority
23/10/2013,CONSULTANCY,FUSION,FAITHFUL & GOULD,5100295155,20000.00,United Kingdom Energy Authority,United Kingdom Energy Authority
30/09/2013,MATERIALS & SPARES,FUSION,FARNELL ELECTRONIC,5100294213,2.23,United Kingdom Energy Authority,United Kingdom Energy Authority
21/10/2013,MATERIALS & SPARES,FUSION,FARNELL ELECTRONIC,5100294951,3.60,United Kingdom Energy Authority,United Kingdom Energy Authority
21/10/2013,MATERIALS & SPARES,FUSION,FARNELL ELECTRONIC,5100294211,4.25,United Kingdom Energy Authority,United Kingdom Energy Authority
14/10/2013,MATERIALS & SPARES,FUSION,FARNELL ELECTRONIC,5100294841,6.39,United Kingdom Energy Authority,United Kingdom Energy Authority
07/10/2013,MATERIALS & SPARES,FUSION,FARNELL ELECTRONIC,5100294409,6.56,United Kingdom Energy Authority,United Kingdom Energy Authority
07/10/2013,MATERIALS & SPARES,FUSION,FARNELL ELECTRONIC,5100294237,6.88,United Kingdom Energy Authority,United Kingdom Energy Authority
21/10/2013,MATERIALS & SPARES,FUSION,FARNELL ELECTRONIC,5100295163,7.20,United Kingdom Energy Authority,United Kingdom Energy Authority
09/10/2013,MATERIALS & SPARES,FUSION,FARNELL ELECTRONIC,5100294239,7.81,United Kingdom Energy Authority,United Kingdom Energy Authority
30/09/2013,MATERIALS & SPARES,SUPPORT SERVICES,FARNELL ELECTRONIC,5100294056,10.54,United Kingdom Energy Authority,United Kingdom Energy Authority
21/10/2013,MATERIALS & SPARES,FUSION,FARNELL ELECTRONIC,5100294948,15.60,United Kingdom Energy Authority,United Kingdom Energy Authority
21/10/2013,MATERIALS & SPARES,FUSION,FARNELL ELECTRONIC,5100295162,15.75,United Kingdom Energy Authority,United Kingdom Energy Authority
07/10/2013,MATERIALS & SPARES,FUSION,FARNELL ELECTRONIC,5100294249,17.15,United Kingdom Energy Authority,United Kingdom Energy Authority
30/09/2013,MATERIALS & SPARES,FUSION,FARNELL ELECTRONIC,5100293973,17.40,United Kingdom Energy Authority,United Kingdom Energy Authority
07/10/2013,MATERIALS & SPARES,FUSION,FARNELL ELECTRONIC,5100294240,19.27,United Kingdom Energy Authority,United Kingdom Energy Authority
30/09/2013,MATERIALS & SPARES,FUSION,FARNELL ELECTRONIC,5100294215,19.27,United Kingdom Energy Authority,United Kingdom Energy Authority
14/10/2013,MATERIALS & SPARES,FUSION,FARNELL ELECTRONIC,5100294625,20.85,United Kingdom Energy Authority,United Kingdom Energy Authority
07/10/2013,MATERIALS & SPARES,FUSION,FARNELL ELECTRONIC,5100294408,21.46,United Kingdom Energy Authority,United Kingdom Energy Authority
14/10/2013,MATERIALS & SPARES,FUSION,FARNELL ELECTRONIC,5100294781,23.22,United Kingdom Energy Authority,United Kingdom Energy Authority
30/09/2013,MATERIALS & SPARES,FUSION,FARNELL ELECTRONIC,5100294057,23.30,United Kingdom Energy Authority,United Kingdom Energy Authority
23/10/2013,MATERIALS & SPARES,FUSION,FARNELL ELECTRONIC,5100295113,23.95,United Kingdom Energy Authority,United Kingdom Energy Authority
14/10/2013,MATERIALS & SPARES,FUSION,FARNELL ELECTRONIC,5100294621,25.90,United Kingdom Energy Authority,United Kingdom Energy Authority
09/10/2013,MATERIALS & SPARES,FUSION,FARNELL ELECTRONIC,5100293939,26.30,United Kingdom Energy Authority,United Kingdom Energy Authority
07/10/2013,MATERIALS & SPARES,FUSION,FARNELL ELECTRONIC,5100294243,26.45,United Kingdom Energy Authority,United Kingdom Energy Authority
30/09/2013,MATERIALS & SPARES,FUSION,FARNELL ELECTRONIC,5100294058,29.76,United Kingdom Energy Authority,United Kingdom Energy Authority
30/09/2013,MATERIALS & SPARES,FUSION,FARNELL ELECTRONIC,5100293971,30.16,United Kingdom Energy Authority,United Kingdom Energy Authority
30/09/2013,MATERIALS & SPARES,FUSION,FARNELL ELECTRONIC,5100294054,34.44,United Kingdom Energy Authority,United Kingdom Energy Authority
14/10/2013,MATERIALS & SPARES,FUSION,FARNELL ELECTRONIC,5100294407,37.21,United Kingdom Energy Authority,United Kingdom Energy Authority
21/10/2013,MATERIALS & SPARES,FUSION,FARNELL ELECTRONIC,5100294952,38.31,United Kingdom Energy Authority,United Kingdom Energy Authority
21/10/2013,MATERIALS & SPARES,FUSION,FARNELL ELECTRONIC,5100294950,38.50,United Kingdom Energy Authority,United Kingdom Energy Authority
23/10/2013,MATERIALS & SPARES,FUSION,FARNELL ELECTRONIC,5100295108,43.30,United Kingdom Energy Authority,United Kingdom Energy Authority
21/10/2013,MATERIALS & SPARES,FUSION,FARNELL ELECTRONIC,5100295111,44.00,United Kingdom Energy Authority,United Kingdom Energy Authority
21/10/2013,MATERIALS & SPARES,FUSION,FARNELL ELECTRONIC,5100294958,44.12,United Kingdom Energy Authority,United Kingdom Energy Authority
30/09/2013,MATERIALS & SPARES,FUSION,FARNELL ELECTRONIC,5100294059,45.05,United Kingdom Energy Authority,United Kingdom Energy Authority
30/09/2013,MATERIALS & SPARES,FUSION,FARNELL ELECTRONIC,5100294060,45.05,United Kingdom Energy Authority,United Kingdom Energy Authority
30/09/2013,MATERIALS & SPARES,FUSION,FARNELL ELECTRONIC,5100294214,45.76,United Kingdom Energy Authority,United Kingdom Energy Authority
14/10/2013,MATERIALS & SPARES,FUSION,FARNELL ELECTRONIC,5100294566,48.51,United Kingdom Energy Authority,United Kingdom Energy Authority
23/10/2013,MATERIALS & SPARES,FUSION,FARNELL ELECTRONIC,5100295107,49.85,United Kingdom Energy Authority,United Kingdom Energy Authority
14/10/2013,MATERIALS & SPARES,FUSION,FARNELL ELECTRONIC,5100294551,51.44,United Kingdom Energy Authority,United Kingdom Energy Authority
14/10/2013,MATERIALS & SPARES,FUSION,FARNELL ELECTRONIC,5100294787,58.00,United Kingdom Energy Authority,United Kingdom Energy Authority
07/10/2013,MATERIALS & SPARES,FUSION,FARNELL ELECTRONIC,5100294242,62.16,United Kingdom Energy Authority,United Kingdom Energy Authority
30/09/2013,MATERIALS & SPARES,FUSION,FARNELL ELECTRONIC,5100293974,64.75,United Kingdom Energy Authority,United Kingdom Energy Authority
23/10/2013,MATERIALS & SPARES,FUSION,FARNELL ELECTRONIC,5100294245,69.41,United Kingdom Energy Authority,United Kingdom Energy Authority
21/10/2013,MATERIALS & SPARES,FUSION,FARNELL ELECTRONIC,5100295114,69.75,United Kingdom Energy Authority,United Kingdom Energy Authority
21/10/2013,MATERIALS & SPARES,FUSION,FARNELL ELECTRONIC,5100295159,73.30,United Kingdom Energy Authority,United Kingdom Energy Authority
14/10/2013,MATERIALS & SPARES,FUSION,FARNELL ELECTRONIC,5100294782,74.05,United Kingdom Energy Authority,United Kingdom Energy Authority
14/10/2013,MATERIALS & SPARES,FUSION,FARNELL ELECTRONIC,5100294840,82.46,United Kingdom Energy Authority,United Kingdom Energy Authority
14/10/2013,MATERIALS & SPARES,FUSION,FARNELL ELECTRONIC,5100294788,84.52,United Kingdom Energy Authority,United Kingdom Energy Authority
21/10/2013,MATERIALS & SPARES,FUSION,FARNELL ELECTRONIC,5100294955,87.01,United Kingdom Energy Authority,United Kingdom Energy Authority
21/10/2013,MATERIALS & SPARES,FUSION,FARNELL ELECTRONIC,5100294964,87.10,United Kingdom Energy Authority,United Kingdom Energy Authority
09/10/2013,MATERIALS & SPARES,FUSION,FARNELL ELECTRONIC,5100294241,89.37,United Kingdom Energy Authority,United Kingdom Energy Authority
21/10/2013,MATERIALS & SPARES,FUSION,FARNELL ELECTRONIC,5100294949,91.21,United Kingdom Energy Authority,United Kingdom Energy Authority
09/10/2013,MATERIALS & SPARES,FUSION,FARNELL ELECTRONIC,5100294252,93.53,United Kingdom Energy Authority,United Kingdom Energy Authority
21/10/2013,MATERIALS & SPARES,FUSION,FARNELL ELECTRONIC,5100295110,93.58,United Kingdom Energy Authority,United Kingdom Energy Authority
02/10/2013,MATERIALS & SPARES,FUSION,FARNELL ELECTRONIC,5100293927,93.99,United Kingdom Energy Authority,United Kingdom Energy Authority
30/09/2013,MATERIALS & SPARES,FUSION,FARNELL ELECTRONIC,5100294210,100.00,United Kingdom Energy Authority,United Kingdom Energy Authority
30/09/2013,MATERIALS & SPARES,FUSION,FARNELL ELECTRONIC,5100293972,101.06,United Kingdom Energy Authority,United Kingdom Energy Authority
21/10/2013,MATERIALS & SPARES,FUSION,FARNELL ELECTRONIC,5100294961,115.48,United Kingdom Energy Authority,United Kingdom Energy Authority
14/10/2013,MATERIALS & SPARES,FUSION,FARNELL ELECTRONIC,5100294622,132.20,United Kingdom Energy Authority,United Kingdom Energy Authority
09/10/2013,MATERIALS & SPARES,FUSION,FARNELL ELECTRONIC,5100294406,133.02,United Kingdom Energy Authority,United Kingdom Energy Authority
30/09/2013,MATERIALS & SPARES,FUSION,FARNELL ELECTRONIC,5100294053,135.56,United Kingdom Energy Authority,United Kingdom Energy Authority
14/10/2013,MATERIALS & SPARES,SUPPORT SERVICES,FARNELL ELECTRONIC,5100294569,139.43,United Kingdom Energy Authority,United Kingdom Energy Authority
14/10/2013,MATERIALS & SPARES,FUSION,FARNELL ELECTRONIC,5100294843,145.54,United Kingdom Energy Authority,United Kingdom Energy Authority
14/10/2013,MATERIALS & SPARES,FUSION,FARNELL ELECTRONIC,5100294784,152.77,United Kingdom Energy Authority,United Kingdom Energy Authority
23/10/2013,MATERIALS & SPARES,FUSION,FARNELL ELECTRONIC,5100295165,154.78,United Kingdom Energy Authority,United Kingdom Energy Authority
21/10/2013,MATERIALS & SPARES,FUSION,FARNELL ELECTRONIC,5100295109,155.11,United Kingdom Energy Authority,United Kingdom Energy Authority
07/10/2013,MATERIALS & SPARES,FUSION,FARNELL ELECTRONIC,5100294236,162.63,United Kingdom Energy Authority,United Kingdom Energy Authority
21/10/2013,MATERIALS & SPARES,FUSION,FARNELL ELECTRONIC,5100294963,171.00,United Kingdom Energy Authority,United Kingdom Energy Authority
14/10/2013,MATERIALS & SPARES,FUSION,FARNELL ELECTRONIC,5100294567,171.53,United Kingdom Energy Authority,United Kingdom Energy Authority
14/10/2013,MATERIALS & SPARES,FUSION,FARNELL ELECTRONIC,5100294568,205.46,United Kingdom Energy Authority,United Kingdom Energy Authority
21/10/2013,MATERIALS & SPARES,FUSION,FARNELL ELECTRONIC,5100294954,225.03,United Kingdom Energy Authority,United Kingdom Energy Authority
07/10/2013,MATERIALS & SPARES,FUSION,FARNELL ELECTRONIC,5100294233,243.77,United Kingdom Energy Authority,United Kingdom Energy Authority
14/10/2013,MATERIALS & SPARES,FUSION,FARNELL ELECTRONIC,5100294785,251.35,United Kingdom Energy Authority,United Kingdom Energy Authority
30/09/2013,MATERIALS & SPARES,FUSION,FARNELL ELECTRONIC,5100294209,260.32,United Kingdom Energy Authority,United Kingdom Energy Authority
30/09/2013,MATERIALS & SPARES,FUSION,FARNELL ELECTRONIC,5100294055,266.69,United Kingdom Energy Authority,United Kingdom Energy Authority
23/10/2013,MATERIALS & SPARES,FUSION,FARNELL ELECTRONIC,5100295150,292.46,United Kingdom Energy Authority,United Kingdom Energy Authority
30/09/2013,MATERIALS & SPARES,FUSION,FARNELL ELECTRONIC,5100294052,335.70,United Kingdom Energy Authority,United Kingdom Energy Authority
30/09/2013,MATERIALS & SPARES,FUSION,FARNELL ELECTRONIC,5100293975,338.44,United Kingdom Energy Authority,United Kingdom Energy Authority
21/10/2013,MATERIALS & SPARES,FUSION,FARNELL ELECTRONIC,5100294965,342.00,United Kingdom Energy Authority,United Kingdom Energy Authority
21/10/2013,MATERIALS & SPARES,FUSION,FARNELL ELECTRONIC,5100294953,360.72,United Kingdom Energy Authority,United Kingdom Energy Authority
30/09/2013,MATERIALS & SPARES,FUSION,FARNELL ELECTRONIC,5100294061,377.45,United Kingdom Energy Authority,United Kingdom Energy Authority
07/10/2013,MATERIALS & SPARES,FUSION,FARNELL ELECTRONIC,5100294244,387.56,United Kingdom Energy Authority,United Kingdom Energy Authority
21/10/2013,MATERIALS & SPARES,FUSION,FARNELL ELECTRONIC,5100294960,394.76,United Kingdom Energy Authority,United Kingdom Energy Authority
07/10/2013,MATERIALS & SPARES,FUSION,FARNELL ELECTRONIC,5100294238,498.00,United Kingdom Energy Authority,United Kingdom Energy Authority
07/10/2013,MATERIALS & SPARES,FUSION,FARNELL ELECTRONIC,5100294247,884.45,United Kingdom Energy Authority,United Kingdom Energy Authority
07/10/2013,MATERIALS & SPARES,FUSION,FASTFIX,5100294426,49.90,United Kingdom Energy Authority,United Kingdom Energy Authority
07/10/2013,MATERIALS & SPARES,FUSION,FASTFIX,5100294427,860.55,United Kingdom Energy Authority,United Kingdom Energy Authority
14/10/2013,PLANT & EQUIPMENT,FUSION,FESTO LTD,5100294791,67.74,United Kingdom Energy Authority,United Kingdom Energy Authority
30/09/2013,PLANT & EQUIPMENT,SUPPORT SERVICES,FISHER SCIENTIFIC UK LTD,5100294207,69.89,United Kingdom Energy Authority,United Kingdom Energy Authority
23/10/2013,PLANT & EQUIPMENT,FUSION,FISHER SCIENTIFIC UK LTD,5100295117,214.88,United Kingdom Energy Authority,United Kingdom Energy Authority
23/10/2013,PLANT & EQUIPMENT,FUSION,FISHER SCIENTIFIC UK LTD,5100295115,291.72,United Kingdom Energy Authority,United Kingdom Energy Authority
14/10/2013,PLANT & EQUIPMENT,FUSION,FISHER SCIENTIFIC UK LTD,5100294627,388.05,United Kingdom Energy Authority,United Kingdom Energy Authority
21/10/2013,PLANT & EQUIPMENT,FUSION,FISHER SCIENTIFIC UK LTD,5100295118,488.30,United Kingdom Energy Authority,United Kingdom Energy Authority
23/10/2013,PLANT & EQUIPMENT,FUSION,FISHER SCIENTIFIC UK LTD,5100295116,548.00,United Kingdom Energy Authority,United Kingdom Energy Authority
14/10/2013,STATIONERY,FUSION,FLAPS ENVELOPES LTD,5100294769,443.80,United Kingdom Energy Authority,United Kingdom Energy Authority
30/09/2013,MATERIALS & SPARES,FUSION,FLEXIBLE & SPECIALIST CABLES,5100294111,26.00,United Kingdom Energy Authority,United Kingdom Energy Authority
30/09/2013,MATERIALS & SPARES,FUSION,FLEXIBLE REINFORCEMENT LIMITED,5100292321,145.00,United Kingdom Energy Authority,United Kingdom Energy Authority
30/09/2013,MATERIALS & SPARES,FUSION,FLEXIBLE REINFORCEMENT LIMITED,5100293962,737.50,United Kingdom Energy Authority,United Kingdom Energy Authority
30/09/2013,MATERIALS & SPARES,FUSION,FLEXIBLE REINFORCEMENT LIMITED,5100293963,737.50,United Kingdom Energy Authority,United Kingdom Energy Authority
09/10/2013,MATERIALS & SPARES,FUSION,FLEXIBLE REINFORCEMENT LIMITED,5100294353,2950.00,United Kingdom Energy Authority,United Kingdom Energy Authority
14/10/2013,MATERIALS & SPARES,FUSION,FLOWSERVE FLOW CONTROL (UK) LTD,5100294599,2040.73,United Kingdom Energy Authority,United Kingdom Energy Authority
01/10/2013,MATERIALS & SPARES,FUSION,Flowstar (UK) Ltd,1900058902,524.70,United Kingdom Energy Authority,United Kingdom Energy Authority
21/10/2013,MATERIALS & SPARES,FUSION,FORGEWELD LTD,5100295092,10.17,United Kingdom Energy Authority,United Kingdom Energy Authority
21/10/2013,MATERIALS & SPARES,FUSION,FORGEWELD LTD,5100295095,58.72,United Kingdom Energy Authority,United Kingdom Energy Authority
21/10/2013,MATERIALS & SPARES,FUSION,FORGEWELD LTD,5100295094,83.94,United Kingdom Energy Authority,United Kingdom Energy Authority
21/10/2013,MATERIALS & SPARES,FUSION,FORGEWELD LTD,5100295091,176.00,United Kingdom Energy Authority,United Kingdom Energy Authority
21/10/2013,MATERIALS & SPARES,FUSION,FORGEWELD LTD,5100295093,236.00,United Kingdom Energy Authority,United Kingdom Energy Authority
21/10/2013,MATERIALS & SPARES,FUSION,FORGEWELD LTD,5100295090,268.35,United Kingdom Energy Authority,United Kingdom Energy Authority
21/10/2013,MATERIALS & SPARES,FUSION,FORGEWELD LTD,5100295030,309.58,United Kingdom Energy Authority,United Kingdom Energy Authority
21/10/2013,MATERIALS & SPARES,FUSION,FORGEWELD LTD,5100295096,362.20,United Kingdom Energy Authority,United Kingdom Energy Authority
21/10/2013,MATERIALS & SPARES,FUSION,FORGEWELD LTD,5100295098,366.36,United Kingdom Energy Authority,United Kingdom Energy Authority
21/10/2013,MATERIALS & SPARES,FUSION,FORGEWELD LTD,5100295097,426.38,United Kingdom Energy Authority,United Kingdom Energy Authority
21/10/2013,MATERIALS & SPARES,FUSION,FORGEWELD LTD,5100295089,4985.00,United Kingdom Energy Authority,United Kingdom Energy Authority
23/10/2013,EFDA SECONDEE CONTRACT,FUSION,FORSCHUNGSZENTRUM JULICH,5100294402,18819.47,United Kingdom Energy Authority,United Kingdom Energy Authority
14/10/2013,MATERIALS & SPARES,FUSION,FORWARD 2000 LTD,5100294653,171.78,United Kingdom Energy Authority,United Kingdom Energy Authority
21/10/2013,MATERIALS & SPARES,FUSION,FORWARD 2000 LTD,5100295032,1178.50,United Kingdom Energy Authority,United Kingdom Energy Authority
07/10/2013,MATERIALS & SPARES,FUSION,FORWARD 2000 LTD,5100294411,2258.00,United Kingdom Energy Authority,United Kingdom Energy Authority
07/10/2013,PLANT & EQUIPMENT,FUSION,FRANCIS WARD LTD,5100294289,628.94,United Kingdom Energy Authority,United Kingdom Energy Authority
14/10/2013,MATERIALS & SPARES,FUSION,FTI LTD,5100294674,252.50,United Kingdom Energy Authority,United Kingdom Energy Authority
16/10/2013,MATERIALS & SPARES,FUSION,FuG ELECTRONIK ,5100294179,22195.60,United Kingdom Energy Authority,United Kingdom Energy Authority
30/09/2013,STATIONERY,FUSION,FULTON PAPER,5100293724,2200.00,United Kingdom Energy Authority,United Kingdom Energy Authority
09/10/2013,MATERIALS & SPARES,FUSION,GARNER OSBORNE CIRCUITS LTD,5100294351,423.40,United Kingdom Energy Authority,United Kingdom Energy Authority
14/10/2013,MATERIALS & SPARES,FUSION,GEMINI TECHNOLOGY LTD,5100294545,935.00,United Kingdom Energy Authority,United Kingdom Energy Authority
16/10/2013,HIRED STAFF,FUSION,GENTLE ASSOCIATES LTD,5100294412,3164.74,United Kingdom Energy Authority,United Kingdom Energy Authority
10/10/2013,SOFTWARE,FUSION,GEODETIC SERVICES INC,5100294726,639.42,United Kingdom Energy Authority,United Kingdom Energy Authority
21/10/2013,PROFESSIONAL SERVICES,PROPERTY,GLANVILLE CONSULTANTS,5100295021,314.80,United Kingdom Energy Authority,United Kingdom Energy Authority
14/10/2013,PROFESSIONAL SERVICES,FUSION,GLANVILLE CONSULTANTS,5100294405,318.96,United Kingdom Energy Authority,United Kingdom Energy Authority
21/10/2013,PROFESSIONAL SERVICES,FUSION,GLANVILLE CONSULTANTS,5100294989,571.08,United Kingdom Energy Authority,United Kingdom Energy Authority
23/10/2013,PLANT & EQUIPMENT,FUSION,GLENAIR UK LTD,5100294550,47.06,United Kingdom Energy Authority,United Kingdom Energy Authority
30/09/2013,PLANT & EQUIPMENT,FUSION,GLENAIR UK LTD,5100293575,128.68,United Kingdom Energy Authority,United Kingdom Energy Authority
21/10/2013,PLANT & EQUIPMENT,FUSION,GLENAIR UK LTD,5100294395,200.16,United Kingdom Energy Authority,United Kingdom Energy Authority
07/10/2013,PLANT & EQUIPMENT,FUSION,GLENAIR UK LTD,5100293620,2062.76,United Kingdom Energy Authority,United Kingdom Energy Authority
02/10/2013,CONSUMABLES,FUSION,GM BAILEY AIR CONDITIONING,5100294114,394.73,United Kingdom Energy Authority,United Kingdom Energy Authority
02/10/2013,SITE SUPPORT SERVICES,PROPERTY,GO PLANT LTD,5100293811,-103.88,United Kingdom Energy Authority,United Kingdom Energy Authority
02/10/2013,SITE SUPPORT SERVICES,PROPERTY,GO PLANT LTD,5100293019,1217.00,United Kingdom Energy Authority,United Kingdom Energy Authority
21/10/2013,PLANT & EQUIPMENT,FUSION,GOODFELLOW CAMBRIDGE LTD,5100294971,180.00,United Kingdom Energy Authority,United Kingdom Energy Authority
14/10/2013,PLANT & EQUIPMENT,FUSION,GOODFELLOW CAMBRIDGE LTD,5100294565,284.00,United Kingdom Energy Authority,United Kingdom Energy Authority
21/10/2013,MATERIALS & SPARES,FUSION,GREYHOUND CHROMATOGRAPHY,5100294968,513.90,United Kingdom Energy Authority,United Kingdom Energy Authority
30/09/2013,PROFESSIONAL SERVICES,PROPERTY,GRUNDON WASTE MANAGEMENT LTD,5100293586,100.00,United Kingdom Energy Authority,United Kingdom Energy Authority
30/09/2013,PROFESSIONAL SERVICES,PROPERTY,GRUNDON WASTE MANAGEMENT LTD,5100293584,249.30,United Kingdom Energy Authority,United Kingdom Energy Authority
30/09/2013,PROFESSIONAL SERVICES,PROPERTY,GRUNDON WASTE MANAGEMENT LTD,5100293585,249.30,United Kingdom Energy Authority,United Kingdom Energy Authority
30/09/2013,PROFESSIONAL SERVICES,PROPERTY,GRUNDON WASTE MANAGEMENT LTD,5100293588,450.60,United Kingdom Energy Authority,United Kingdom Energy Authority
30/09/2013,PROFESSIONAL SERVICES,PROPERTY,GRUNDON WASTE MANAGEMENT LTD,5100293582,789.90,United Kingdom Energy Authority,United Kingdom Energy Authority
21/10/2013,MATERIALS & SPARES,FUSION,GUNNEBO UK LTD,5100294832,87.83,United Kingdom Energy Authority,United Kingdom Energy Authority
02/10/2013,REPAIRS & MAINTENANCE,FUSION,GUYSON INTERNATIONAL,5100294188,5988.00,United Kingdom Energy Authority,United Kingdom Energy Authority
21/10/2013,PROFESSIONAL SERVICES,PROPERTY,GVA GRIMLEY,5100294946,940.00,United Kingdom Energy Authority,United Kingdom Energy Authority
09/10/2013,PRINTING & GRAPHICS,FUSION,Gyrobot Ltd,1900058962,249.12,United Kingdom Energy Authority,United Kingdom Energy Authority
30/09/2013,REPAIRS & MAINTENANCE,FUSION,HAMAMATSU,5100294018,4445.00,United Kingdom Energy Authority,United Kingdom Energy Authority
14/10/2013,TAXIS,FUSION,HAROLDS CARS,5100294333,10493.69,United Kingdom Energy Authority,United Kingdom Energy Authority
21/10/2013,HIRED STAFF,SUPPORT SERVICES,HAYS RECRUITMENT,5100295087,2000.00,United Kingdom Energy Authority,United Kingdom Energy Authority
07/10/2013,PLANT & EQUIPMENT,FUSION,HEWDEN,5100292248,450.00,United Kingdom Energy Authority,United Kingdom Energy Authority
07/10/2013,PLANT & EQUIPMENT,FUSION,HEWDEN,5100292249,750.00,United Kingdom Energy Authority,United Kingdom Energy Authority
07/10/2013,PLANT & EQUIPMENT,FUSION,HEWDEN,5100293202,750.00,United Kingdom Energy Authority,United Kingdom Energy Authority
07/10/2013,PLANT & EQUIPMENT,FUSION,HEWDEN,5100293203,750.00,United Kingdom Energy Authority,United Kingdom Energy Authority
07/10/2013,PLANT & EQUIPMENT,FUSION,HEWDEN,5100293241,750.00,United Kingdom Energy Authority,United Kingdom Energy Authority
07/10/2013,PLANT & EQUIPMENT,FUSION,HEWDEN,5100291806,1200.00,United Kingdom Energy Authority,United Kingdom Energy Authority
07/10/2013,PLANT & EQUIPMENT,FUSION,HEWDEN,5100292250,3500.00,United Kingdom Energy Authority,United Kingdom Energy Authority
21/10/2013,PLANT SPARES,FUSION,HILTI GB LTD,5100294044,120.00,United Kingdom Energy Authority,United Kingdom Energy Authority
14/10/2013,PLANT SPARES,FUSION,HILTI GB LTD,5100294193,146.00,United Kingdom Energy Authority,United Kingdom Energy Authority
14/10/2013,STATIONERY,FUSION,HOBS REPROGRAPHICS PLC,5100294770,118.19,United Kingdom Energy Authority,United Kingdom Energy Authority
07/10/2013,PLANT & EQUIPMENT,FUSION,HOPWOOD GEAR,5100294019,953.00,United Kingdom Energy Authority,United Kingdom Energy Authority
18/10/2013,CONFERENCES/MEETINGS,FUSION,Hungarian Chemical Society,1900059025,52.00,United Kingdom Energy Authority,United Kingdom Energy Authority
14/10/2013,PROFESSIONAL SERVICES,FUSION,HUTTON ENGINEERING (PRECISION) LTD,5100294773,68.02,United Kingdom Energy Authority,United Kingdom Energy Authority
23/10/2013,PROFESSIONAL SERVICES,FUSION,HUTTON ENGINEERING (PRECISION) LTD,5100294539,8442.86,United Kingdom Energy Authority,United Kingdom Energy Authority
02/10/2013,COMPUTER REPAIRS,FUSION,HVR INTERNATIONAL LTD,5100293268,18950.00,United Kingdom Energy Authority,United Kingdom Energy Authority
21/10/2013,CLEANING,FUSION,HYDROBLAST,5100295033,285.00,United Kingdom Energy Authority,United Kingdom Energy Authority
30/09/2013,CLEANING,FUSION,HYDROBLAST,5100293976,360.00,United Kingdom Energy Authority,United Kingdom Energy Authority
07/10/2013,CLEANING,FUSION,HYDROBLAST,5100294208,660.00,United Kingdom Energy Authority,United Kingdom Energy Authority
02/10/2013,MEDICAL EXPENSES,FUSION,IMASS LTD,5100293456,4985.41,United Kingdom Energy Authority,United Kingdom Energy Authority
02/10/2013,MEDICAL EXPENSES,FUSION,IMASS LTD,5100293458,4985.41,United Kingdom Energy Authority,United Kingdom Energy Authority
14/10/2013,MEDICAL EXPENSES,FUSION,IMASS LTD,5100294695,4985.41,United Kingdom Energy Authority,United Kingdom Energy Authority
14/10/2013,UNIVERSITY PLACEMENT,FUSION,IMPERIAL COLLEGE,5100294800,1646.00,United Kingdom Energy Authority,United Kingdom Energy Authority
07/10/2013,PROFESSIONAL SERVICES,FUSION,INDUCTOTHERM HEATING & WELDING,5100293729,1040.00,United Kingdom Energy Authority,United Kingdom Energy Authority
09/10/2013,PLANT & EQUIPMENT,FUSION,INSIGHT DIRECT LTD,5100294360,20.00,United Kingdom Energy Authority,United Kingdom Energy Authority
09/10/2013,PLANT & EQUIPMENT,FUSION,INSIGHT DIRECT LTD,5100294429,168.99,United Kingdom Energy Authority,United Kingdom Energy Authority
09/10/2013,PLANT & EQUIPMENT,FUSION,INSIGHT DIRECT LTD,5100294431,235.99,United Kingdom Energy Authority,United Kingdom Energy Authority
30/09/2013,PLANT & EQUIPMENT,FUSION,INSIGHT DIRECT LTD,5100294064,426.00,United Kingdom Energy Authority,United Kingdom Energy Authority
30/09/2013,PLANT & EQUIPMENT,FUSION,INSIGHT DIRECT LTD,5100293970,607.98,United Kingdom Energy Authority,United Kingdom Energy Authority
14/10/2013,PLANT & EQUIPMENT,FUSION,INSIGHT DIRECT LTD,5100294468,617.97,United Kingdom Energy Authority,United Kingdom Energy Authority
21/10/2013,PLANT & EQUIPMENT,FUSION,INSIGHT DIRECT LTD,5100294974,1848.98,United Kingdom Energy Authority,United Kingdom Energy Authority
21/10/2013,PLANT & EQUIPMENT,FUSION,INSIGHT DIRECT LTD,5100295027,2289.43,United Kingdom Energy Authority,United Kingdom Energy Authority
30/09/2013,PLANT & EQUIPMENT,FUSION,INSIGHT DIRECT LTD,5100293969,2849.75,United Kingdom Energy Authority,United Kingdom Energy Authority
23/10/2013,PLANT & EQUIPMENT,FUSION,INSTRUMENT TECHNOLOGY LTD,5100295025,104.78,United Kingdom Energy Authority,United Kingdom Energy Authority
23/10/2013,PLANT & EQUIPMENT,FUSION,INSTRUMENT TECHNOLOGY LTD,5100294806,130.00,United Kingdom Energy Authority,United Kingdom Energy Authority
07/10/2013,PLANT & EQUIPMENT,FUSION,INSTRUMENT TECHNOLOGY LTD,5100294398,224.76,United Kingdom Energy Authority,United Kingdom Energy Authority
23/10/2013,PLANT & EQUIPMENT,FUSION,INSTRUMENT TECHNOLOGY LTD,5100295024,260.00,United Kingdom Energy Authority,United Kingdom Energy Authority
23/10/2013,PLANT & EQUIPMENT,FUSION,INSTRUMENT TECHNOLOGY LTD,5100295022,896.00,United Kingdom Energy Authority,United Kingdom Energy Authority
23/10/2013,PLANT & EQUIPMENT,FUSION,INSTRUMENT TECHNOLOGY LTD,5100295023,1005.60,United Kingdom Energy Authority,United Kingdom Energy Authority
07/10/2013,PLANT & EQUIPMENT,FUSION,INSTRUMENT TECHNOLOGY LTD,5100294401,1840.45,United Kingdom Energy Authority,United Kingdom Energy Authority
14/10/2013,PLANT & EQUIPMENT,FUSION,INSTRUMENT TECHNOLOGY LTD,5100294612,3200.00,United Kingdom Energy Authority,United Kingdom Energy Authority
03/10/2013,ROAD TRAVEL,FUSION,INTERVIEW EXPENSES,1900058929,72.00,United Kingdom Energy Authority,United Kingdom Energy Authority
01/10/2013,ROAD TRAVEL,FUSION,INTERVIEW EXPENSES,1900058901,405.41,United Kingdom Energy Authority,United Kingdom Energy Authority
30/09/2013,PUBLICATIONS,FUSION,IOP PUBLISHING LTD,5100294015,1218.75,United Kingdom Energy Authority,United Kingdom Energy Authority
07/10/2013,MATERIALS & SPARES,FUSION,IS RAYFAST LTD,5100293571,159.50,United Kingdom Energy Authority,United Kingdom Energy Authority
21/10/2013,MATERIALS & SPARES,FUSION,IS RAYFAST LTD,5100294071,464.50,United Kingdom Energy Authority,United Kingdom Energy Authority
16/10/2013,SECONDED STAFF,FUSION,IST,5100294161,58709.36,United Kingdom Energy Authority,United Kingdom Energy Authority
14/10/2013,MATERIALS & SPARES,FUSION,JAC TOOLS LTD,5100294357,53.34,United Kingdom Energy Authority,United Kingdom Energy Authority
21/10/2013,MATERIALS & SPARES,FUSION,JAC TOOLS LTD,5100295106,76.72,United Kingdom Energy Authority,United Kingdom Energy Authority
23/10/2013,PLANT & EQUIPMENT,FUSION,JEMA,5100294177,22190.66,United Kingdom Energy Authority,United Kingdom Energy Authority
02/10/2013,PLANT & EQUIPMENT,FUSION,JEMA,5100293798,65143.22,United Kingdom Energy Authority,United Kingdom Energy Authority
14/10/2013,PLANT & EQUIPMENT,FUSION,JOHNSON MATTHEY PLC,5100294789,1035.38,United Kingdom Energy Authority,United Kingdom Energy Authority
30/09/2013,COMPUTER REPAIRS,FUSION,KEE SYSTEMS LTD,5100294031,-52.43,United Kingdom Energy Authority,United Kingdom Energy Authority
07/10/2013,COMPUTER REPAIRS,FUSION,KEE SYSTEMS LTD,5100293509,459.00,United Kingdom Energy Authority,United Kingdom Energy Authority
07/10/2013,COMPUTER REPAIRS,FUSION,KEE SYSTEMS LTD,5100292044,759.32,United Kingdom Energy Authority,United Kingdom Energy Authority
30/09/2013,COMPUTER REPAIRS,FUSION,KEE SYSTEMS LTD,5100291813,897.63,United Kingdom Energy Authority,United Kingdom Energy Authority
09/10/2013,COMPENSATION AND LEGAL FEES,SUPPORT SERVICES,KEOGHS,5100294560,48.00,United Kingdom Energy Authority,United Kingdom Energy Authority
14/10/2013,COMPENSATION AND LEGAL FEES,SUPPORT SERVICES,KEOGHS,5100294883,48.00,United Kingdom Energy Authority,United Kingdom Energy Authority
09/10/2013,COMPENSATION AND LEGAL FEES,SUPPORT SERVICES,KEOGHS,5100294555,192.00,United Kingdom Energy Authority,United Kingdom Energy Authority
09/10/2013,COMPENSATION AND LEGAL FEES,SUPPORT SERVICES,KEOGHS,5100294556,208.00,United Kingdom Energy Authority,United Kingdom Energy Authority
09/10/2013,COMPENSATION AND LEGAL FEES,SUPPORT SERVICES,KEOGHS,5100294557,240.00,United Kingdom Energy Authority,United Kingdom Energy Authority
09/10/2013,COMPENSATION AND LEGAL FEES,SUPPORT SERVICES,KEOGHS,5100294562,240.00,United Kingdom Energy Authority,United Kingdom Energy Authority
09/10/2013,COMPENSATION AND LEGAL FEES,SUPPORT SERVICES,KEOGHS,5100294554,272.00,United Kingdom Energy Authority,United Kingdom Energy Authority
09/10/2013,COMPENSATION AND LEGAL FEES,SUPPORT SERVICES,KEOGHS,5100294558,336.00,United Kingdom Energy Authority,United Kingdom Energy Authority
09/10/2013,COMPENSATION AND LEGAL FEES,SUPPORT SERVICES,KEOGHS,5100294559,464.00,United Kingdom Energy Authority,United Kingdom Energy Authority
14/10/2013,COMPENSATION AND LEGAL FEES,SUPPORT SERVICES,KEOGHS,5100294880,544.00,United Kingdom Energy Authority,United Kingdom Energy Authority
14/10/2013,COMPENSATION AND LEGAL FEES,SUPPORT SERVICES,KEOGHS,5100294879,576.00,United Kingdom Energy Authority,United Kingdom Energy Authority
09/10/2013,COMPENSATION AND LEGAL FEES,SUPPORT SERVICES,KEOGHS,5100294561,688.00,United Kingdom Energy Authority,United Kingdom Energy Authority
09/10/2013,COMPENSATION AND LEGAL FEES,SUPPORT SERVICES,KEOGHS,5100294553,752.00,United Kingdom Energy Authority,United Kingdom Energy Authority
14/10/2013,COMPENSATION AND LEGAL FEES,SUPPORT SERVICES,KEOGHS,5100294881,848.00,United Kingdom Energy Authority,United Kingdom Energy Authority
09/10/2013,COMPENSATION AND LEGAL FEES,SUPPORT SERVICES,KEOGHS,5100294552,906.50,United Kingdom Energy Authority,United Kingdom Energy Authority
09/10/2013,COMPENSATION AND LEGAL FEES,SUPPORT SERVICES,KEOGHS,5100294563,960.00,United Kingdom Energy Authority,United Kingdom Energy Authority
09/10/2013,COMPENSATION AND LEGAL FEES,SUPPORT SERVICES,KEOGHS,5100294689,1056.00,United Kingdom Energy Authority,United Kingdom Energy Authority
09/10/2013,COMPENSATION AND LEGAL FEES,SUPPORT SERVICES,KEOGHS,5100294686,1088.00,United Kingdom Energy Authority,United Kingdom Energy Authority
21/10/2013,COMPENSATION AND LEGAL FEES,SUPPORT SERVICES,KEOGHS,5100295127,1088.00,United Kingdom Energy Authority,United Kingdom Energy Authority
09/10/2013,COMPENSATION AND LEGAL FEES,SUPPORT SERVICES,KEOGHS,5100294688,1600.00,United Kingdom Energy Authority,United Kingdom Energy Authority
09/10/2013,COMPENSATION AND LEGAL FEES,SUPPORT SERVICES,KEOGHS,5100294684,1856.00,United Kingdom Energy Authority,United Kingdom Energy Authority
09/10/2013,COMPENSATION AND LEGAL FEES,SUPPORT SERVICES,KEOGHS,5100294690,1920.00,United Kingdom Energy Authority,United Kingdom Energy Authority
07/10/2013,COMPENSATION AND LEGAL FEES,SUPPORT SERVICES,KEOGHS,1900058946,5676.00,United Kingdom Energy Authority,United Kingdom Energy Authority
14/10/2013,MATERIALS & SPARES,FUSION,KEY INDUSTRIAL EQUIPMENT LTD,5100294795,108.30,United Kingdom Energy Authority,United Kingdom Energy Authority
07/10/2013,MATERIALS & SPARES,FUSION,KEY INDUSTRIAL EQUIPMENT LTD,5100293933,142.50,United Kingdom Energy Authority,United Kingdom Energy Authority
02/10/2013,MATERIALS & SPARES,FUSION,KEY INDUSTRIAL EQUIPMENT LTD,5100294186,226.10,United Kingdom Energy Authority,United Kingdom Energy Authority
14/10/2013,MATERIALS & SPARES,FUSION,KEY INDUSTRIAL EQUIPMENT LTD,5100294647,1697.64,United Kingdom Energy Authority,United Kingdom Energy Authority
07/10/2013,MATERIALS & SPARES,FUSION,KEY INDUSTRIAL EQUIPMENT LTD,5100294413,12728.01,United Kingdom Energy Authority,United Kingdom Energy Authority
16/10/2013,PLANT & EQUIPMENT,FUSION,KME GERMANY AG & CO,5100294761,-4074.07,United Kingdom Energy Authority,United Kingdom Energy Authority
23/10/2013,PLANT & EQUIPMENT,FUSION,KME GERMANY AG & CO,5100294465,15997.31,United Kingdom Energy Authority,United Kingdom Energy Authority
16/10/2013,PLANT & EQUIPMENT,FUSION,KME GERMANY AG & CO,5100293089,61111.05,United Kingdom Energy Authority,United Kingdom Energy Authority
30/09/2013,BUILDING REPAIRS,PROPERTY,KNOWLES & SONS (OXFORD) LTD,5100294063,18.17,United Kingdom Energy Authority,United Kingdom Energy Authority
22/10/2013,BUILDING REPAIRS,PROPERTY,KNOWLES & SONS (OXFORD) LTD,5100295261,90.80,United Kingdom Energy Authority,United Kingdom Energy Authority
21/10/2013,BUILDING REPAIRS,SUPPORT SERVICES,KNOWLES & SONS (OXFORD) LTD,5100295184,105.02,United Kingdom Energy Authority,United Kingdom Energy Authority
21/10/2013,BUILDING REPAIRS,PROPERTY,KNOWLES & SONS (OXFORD) LTD,5100295183,106.81,United Kingdom Energy Authority,United Kingdom Energy Authority
21/10/2013,BUILDING REPAIRS,PROPERTY,KNOWLES & SONS (OXFORD) LTD,5100295179,123.10,United Kingdom Energy Authority,United Kingdom Energy Authority
21/10/2013,BUILDING REPAIRS,SUPPORT SERVICES,KNOWLES & SONS (OXFORD) LTD,5100293875,202.34,United Kingdom Energy Authority,United Kingdom Energy Authority
21/10/2013,BUILDING REPAIRS,PROPERTY,KNOWLES & SONS (OXFORD) LTD,5100295178,3617.67,United Kingdom Energy Authority,United Kingdom Energy Authority
30/09/2013,BUILDING REPAIRS,FUSION,KNOWLES & SONS (OXFORD) LTD,5100294062,4247.10,United Kingdom Energy Authority,United Kingdom Energy Authority
21/10/2013,BUILDING REPAIRS,FUSION,KNOWLES & SONS (OXFORD) LTD,5100295176,4561.11,United Kingdom Energy Authority,United Kingdom Energy Authority
30/09/2013,BUILDING REPAIRS,FUSION,KNOWLES & SONS (OXFORD) LTD,5100294184,6034.09,United Kingdom Energy Authority,United Kingdom Energy Authority
30/09/2013,BUILDING REPAIRS,FUSION,KNOWLES & SONS (OXFORD) LTD,5100294183,32818.08,United Kingdom Energy Authority,United Kingdom Energy Authority
14/10/2013,MATERIALS & SPARES,FUSION,K-TECH SUPPLIES LTD,5100294226,51.10,United Kingdom Energy Authority,United Kingdom Energy Authority
07/10/2013,MATERIALS & SPARES,FUSION,KURT J LESKER,5100293001,110.28,United Kingdom Energy Authority,United Kingdom Energy Authority
14/10/2013,MATERIALS & SPARES,FUSION,KURT J LESKER,5100294638,274.30,United Kingdom Energy Authority,United Kingdom Energy Authority
23/10/2013,MATERIALS & SPARES,FUSION,KURT J LESKER,5100293298,913.50,United Kingdom Energy Authority,United Kingdom Energy Authority
30/09/2013,MATERIALS & SPARES,FUSION,KURT J LESKER,5100294051,1006.64,United Kingdom Energy Authority,United Kingdom Energy Authority
23/10/2013,MATERIALS & SPARES,FUSION,LABORATORY IMPEX SYSTEMS LTD,5100294265,2880.00,United Kingdom Energy Authority,United Kingdom Energy Authority
23/10/2013,MATERIALS & SPARES,FUSION,LABORATORY IMPEX SYSTEMS LTD,5100295055,9828.00,United Kingdom Energy Authority,United Kingdom Energy Authority
07/10/2013,CAR HIRE,FUSION,LEASEDRIVE VELO,5100294418,6.40,United Kingdom Energy Authority,United Kingdom Energy Authority
21/10/2013,CAR HIRE,FUSION,LEASEDRIVE VELO,5100295061,18.26,United Kingdom Energy Authority,United Kingdom Energy Authority
14/10/2013,CAR HIRE,FUSION,LEASEDRIVE VELO,5100294808,18.65,United Kingdom Energy Authority,United Kingdom Energy Authority
07/10/2013,CAR HIRE,SUPPORT SERVICES,LEASEDRIVE VELO,5100294273,31.55,United Kingdom Energy Authority,United Kingdom Energy Authority
07/10/2013,CAR HIRE,FUSION,LEASEDRIVE VELO,5100294415,31.62,United Kingdom Energy Authority,United Kingdom Energy Authority
07/10/2013,CAR HIRE,FUSION,LEASEDRIVE VELO,5100294422,36.44,United Kingdom Energy Authority,United Kingdom Energy Authority
30/09/2013,CAR HIRE,FUSION,LEASEDRIVE VELO,5100293968,36.44,United Kingdom Energy Authority,United Kingdom Energy Authority
14/10/2013,CAR HIRE,FUSION,LEASEDRIVE VELO,5100294424,36.44,United Kingdom Energy Authority,United Kingdom Energy Authority
21/10/2013,CAR HIRE,FUSION,LEASEDRIVE VELO,5100295168,36.44,United Kingdom Energy Authority,United Kingdom Energy Authority
21/10/2013,CAR HIRE,SUPPORT SERVICES,LEASEDRIVE VELO,5100294844,40.61,United Kingdom Energy Authority,United Kingdom Energy Authority
07/10/2013,CAR HIRE,FUSION,LEASEDRIVE VELO,5100294271,44.17,United Kingdom Energy Authority,United Kingdom Energy Authority
21/10/2013,CAR HIRE,FUSION,LEASEDRIVE VELO,5100294425,45.86,United Kingdom Energy Authority,United Kingdom Energy Authority
21/10/2013,CAR HIRE,SUPPORT SERVICES,LEASEDRIVE VELO,5100295121,48.06,United Kingdom Energy Authority,United Kingdom Energy Authority
16/10/2013,CAR HIRE,FUSION,LEASEDRIVE VELO,5100294801,48.06,United Kingdom Energy Authority,United Kingdom Energy Authority
30/09/2013,CAR HIRE,FUSION,LEASEDRIVE VELO,5100294082,52.18,United Kingdom Energy Authority,United Kingdom Energy Authority
07/10/2013,CAR HIRE,FUSION,LEASEDRIVE VELO,5100294272,57.84,United Kingdom Energy Authority,United Kingdom Energy Authority
14/10/2013,CAR HIRE,FUSION,LEASEDRIVE VELO,5100294802,60.83,United Kingdom Energy Authority,United Kingdom Energy Authority
23/10/2013,CAR HIRE,FUSION,LEASEDRIVE VELO,5100295263,67.88,United Kingdom Energy Authority,United Kingdom Energy Authority
23/10/2013,CAR HIRE,FUSION,LEASEDRIVE VELO,5100295169,68.06,United Kingdom Energy Authority,United Kingdom Energy Authority
30/09/2013,CAR HIRE,FUSION,LEASEDRIVE VELO,5100294073,72.88,United Kingdom Energy Authority,United Kingdom Energy Authority
02/10/2013,CAR HIRE,FUSION,LEASEDRIVE VELO,5100294085,72.88,United Kingdom Energy Authority,United Kingdom Energy Authority
07/10/2013,CAR HIRE,FUSION,LEASEDRIVE VELO,5100294416,72.88,United Kingdom Energy Authority,United Kingdom Energy Authority
21/10/2013,CAR HIRE,FUSION,LEASEDRIVE VELO,5100295120,82.14,United Kingdom Energy Authority,United Kingdom Energy Authority
30/09/2013,CAR HIRE,FUSION,LEASEDRIVE VELO,5100294074,83.96,United Kingdom Energy Authority,United Kingdom Energy Authority
21/10/2013,CAR HIRE,FUSION,LEASEDRIVE VELO,5100295122,91.72,United Kingdom Energy Authority,United Kingdom Energy Authority
07/10/2013,CAR HIRE,FUSION,LEASEDRIVE VELO,5100294414,96.12,United Kingdom Energy Authority,United Kingdom Energy Authority
07/10/2013,CAR HIRE,FUSION,LEASEDRIVE VELO,5100294420,105.44,United Kingdom Energy Authority,United Kingdom Energy Authority
21/10/2013,CAR HIRE,FUSION,LEASEDRIVE VELO,5100294083,158.28,United Kingdom Energy Authority,United Kingdom Energy Authority
14/10/2013,PLANT & EQUIPMENT,FUSION,LEMO UK LTD,5100294807,66.62,United Kingdom Energy Authority,United Kingdom Energy Authority
14/10/2013,PLANT & EQUIPMENT,FUSION,LEMO UK LTD,5100294282,432.66,United Kingdom Energy Authority,United Kingdom Energy Authority
16/10/2013,BUILDING REPAIRS,FUSION,LORNE STEWART PLC,5100294749,25.21,United Kingdom Energy Authority,United Kingdom Energy Authority
16/10/2013,BUILDING REPAIRS,PROPERTY,LORNE STEWART PLC,5100294752,25.21,United Kingdom Energy Authority,United Kingdom Energy Authority
16/10/2013,BUILDING REPAIRS,SUPPORT SERVICES,LORNE STEWART PLC,5100294753,280.32,United Kingdom Energy Authority,United Kingdom Energy Authority
16/10/2013,BUILDING REPAIRS,PROPERTY,LORNE STEWART PLC,5100294745,655.37,United Kingdom Energy Authority,United Kingdom Energy Authority
16/10/2013,BUILDING REPAIRS,PROPERTY,LORNE STEWART PLC,5100294736,781.51,United Kingdom Energy Authority,United Kingdom Energy Authority
16/10/2013,BUILDING REPAIRS,SUPPORT SERVICES,LORNE STEWART PLC,5100294750,905.03,United Kingdom Energy Authority,United Kingdom Energy Authority
16/10/2013,BUILDING REPAIRS,FUSION,LORNE STEWART PLC,5100294746,1081.68,United Kingdom Energy Authority,United Kingdom Energy Authority
16/10/2013,BUILDING REPAIRS,FUSION,LORNE STEWART PLC,5100294748,1277.60,United Kingdom Energy Authority,United Kingdom Energy Authority
16/10/2013,BUILDING REPAIRS,PROPERTY,LORNE STEWART PLC,5100294751,1945.71,United Kingdom Energy Authority,United Kingdom Energy Authority
16/10/2013,BUILDING REPAIRS,PROPERTY,LORNE STEWART PLC,5100294747,2717.27,United Kingdom Energy Authority,United Kingdom Energy Authority
16/10/2013,BUILDING REPAIRS,FUSION,LORNE STEWART PLC,5100294743,2926.00,United Kingdom Energy Authority,United Kingdom Energy Authority
16/10/2013,BUILDING REPAIRS,FUSION,LORNE STEWART PLC,5100294740,3361.70,United Kingdom Energy Authority,United Kingdom Energy Authority
16/10/2013,BUILDING REPAIRS,PROPERTY,LORNE STEWART PLC,5100294754,3424.06,United Kingdom Energy Authority,United Kingdom Energy Authority
16/10/2013,BUILDING REPAIRS,PROPERTY,LORNE STEWART PLC,5100294738,3649.97,United Kingdom Energy Authority,United Kingdom Energy Authority
16/10/2013,BUILDING REPAIRS,FUSION,LORNE STEWART PLC,5100294733,5476.26,United Kingdom Energy Authority,United Kingdom Energy Authority
16/10/2013,BUILDING REPAIRS,PROPERTY,LORNE STEWART PLC,5100294744,5902.73,United Kingdom Energy Authority,United Kingdom Energy Authority
16/10/2013,BUILDING REPAIRS,PROPERTY,LORNE STEWART PLC,5100294737,12955.75,United Kingdom Energy Authority,United Kingdom Energy Authority
16/10/2013,BUILDING REPAIRS,FUSION,LORNE STEWART PLC,5100294732,14637.56,United Kingdom Energy Authority,United Kingdom Energy Authority
16/10/2013,BUILDING REPAIRS,SUPPORT SERVICES,LORNE STEWART PLC,5100294742,16166.41,United Kingdom Energy Authority,United Kingdom Energy Authority
16/10/2013,BUILDING REPAIRS,PROPERTY,LORNE STEWART PLC,5100294735,17563.26,United Kingdom Energy Authority,United Kingdom Energy Authority
16/10/2013,BUILDING REPAIRS,FUSION,LORNE STEWART PLC,5100294739,19090.65,United Kingdom Energy Authority,United Kingdom Energy Authority
16/10/2013,BUILDING REPAIRS,PROPERTY,LORNE STEWART PLC,5100294734,20196.44,United Kingdom Energy Authority,United Kingdom Energy Authority
16/10/2013,BUILDING REPAIRS,FUSION,LORNE STEWART PLC,5100294741,30798.38,United Kingdom Energy Authority,United Kingdom Energy Authority
21/10/2013,DESIGN & CONSTRUCTION,FUSION,LR ENGINEERING,5100294966,1168.00,United Kingdom Energy Authority,United Kingdom Energy Authority
09/10/2013,DESIGN & CONSTRUCTION,FUSION,LR ENGINEERING,5100293512,1275.00,United Kingdom Energy Authority,United Kingdom Energy Authority
30/09/2013,DESIGN & CONSTRUCTION,FUSION,LR ENGINEERING,5100293961,1545.00,United Kingdom Energy Authority,United Kingdom Energy Authority
21/10/2013,DESIGN & CONSTRUCTION,FUSION,LR ENGINEERING,5100294967,2376.00,United Kingdom Energy Authority,United Kingdom Energy Authority
07/10/2013,PLANT & EQUIPMENT,FUSION,LSW SUPPLIES,5100294268,170.64,United Kingdom Energy Authority,United Kingdom Energy Authority
21/10/2013,STATIONERY,SUPPORT SERVICES,LYRECO UK LIMITED,5100295102,1.60,United Kingdom Energy Authority,United Kingdom Energy Authority
21/10/2013,STATIONERY,FUSION,LYRECO UK LIMITED,5100295129,14.94,United Kingdom Energy Authority,United Kingdom Energy Authority
14/10/2013,STATIONERY,FUSION,LYRECO UK LIMITED,5100294777,19.15,United Kingdom Energy Authority,United Kingdom Energy Authority
30/09/2013,STATIONERY,FUSION,LYRECO UK LIMITED,5100294049,23.64,United Kingdom Energy Authority,United Kingdom Energy Authority
14/10/2013,STATIONERY,FUSION,LYRECO UK LIMITED,5100294779,28.03,United Kingdom Energy Authority,United Kingdom Energy Authority
21/10/2013,STATIONERY,FUSION,LYRECO UK LIMITED,5100295073,34.32,United Kingdom Energy Authority,United Kingdom Energy Authority
14/10/2013,STATIONERY,FUSION,LYRECO UK LIMITED,5100294775,73.31,United Kingdom Energy Authority,United Kingdom Energy Authority
21/10/2013,STATIONERY,FUSION,LYRECO UK LIMITED,5100295101,75.49,United Kingdom Energy Authority,United Kingdom Energy Authority
07/10/2013,STATIONERY,SUPPORT SERVICES,LYRECO UK LIMITED,5100294364,138.56,United Kingdom Energy Authority,United Kingdom Energy Authority
21/10/2013,STATIONERY,FUSION,LYRECO UK LIMITED,5100295104,139.86,United Kingdom Energy Authority,United Kingdom Energy Authority
30/09/2013,STATIONERY,FUSION,LYRECO UK LIMITED,5100293956,183.78,United Kingdom Energy Authority,United Kingdom Energy Authority
07/10/2013,STATIONERY,FUSION,LYRECO UK LIMITED,5100294363,217.76,United Kingdom Energy Authority,United Kingdom Energy Authority
30/09/2013,STATIONERY,FUSION,LYRECO UK LIMITED,5100294046,242.52,United Kingdom Energy Authority,United Kingdom Energy Authority
30/09/2013,STATIONERY,FUSION,LYRECO UK LIMITED,5100294050,257.48,United Kingdom Energy Authority,United Kingdom Energy Authority
21/10/2013,STATIONERY,SUPPORT SERVICES,LYRECO UK LIMITED,5100295100,288.24,United Kingdom Energy Authority,United Kingdom Energy Authority
14/10/2013,STATIONERY,FUSION,LYRECO UK LIMITED,5100294780,288.69,United Kingdom Energy Authority,United Kingdom Energy Authority
07/10/2013,STATIONERY,FUSION,LYRECO UK LIMITED,5100294362,323.35,United Kingdom Energy Authority,United Kingdom Energy Authority
30/09/2013,STATIONERY,FUSION,LYRECO UK LIMITED,5100293954,336.35,United Kingdom Energy Authority,United Kingdom Energy Authority
30/09/2013,STATIONERY,FUSION,LYRECO UK LIMITED,5100293958,356.74,United Kingdom Energy Authority,United Kingdom Energy Authority
30/09/2013,STATIONERY,FUSION,LYRECO UK LIMITED,5100293955,392.19,United Kingdom Energy Authority,United Kingdom Energy Authority
30/09/2013,STATIONERY,FUSION,LYRECO UK LIMITED,5100294045,480.29,United Kingdom Energy Authority,United Kingdom Energy Authority
30/09/2013,STATIONERY,FUSION,LYRECO UK LIMITED,5100293957,484.62,United Kingdom Energy Authority,United Kingdom Energy Authority
21/10/2013,STATIONERY,FUSION,LYRECO UK LIMITED,5100295105,600.25,United Kingdom Energy Authority,United Kingdom Energy Authority
21/10/2013,STATIONERY,FUSION,LYRECO UK LIMITED,5100294810,631.82,United Kingdom Energy Authority,United Kingdom Energy Authority
14/10/2013,STATIONERY,FUSION,LYRECO UK LIMITED,5100294774,671.22,United Kingdom Energy Authority,United Kingdom Energy Authority
30/09/2013,STATIONERY,FUSION,LYRECO UK LIMITED,5100294048,692.75,United Kingdom Energy Authority,United Kingdom Energy Authority
14/10/2013,PROFESSIONAL SERVICES,FUSION,M.G. SANDERS COMPANY LIMITED,5100293903,1800.00,United Kingdom Energy Authority,United Kingdom Energy Authority
14/10/2013,PROFESSIONAL SERVICES,FUSION,M.G. SANDERS COMPANY LIMITED,5100293902,4422.00,United Kingdom Energy Authority,United Kingdom Energy Authority
14/10/2013,IT EQUIPMENT NON CAPITAL,FUSION,MAAINTECH,5100294687,2365.00,United Kingdom Energy Authority,United Kingdom Energy Authority
09/10/2013,REPAIRS & MAINTENANCE,FUSION,Machine Transport Services,1900058973,1800.00,United Kingdom Energy Authority,United Kingdom Energy Authority
14/10/2013,PROFESSIONAL SERVICES,FUSION,MACHINING TECHNOLOGY (MACH-TECH),5100294635,667.92,United Kingdom Energy Authority,United Kingdom Energy Authority
21/10/2013,PLANT & EQUIPMENT,FUSION,MACKENA,5100294947,83.60,United Kingdom Energy Authority,United Kingdom Energy Authority
14/10/2013,MATERIALS & SPARES,FUSION,MAPLIN ELECTRONICS LTD,5100294873,37.49,United Kingdom Energy Authority,United Kingdom Energy Authority
02/10/2013,INSURANCE,SUPPORT SERVICES,MARSH UK LIMITED,5100294303,8750.00,United Kingdom Energy Authority,United Kingdom Energy Authority
14/10/2013,PROFESSIONAL SERVICES,FUSION,MATERIAL MEASUREMENTS LTD.,5100294675,102.65,United Kingdom Energy Authority,United Kingdom Energy Authority
09/10/2013,PROFESSIONAL SERVICES,FUSION,MATERIAL MEASUREMENTS LTD.,5100294008,125.25,United Kingdom Energy Authority,United Kingdom Energy Authority
30/09/2013,PROFESSIONAL SERVICES,FUSION,MATERIAL MEASUREMENTS LTD.,5100293979,169.95,United Kingdom Energy Authority,United Kingdom Energy Authority
23/10/2013,PROFESSIONAL SERVICES,FUSION,MATERIAL MEASUREMENTS LTD.,5100294874,1482.90,United Kingdom Energy Authority,United Kingdom Energy Authority
21/10/2013,PLANT SPARES,FUSION,MATRIX MULTIMEDIA LTD,5100295084,110.00,United Kingdom Energy Authority,United Kingdom Energy Authority
21/10/2013,PLANT SPARES,FUSION,MATRIX MULTIMEDIA LTD,5100295083,654.50,United Kingdom Energy Authority,United Kingdom Energy Authority
02/10/2013,PROFESSIONAL SERVICES,FUSION,MAX PLANCK,5100293537,14325.91,United Kingdom Energy Authority,United Kingdom Energy Authority
02/10/2013,PROFESSIONAL SERVICES,FUSION,MAX PLANCK,5100293536,14334.21,United Kingdom Energy Authority,United Kingdom Energy Authority
02/10/2013,PROFESSIONAL SERVICES,FUSION,MAX PLANCK,5100293539,15229.21,United Kingdom Energy Authority,United Kingdom Energy Authority
02/10/2013,PROFESSIONAL SERVICES,FUSION,MAX PLANCK,5100293538,16287.93,United Kingdom Energy Authority,United Kingdom Energy Authority
21/10/2013,DESIGN & CONSTRUCTION,FUSION,MAYFLEX UK LTD,5100294980,100.35,United Kingdom Energy Authority,United Kingdom Energy Authority
14/10/2013,PLANT & EQUIPMENT,FUSION,MCDC VACCUUM LTD,5100294857,561.80,United Kingdom Energy Authority,United Kingdom Energy Authority
09/10/2013,PROFESSIONAL SERVICES,FUSION,MERCURY RECYCLING LTD,5100294332,179.50,United Kingdom Energy Authority,United Kingdom Energy Authority
14/10/2013,MATERIALS & SPARES,FUSION,METALFAST (A DIVISION OF,5100294697,-18.69,United Kingdom Energy Authority,United Kingdom Energy Authority
14/10/2013,MATERIALS & SPARES,FUSION,METALFAST (A DIVISION OF,5100294698,-17.17,United Kingdom Energy Authority,United Kingdom Energy Authority
14/10/2013,MATERIALS & SPARES,FUSION,METALFAST (A DIVISION OF,5100293498,34.17,United Kingdom Energy Authority,United Kingdom Energy Authority
14/10/2013,MATERIALS & SPARES,FUSION,METALFAST (A DIVISION OF,5100293765,37.19,United Kingdom Energy Authority,United Kingdom Energy Authority
30/09/2013,MATERIALS & SPARES,FUSION,METALFAST (A DIVISION OF,5100294136,109.50,United Kingdom Energy Authority,United Kingdom Energy Authority
07/10/2013,MATERIALS & SPARES,FUSION,METALFAST (A DIVISION OF,5100294467,128.00,United Kingdom Energy Authority,United Kingdom Energy Authority
07/10/2013,MATERIALS & SPARES,FUSION,METALWEB,5100294294,1240.14,United Kingdom Energy Authority,United Kingdom Energy Authority
14/10/2013,PROFESSIONAL SERVICES,FUSION,METRO ENGINEERING AND PLATING WORKS,5100294654,360.00,United Kingdom Energy Authority,United Kingdom Energy Authority
14/10/2013,MATERIALS & SPARES,FUSION,METSPIN LTD,5100294681,680.50,United Kingdom Energy Authority,United Kingdom Energy Authority
07/10/2013,PLANT & EQUIPMENT,FUSION,MILLHILL TOOLS LTD,5100294516,43.96,United Kingdom Energy Authority,United Kingdom Energy Authority
07/10/2013,PLANT & EQUIPMENT,FUSION,MILLHILL TOOLS LTD,5100294514,44.48,United Kingdom Energy Authority,United Kingdom Energy Authority
07/10/2013,PLANT & EQUIPMENT,FUSION,MILLHILL TOOLS LTD,5100294513,79.41,United Kingdom Energy Authority,United Kingdom Energy Authority
23/10/2013,REPAIRS & MAINTENANCE,FUSION,MIMER INFORMATION TECHNOLOGY AB,5100294535,4400.00,United Kingdom Energy Authority,United Kingdom Energy Authority
07/10/2013,PROFESSIONAL SERVICES,FUSION,MKS INSTRUMENT UK LIMITED,5100294466,170.00,United Kingdom Energy Authority,United Kingdom Energy Authority
21/10/2013,PROFESSIONAL SERVICES,FUSION,MKS INSTRUMENT UK LIMITED,5100295130,231.00,United Kingdom Energy Authority,United Kingdom Energy Authority
21/10/2013,PROFESSIONAL SERVICES,FUSION,MKS INSTRUMENT UK LIMITED,5100295131,6731.00,United Kingdom Energy Authority,United Kingdom Energy Authority
21/10/2013,LEGAL FEES,PROPERTY,MORGAN COLE,5100294925,39.00,United Kingdom Energy Authority,United Kingdom Energy Authority
21/10/2013,LEGAL FEES,PROPERTY,MORGAN COLE,5100294912,1004.00,United Kingdom Energy Authority,United Kingdom Energy Authority
21/10/2013,LEGAL FEES,PROPERTY,MORGAN COLE,5100294920,1458.02,United Kingdom Energy Authority,United Kingdom Energy Authority
11/10/2013,LEGAL FEES,PROPERTY,Morgan Cole,1900058990,1600.00,United Kingdom Energy Authority,United Kingdom Energy Authority
21/10/2013,LEGAL FEES,PROPERTY,MORGAN COLE,5100294923,4340.00,United Kingdom Energy Authority,United Kingdom Energy Authority
04/10/2013,LEGAL FEES,PROPERTY,Morgan Cole,1900058941,8000.00,United Kingdom Energy Authority,United Kingdom Energy Authority
14/10/2013,HIRED STAFF,FUSION,MORSON INTERNATIONAL,5100294538,-259.79,United Kingdom Energy Authority,United Kingdom Energy Authority
14/10/2013,HIRED STAFF,FUSION,MORSON INTERNATIONAL,5100294537,224082.58,United Kingdom Energy Authority,United Kingdom Energy Authority
07/10/2013,ELECTRICITY,FUSION,NATIONAL GRID TRANSCO,5100294291,3298.73,United Kingdom Energy Authority,United Kingdom Energy Authority
30/09/2013,PLANT & EQUIPMENT,FUSION,NATIONAL INSTRUMENTS LTD,5100294195,148.55,United Kingdom Energy Authority,United Kingdom Energy Authority
07/10/2013,PLANT & EQUIPMENT,FUSION,NATIONAL INSTRUMENTS LTD,5100294256,962.36,United Kingdom Energy Authority,United Kingdom Energy Authority
16/10/2013,PROFESSIONAL SERVICES,FUSION,NATIONAL PHYSICAL LABORATORY MGT LT,5100294306,1920.00,United Kingdom Energy Authority,United Kingdom Energy Authority
07/10/2013,PROFESSIONAL SERVICES,FUSION,NATIONAL PHYSICAL LABORATORY MGT LT,5100292240,12649.83,United Kingdom Energy Authority,United Kingdom Energy Authority
14/10/2013,PLANT & EQUIPMENT,FUSION,NEW PIG LTD,5100294797,138.15,United Kingdom Energy Authority,United Kingdom Energy Authority
07/10/2013,UNIVERSITY PLACEMENT,FUSION,NEWBURY COLLEGE,5100294463,1940.00,United Kingdom Energy Authority,United Kingdom Energy Authority
21/10/2013,MATERIALS & SPARES,FUSION,NEWBURY ELECTRONICS,5100295028,215.11,United Kingdom Energy Authority,United Kingdom Energy Authority
07/10/2013,PLANT & EQUIPMENT,FUSION,NOR-CAL UK LTD,5100294262,423.50,United Kingdom Energy Authority,United Kingdom Energy Authority
14/10/2013,PROFESSIONAL SERVICES,FUSION,NUCLEAR MANAGEMENT CONSULTANCE LTD,5100294655,800.00,United Kingdom Energy Authority,United Kingdom Energy Authority
07/10/2013,HEALTH PHYSICS,SUPPORT SERVICES,NUVIA LIMITED,5100293738,2740.44,United Kingdom Energy Authority,United Kingdom Energy Authority
23/10/2013,HEALTH PHYSICS,FUSION,NUVIA LIMITED,5100294355,19453.15,United Kingdom Energy Authority,United Kingdom Energy Authority
30/09/2013,MATERIALS & SPARES,FUSION,NYPLAS ENG LTD,5100293964,69.86,United Kingdom Energy Authority,United Kingdom Energy Authority
14/10/2013,MATERIALS & SPARES,FUSION,OBART PUMPS LTD,5100293877,617.60,United Kingdom Energy Authority,United Kingdom Energy Authority
21/10/2013,STATIONERY,FUSION,OCE UK,5100295081,49.25,United Kingdom Energy Authority,United Kingdom Energy Authority
21/10/2013,STATIONERY,FUSION,OCE UK,5100295067,91.70,United Kingdom Energy Authority,United Kingdom Energy Authority
30/09/2013,CLEANING,PROPERTY,OCS CLEANING & SUPPORT SERVICES,5100294155,855.35,United Kingdom Energy Authority,United Kingdom Energy Authority
07/10/2013,CLEANING,PROPERTY,OCS CLEANING & SUPPORT SERVICES,5100293951,1700.00,United Kingdom Energy Authority,United Kingdom Energy Authority
11/10/2013,CONFERENCES/MEETINGS,FUSION,OECD,1900058992,847.60,United Kingdom Energy Authority,United Kingdom Energy Authority
16/10/2013,MATERIALS & SPARES,FUSION,OERLIKON LEYBOLD VACUUM UK LTD,5100294378,1987.00,United Kingdom Energy Authority,United Kingdom Energy Authority
02/10/2013,MATERIALS & SPARES,FUSION,OERLIKON LEYBOLD VACUUM UK LTD,5100294020,3892.39,United Kingdom Energy Authority,United Kingdom Energy Authority
30/09/2013,MATERIALS & SPARES,FUSION,OFFSHORE STAINLESS SUPPLIES,5100294017,2534.00,United Kingdom Energy Authority,United Kingdom Energy Authority
02/10/2013,MATERIALS & SPARES,FUSION,OFFSHORE STAINLESS SUPPLIES,5100294016,6777.00,United Kingdom Energy Authority,United Kingdom Energy Authority
03/10/2013,MATERIALS & SPARES,FUSION,Omnima Ltd,1900058939,1328.75,United Kingdom Energy Authority,United Kingdom Energy Authority
14/10/2013,PROFESSIONAL SERVICES,FUSION,ONE FIX RECRUITMENT,5100294803,299.00,United Kingdom Energy Authority,United Kingdom Energy Authority
09/10/2013,ADVERTISING STAFF,SUPPORT SERVICES,Onefix Recruitment Ltd,1900058963,725.00,United Kingdom Energy Authority,United Kingdom Energy Authority
02/10/2013,MATERIALS & SPARES,FUSION,OUTOKUMPU STAINLESS,5100294189,10400.00,United Kingdom Energy Authority,United Kingdom Energy Authority
02/10/2013,MATERIALS & SPARES,FUSION,OXFORD BOLTS & BEARINGS,5100294180,23.80,United Kingdom Energy Authority,United Kingdom Energy Authority
30/09/2013,MATERIALS & SPARES,FUSION,OXFORD BOLTS & BEARINGS,5100294069,55.32,United Kingdom Energy Authority,United Kingdom Energy Authority
21/10/2013,MATERIALS & SPARES,FUSION,OXFORD BOLTS & BEARINGS,5100295066,68.00,United Kingdom Energy Authority,United Kingdom Energy Authority
23/10/2013,MATERIALS & SPARES,FUSION,OXFORD BOLTS & BEARINGS,5100295068,70.80,United Kingdom Energy Authority,United Kingdom Energy Authority
30/09/2013,MATERIALS & SPARES,FUSION,OXFORD BOLTS & BEARINGS,5100294191,82.50,United Kingdom Energy Authority,United Kingdom Energy Authority
21/10/2013,MATERIALS & SPARES,FUSION,OXFORD BOLTS & BEARINGS,5100294972,100.23,United Kingdom Energy Authority,United Kingdom Energy Authority
21/10/2013,MATERIALS & SPARES,FUSION,OXFORD BOLTS & BEARINGS,5100295065,120.96,United Kingdom Energy Authority,United Kingdom Energy Authority
16/10/2013,MATERIALS & SPARES,FUSION,OXFORD BOLTS & BEARINGS,5100294847,121.50,United Kingdom Energy Authority,United Kingdom Energy Authority
30/09/2013,MATERIALS & SPARES,FUSION,OXFORD BOLTS & BEARINGS,5100294218,151.58,United Kingdom Energy Authority,United Kingdom Energy Authority
30/09/2013,MATERIALS & SPARES,FUSION,OXFORD BOLTS & BEARINGS,5100294070,186.80,United Kingdom Energy Authority,United Kingdom Energy Authority
14/10/2013,MATERIALS & SPARES,FUSION,OXFORD BOLTS & BEARINGS,5100294845,205.60,United Kingdom Energy Authority,United Kingdom Energy Authority
21/10/2013,MATERIALS & SPARES,FUSION,OXFORD BOLTS & BEARINGS,5100294846,221.86,United Kingdom Energy Authority,United Kingdom Energy Authority
07/10/2013,MATERIALS & SPARES,FUSION,OXFORD BOLTS & BEARINGS,5100294255,232.50,United Kingdom Energy Authority,United Kingdom Energy Authority
14/10/2013,MATERIALS & SPARES,FUSION,OXFORD BOLTS & BEARINGS,5100294365,259.54,United Kingdom Energy Authority,United Kingdom Energy Authority
30/09/2013,MATERIALS & SPARES,FUSION,OXFORD BOLTS & BEARINGS,5100293986,304.00,United Kingdom Energy Authority,United Kingdom Energy Authority
07/10/2013,MATERIALS & SPARES,FUSION,OXFORD BOLTS & BEARINGS,5100294253,344.90,United Kingdom Energy Authority,United Kingdom Energy Authority
07/10/2013,MATERIALS & SPARES,FUSION,OXFORD BOLTS & BEARINGS,5100294366,358.10,United Kingdom Energy Authority,United Kingdom Energy Authority
30/09/2013,MATERIALS & SPARES,FUSION,OXFORD BOLTS & BEARINGS,5100294181,397.50,United Kingdom Energy Authority,United Kingdom Energy Authority
07/10/2013,MATERIALS & SPARES,FUSION,OXFORD BOLTS & BEARINGS,5100294192,419.00,United Kingdom Energy Authority,United Kingdom Energy Authority
23/10/2013,MATERIALS & SPARES,FUSION,OXFORD BOLTS & BEARINGS,5100295063,5873.82,United Kingdom Energy Authority,United Kingdom Energy Authority
14/10/2013,TRAINING COURSE FEES,FUSION,OXFORD UNIVERSITY,5100294225,1500.00,United Kingdom Energy Authority,United Kingdom Energy Authority
23/10/2013,TRAINING COURSE FEES,FUSION,OXFORD UNIVERSITY,5100294999,21880.00,United Kingdom Energy Authority,United Kingdom Energy Authority
21/10/2013,MATERIALS & SPARES,FUSION,PEI-GENISIS UK LTD,5100295053,273.45,United Kingdom Energy Authority,United Kingdom Energy Authority
30/09/2013,MATERIALS & SPARES,FUSION,PEI-GENISIS UK LTD,5100293965,817.90,United Kingdom Energy Authority,United Kingdom Energy Authority
30/09/2013,MATERIALS & SPARES,FUSION,PEI-GENISIS UK LTD,5100294066,1768.95,United Kingdom Energy Authority,United Kingdom Energy Authority
23/10/2013,HIRED STAFF,FUSION,PELICAN SOFTWARE LTD,5100295004,104.95,United Kingdom Energy Authority,United Kingdom Energy Authority
21/10/2013,HIRED STAFF,FUSION,PELICAN SOFTWARE LTD,5100295006,4837.73,United Kingdom Energy Authority,United Kingdom Energy Authority
23/10/2013,HIRED STAFF,FUSION,PELICAN SOFTWARE LTD,5100295007,5714.69,United Kingdom Energy Authority,United Kingdom Energy Authority
23/10/2013,HIRED STAFF,FUSION,PELICAN SOFTWARE LTD,5100295005,6257.20,United Kingdom Energy Authority,United Kingdom Energy Authority
14/10/2013,PROFESSIONAL SERVICES,FUSION,PERKIN ELMER LAS UK LTD,5100294634,485.16,United Kingdom Energy Authority,United Kingdom Energy Authority
07/10/2013,PLANT & EQUIPMENT,FUSION,PFEIFFER VACUUM UK,5100294304,106.39,United Kingdom Energy Authority,United Kingdom Energy Authority
07/10/2013,PLANT & EQUIPMENT,FUSION,PFEIFFER VACUUM UK,5100294302,209.04,United Kingdom Energy Authority,United Kingdom Energy Authority
30/09/2013,MATERIALS & SPARES,FUSION,PHILIP CORNES & COMPANY LTD,5100294197,176.50,United Kingdom Energy Authority,United Kingdom Energy Authority
30/09/2013,MATERIALS & SPARES,FUSION,PHILIP CORNES & COMPANY LTD,5100294199,200.00,United Kingdom Energy Authority,United Kingdom Energy Authority
21/10/2013,PLANT & EQUIPMENT,FUSION,PHS GROUP PLC,5100294277,34.13,United Kingdom Energy Authority,United Kingdom Energy Authority
14/10/2013,DESIGN & CONSTRUCTION,FUSION,PIPAWAY ENGINEERING LTD,5100294641,25.00,United Kingdom Energy Authority,United Kingdom Energy Authority
14/10/2013,DESIGN & CONSTRUCTION,FUSION,PIPAWAY ENGINEERING LTD,5100294650,85.00,United Kingdom Energy Authority,United Kingdom Energy Authority
14/10/2013,DESIGN & CONSTRUCTION,FUSION,PIPAWAY ENGINEERING LTD,5100294651,120.96,United Kingdom Energy Authority,United Kingdom Energy Authority
14/10/2013,DESIGN & CONSTRUCTION,FUSION,PIPAWAY ENGINEERING LTD,5100294639,166.46,United Kingdom Energy Authority,United Kingdom Energy Authority
14/10/2013,DESIGN & CONSTRUCTION,FUSION,PIPAWAY ENGINEERING LTD,5100294649,452.00,United Kingdom Energy Authority,United Kingdom Energy Authority
14/10/2013,DESIGN & CONSTRUCTION,FUSION,PIPAWAY ENGINEERING LTD,5100294642,726.00,United Kingdom Energy Authority,United Kingdom Energy Authority
07/10/2013,MATERIALS & SPARES,FUSION,PIRTEK OXFORD,5100294260,214.96,United Kingdom Energy Authority,United Kingdom Energy Authority
09/10/2013,MATERIALS & SPARES,FUSION,PMD (UK) LTD,5100294206,32.00,United Kingdom Energy Authority,United Kingdom Energy Authority
30/09/2013,MATERIALS & SPARES,FUSION,PMD (UK) LTD,5100294203,55.00,United Kingdom Energy Authority,United Kingdom Energy Authority
23/10/2013,MATERIALS & SPARES,FUSION,PMD (UK) LTD,5100294542,61.00,United Kingdom Energy Authority,United Kingdom Energy Authority
23/10/2013,MATERIALS & SPARES,FUSION,PMD (UK) LTD,5100294543,61.00,United Kingdom Energy Authority,United Kingdom Energy Authority
23/10/2013,MATERIALS & SPARES,FUSION,PMD (UK) LTD,5100294540,63.00,United Kingdom Energy Authority,United Kingdom Energy Authority
23/10/2013,MATERIALS & SPARES,FUSION,PMD (UK) LTD,5100294204,152.50,United Kingdom Energy Authority,United Kingdom Energy Authority
23/10/2013,MATERIALS & SPARES,FUSION,PMD (UK) LTD,5100294541,391.68,United Kingdom Energy Authority,United Kingdom Energy Authority
14/10/2013,PLANT & EQUIPMENT,FUSION,PRECISION TOOLS,5100294544,23.00,United Kingdom Energy Authority,United Kingdom Energy Authority
30/09/2013,CONSUMABLES,FUSION,PRITCHARD SHEET METAL,5100293953,67.60,United Kingdom Energy Authority,United Kingdom Energy Authority
14/10/2013,REPAIRS & MAINTENANCE,FUSION,PRUFTECHNIK,5100294628,7271.00,United Kingdom Energy Authority,United Kingdom Energy Authority
02/10/2013,PLANT & EQUIPMENT,FUSION,PULSE POWER AND MEASUREMENT LTD,5100294187,2080.00,United Kingdom Energy Authority,United Kingdom Energy Authority
24/10/2013,VEHICLE REPAIRS,PROPERTY,PURCHASE CARD,100700230,543.45,United Kingdom Energy Authority,United Kingdom Energy Authority
24/10/2013,SOFTWARE - NON-CAP,FUSION,PURCHASE CARD,100700249,549.15,United Kingdom Energy Authority,United Kingdom Energy Authority
24/10/2013,TRAINING COURSE FEES,FUSION,PURCHASE CARD,100700249,560.00,United Kingdom Energy Authority,United Kingdom Energy Authority
24/10/2013,MATERIALS & SPARES,FUSION,PURCHASE CARD,100700237,567.10,United Kingdom Energy Authority,United Kingdom Energy Authority
24/10/2013,TRAINING COURSE FEES,FUSION,PURCHASE CARD,100700224,600.00,United Kingdom Energy Authority,United Kingdom Energy Authority
24/10/2013,STATIONERY,FUSION,PURCHASE CARD,100700235,668.32,United Kingdom Energy Authority,United Kingdom Energy Authority
24/10/2013,CONFERENCES/MEETINGS,FUSION,PURCHASE CARD,100700225,704.59,United Kingdom Energy Authority,United Kingdom Energy Authority
24/10/2013,CONFERENCES/MEETINGS,FUSION,PURCHASE CARD,100700225,704.59,United Kingdom Energy Authority,United Kingdom Energy Authority
24/10/2013,BUSINESS ENTERTAINMENT,SUPPORT SERVICES,PURCHASE CARD,100700238,764.20,United Kingdom Energy Authority,United Kingdom Energy Authority
24/10/2013,CONFERENCES/MEETINGS,FUSION,PURCHASE CARD,100700228,863.13,United Kingdom Energy Authority,United Kingdom Energy Authority
24/10/2013,OTHER TRAINING COSTS,FUSION,PURCHASE CARD,100700231,895.00,United Kingdom Energy Authority,United Kingdom Energy Authority
24/10/2013,STATIONERY,FUSION,PURCHASE CARD,100700235,926.18,United Kingdom Energy Authority,United Kingdom Energy Authority
23/10/2013,MATERIALS & SPARES,FUSION,QMC INSTRUMENTS,5100295060,5350.00,United Kingdom Energy Authority,United Kingdom Energy Authority
16/10/2013,PLANT & EQUIPMENT,FUSION,QUARTZELEC LTD,5100294354,83343.00,United Kingdom Energy Authority,United Kingdom Energy Authority
14/10/2013,UNIVERSITY PLACEMENT,FUSION,QUEEN MARY UNIVERSITY OF LONDON,5100294825,1645.00,United Kingdom Energy Authority,United Kingdom Energy Authority
14/10/2013,PROFESSIONAL SERVICES,FUSION,RADIOCARBON DATING,5100294851,2000.60,United Kingdom Energy Authority,United Kingdom Energy Authority
21/10/2013,PROFESSIONAL SERVICES,FUSION,RADIOCARBON DATING,5100294848,2166.35,United Kingdom Energy Authority,United Kingdom Energy Authority
14/10/2013,PROFESSIONAL SERVICES,FUSION,RADIOCARBON DATING,5100294849,16923.56,United Kingdom Energy Authority,United Kingdom Energy Authority
14/10/2013,CONSUMABLES,PROPERTY,RADIODETECTION LTD,5100294386,288.98,United Kingdom Energy Authority,United Kingdom Energy Authority
21/10/2013,CONSUMABLES,FUSION,RAJAPACK LTD,5100294970,94.73,United Kingdom Energy Authority,United Kingdom Energy Authority
14/10/2013,CONSUMABLES,FUSION,REAGENT,5100294461,61.33,United Kingdom Energy Authority,United Kingdom Energy Authority
30/09/2013,CONSUMABLES,FUSION,REAGENT,5100290922,87.44,United Kingdom Energy Authority,United Kingdom Energy Authority
14/10/2013,PLANT & EQUIPMENT,FUSION,REECE SAFETY PRODUCTS LTD,5100294652,159.60,United Kingdom Energy Authority,United Kingdom Energy Authority
21/10/2013,SECURITY & EMERGENCY,PROPERTY,RELIANCE SECURITY GROUP PLC,5100295050,-135.28,United Kingdom Energy Authority,United Kingdom Energy Authority
21/10/2013,SECURITY & EMERGENCY,PROPERTY,RELIANCE SECURITY GROUP PLC,5100295051,6328.37,United Kingdom Energy Authority,United Kingdom Energy Authority
14/10/2013,SECURITY & EMERGENCY,PROPERTY,RELIANCE SECURITY GROUP PLC,5100294716,26913.84,United Kingdom Energy Authority,United Kingdom Energy Authority
07/10/2013,SECURITY & EMERGENCY,PROPERTY,RELIANCE SECURITY GROUP PLC,5100294246,92226.67,United Kingdom Energy Authority,United Kingdom Energy Authority
07/10/2013,SECURITY & EMERGENCY,PROPERTY,RELIANCE SECURITY GROUP PLC,5100294248,92226.67,United Kingdom Energy Authority,United Kingdom Energy Authority
07/10/2013,SECURITY & EMERGENCY,PROPERTY,RELIANCE SECURITY GROUP PLC,5100294250,92226.67,United Kingdom Energy Authority,United Kingdom Energy Authority
07/10/2013,SECURITY & EMERGENCY,PROPERTY,RELIANCE SECURITY GROUP PLC,5100294251,92226.67,United Kingdom Energy Authority,United Kingdom Energy Authority
02/10/2013,SECURITY & EMERGENCY,PROPERTY,RELIANCE SECURITY GROUP PLC,5100293914,93476.67,United Kingdom Energy Authority,United Kingdom Energy Authority
02/10/2013,SECURITY & EMERGENCY,PROPERTY,RELIANCE SECURITY GROUP PLC,5100293916,93476.67,United Kingdom Energy Authority,United Kingdom Energy Authority
14/10/2013,STATIONERY,FUSION,REPROPOINT LTD,5100294767,230.12,United Kingdom Energy Authority,United Kingdom Energy Authority
16/10/2013,PROFESSIONAL SERVICES,PROPERTY,RIDGE AND PARTNERS L,5100294610,2505.00,United Kingdom Energy Authority,United Kingdom Energy Authority
16/10/2013,SOFTWARE,FUSION,ROGUE WAVE SOFTWARE UK LTD,5100294087,2413.00,United Kingdom Energy Authority,United Kingdom Energy Authority
07/10/2013,PLANT & EQUIPMENT,FUSION,ROUTECO,5100294410,837.20,United Kingdom Energy Authority,United Kingdom Energy Authority
30/09/2013,MATERIALS & SPARES,FUSION,ROWAN CABLE PRODUCTS,5100294072,2450.22,United Kingdom Energy Authority,United Kingdom Energy Authority
23/10/2013,INSPECTION SERVICES,FUSION,ROYAL & SUN ALLIANCE ENGINEERING LT,5100294201,2586.76,United Kingdom Energy Authority,United Kingdom Energy Authority
14/10/2013,MATERIALS & SPARES,FUSION,RS COMPONENTS LTD,5100294470,-1984.84,United Kingdom Energy Authority,United Kingdom Energy Authority
23/10/2013,MATERIALS & SPARES,FUSION,RS COMPONENTS LTD,5100295348,-395.76,United Kingdom Energy Authority,United Kingdom Energy Authority
07/10/2013,MATERIALS & SPARES,FUSION,RS COMPONENTS LTD,5100294379,-387.66,United Kingdom Energy Authority,United Kingdom Energy Authority
07/10/2013,MATERIALS & SPARES,FUSION,RS COMPONENTS LTD,5100294384,-302.29,United Kingdom Energy Authority,United Kingdom Energy Authority
21/10/2013,MATERIALS & SPARES,FUSION,RS COMPONENTS LTD,5100295029,-255.56,United Kingdom Energy Authority,United Kingdom Energy Authority
23/10/2013,MATERIALS & SPARES,FUSION,RS COMPONENTS LTD,5100295349,-60.48,United Kingdom Energy Authority,United Kingdom Energy Authority
30/09/2013,MATERIALS & SPARES,FUSION,RS COMPONENTS LTD,5100294091,1.60,United Kingdom Energy Authority,United Kingdom Energy Authority
14/10/2013,MATERIALS & SPARES,FUSION,RS COMPONENTS LTD,5100293890,2306.64,United Kingdom Energy Authority,United Kingdom Energy Authority
21/10/2013,MATERIALS & SPARES,FUSION,RS COMPONENTS LTD,5100294898,1884.60,United Kingdom Energy Authority,United Kingdom Energy Authority
21/10/2013,MATERIALS & SPARES,FUSION,RS COMPONENTS LTD,5100294935,973.80,United Kingdom Energy Authority,United Kingdom Energy Authority
14/10/2013,MATERIALS & SPARES,FUSION,RS COMPONENTS LTD,5100294669,789.98,United Kingdom Energy Authority,United Kingdom Energy Authority
21/10/2013,MATERIALS & SPARES,FUSION,RS COMPONENTS LTD,5100294916,750.14,United Kingdom Energy Authority,United Kingdom Energy Authority
30/09/2013,MATERIALS & SPARES,FUSION,RS COMPONENTS LTD,5100294102,702.44,United Kingdom Energy Authority,United Kingdom Energy Authority
07/10/2013,MATERIALS & SPARES,FUSION,RS COMPONENTS LTD,5100290724,676.73,United Kingdom Energy Authority,United Kingdom Energy Authority
07/10/2013,MATERIALS & SPARES,FUSION,RS COMPONENTS LTD,5100294441,663.83,United Kingdom Energy Authority,United Kingdom Energy Authority
14/10/2013,MATERIALS & SPARES,FUSION,RS COMPONENTS LTD,5100294618,607.66,United Kingdom Energy Authority,United Kingdom Energy Authority
14/10/2013,MATERIALS & SPARES,FUSION,RS COMPONENTS LTD,5100294667,603.66,United Kingdom Energy Authority,United Kingdom Energy Authority
07/10/2013,MATERIALS & SPARES,FUSION,RS COMPONENTS LTD,5100294346,594.44,United Kingdom Energy Authority,United Kingdom Energy Authority
30/09/2013,MATERIALS & SPARES,FUSION,RS COMPONENTS LTD,5100294089,522.64,United Kingdom Energy Authority,United Kingdom Energy Authority
21/10/2013,MATERIALS & SPARES,FUSION,RS COMPONENTS LTD,5100294918,517.24,United Kingdom Energy Authority,United Kingdom Energy Authority
16/10/2013,MATERIALS & SPARES,FUSION,RS COMPONENTS LTD,5100294591,505.75,United Kingdom Energy Authority,United Kingdom Energy Authority
23/10/2013,MATERIALS & SPARES,FUSION,RS COMPONENTS LTD,5100293705,494.70,United Kingdom Energy Authority,United Kingdom Energy Authority
21/10/2013,MATERIALS & SPARES,FUSION,RS COMPONENTS LTD,5100294894,480.20,United Kingdom Energy Authority,United Kingdom Energy Authority
30/09/2013,MATERIALS & SPARES,FUSION,RS COMPONENTS LTD,5100294135,416.72,United Kingdom Energy Authority,United Kingdom Energy Authority
07/10/2013,MATERIALS & SPARES,FUSION,RS COMPONENTS LTD,5100294339,393.44,United Kingdom Energy Authority,United Kingdom Energy Authority
21/10/2013,MATERIALS & SPARES,FUSION,RS COMPONENTS LTD,5100294929,374.41,United Kingdom Energy Authority,United Kingdom Energy Authority
07/10/2013,MATERIALS & SPARES,FUSION,RS COMPONENTS LTD,5100294437,358.66,United Kingdom Energy Authority,United Kingdom Energy Authority
07/10/2013,MATERIALS & SPARES,FUSION,RS COMPONENTS LTD,5100294447,352.89,United Kingdom Energy Authority,United Kingdom Energy Authority
07/10/2013,MATERIALS & SPARES,FUSION,RS COMPONENTS LTD,5100294343,346.37,United Kingdom Energy Authority,United Kingdom Energy Authority
